Workbook

Sheet Base (hidden)

Sheet FORS
A4: STATISTIKK
A7: FOR
A10: MÅLEVIRKSOMHETEN
A14: 2021
A15: NB: Alle timefortjenester er før eventuelt trekk av målegebyr

Sheet ÅRSTOT
A2: ="MÅLESTATISTIKK ALLE BYGGFAG - 1. HALVÅR "&FORS!$A$14 -> MÅLESTATISTIKK ALLE BYGGFAG - 1. HALVÅR 2021
B4: Målesum i kroner | D4: Timer | F4: ="Fortjeneste 1. halvår "&FORS!$A$14-0 -> Fortjeneste 1. halvår 2021 | I4: =" 1. halvår "&FORS!$A$14-1 -> 1. halvår 2020 | L4: Endringer i %
B5: Innmålt m/ | C5: Innmålt m/ | D5: Innmålt m/ | E5: Innmålt m/ | F5: Innmålt m/ | G5: Innmålt m/ | H5: Gjennom- | I5: Innmålt m/ | J5: Innmålt m/ | K5: Gjen.snitt | L5: Innmålt m/ | M5: Gjen.snitt
B6: overskudd | C6: underskudd | D6: overskudd | E6: underskudd | F6: overskudd | G6: underskudd | H6: snitt | I6: overskudd | J6: underskudd | K6: fortjeneste | L6: overskudd | M6: fortjeneste
A7: Agder | B7: =SUMIFS(BETONG!B$7:B$18,BETONG!$A$7:$A$18,ÅRSTOT!$A7)+SUMIFS(TØMRERE!B$7:B$18,TØMRERE!$A$7:$A$18,ÅRSTOT!$A7)+SUMIFS(RØRLEGGERE!B$7:B$18,RØRLEGGERE!$A$7:$A$18,ÅRSTOT!$A7)+SUMIFS(MURERE!B$7:B$18,MURERE!$A$7:$A$18,ÅRSTOT!$A7)+SUMIFS('BLIKK OG VENTILASJON'!B$7:B$18,'BLIKK OG VENTILASJON'!$A$7:$A$18,ÅRSTOT!$A7)+SUMIFS(ISOLATØR!B$7:B$18,ISOLATØR!$A$7:$A$18,ÅRSTOT!$A7)+SUMIFS(MALERE!B$7:B$18,MALERE!$A$7:$A$18,ÅRSTOT!$A7)+SUMIFS(TAKTEKKERE!B$7:B$18,TAKTEKKERE!$A$7:$A$18,ÅRSTOT!$A7) -> 13659888 | C7: =SUMIFS(BETONG!C$7:C$18,BETONG!$A$7:$A$18,ÅRSTOT!$A7)+SUMIFS(TØMRERE!C$7:C$18,TØMRERE!$A$7:$A$18,ÅRSTOT!$A7)+SUMIFS(RØRLEGGERE!C$7:C$18,RØRLEGGERE!$A$7:$A$18,ÅRSTOT!$A7)+SUMIFS(MURERE!C$7:C$18,MURERE!$A$7:$A$18,ÅRSTOT!$A7)+SUMIFS('BLIKK OG VENTILASJON'!C$7:C$18,'BLIKK OG VENTILASJON'!$A$7:$A$18,ÅRSTOT!$A7)+SUMIFS(ISOLATØR!C$7:C$18,ISOLATØR!$A$7:$A$18,ÅRSTOT!$A7)+SUMIFS(MALERE!C$7:C$18,MALERE!$A$7:$A$18,ÅRSTOT!$A7)+SUMIFS(TAKTEKKERE!C$7:C$18,TAKTEKKERE!$A$7:$A$18,ÅRSTOT!$A7) -> 0 | D7: =SUMIFS(BETONG!D$7:D$18,BETONG!$A$7:$A$18,ÅRSTOT!$A7)+SUMIFS(TØMRERE!D$7:D$18,TØMRERE!$A$7:$A$18,ÅRSTOT!$A7)+SUMIFS(RØRLEGGERE!D$7:D$18,RØRLEGGERE!$A$7:$A$18,ÅRSTOT!$A7)+SUMIFS(MURERE!D$7:D$18,MURERE!$A$7:$A$18,ÅRSTOT!$A7)+SUMIFS('BLIKK OG VENTILASJON'!D$7:D$18,'BLIKK OG VENTILASJON'!$A$7:$A$18,ÅRSTOT!$A7)+SUMIFS(ISOLATØR!D$7:D$18,ISOLATØR!$A$7:$A$18,ÅRSTOT!$A7)+SUMIFS(MALERE!D$7:D$18,MALERE!$A$7:$A$18,ÅRSTOT!$A7)+SUMIFS(TAKTEKKERE!D$7:D$18,TAKTEKKERE!$A$7:$A$18,ÅRSTOT!$A7) -> 44340 | E7: =SUMIFS(BETONG!E$7:E$18,BETONG!$A$7:$A$18,ÅRSTOT!$A7)+SUMIFS(TØMRERE!E$7:E$18,TØMRERE!$A$7:$A$18,ÅRSTOT!$A7)+SUMIFS(RØRLEGGERE!E$7:E$18,RØRLEGGERE!$A$7:$A$18,ÅRSTOT!$A7)+SUMIFS(MURERE!E$7:E$18,MURERE!$A$7:$A$18,ÅRSTOT!$A7)+SUMIFS('BLIKK OG VENTILASJON'!E$7:E$18,'BLIKK OG VENTILASJON'!$A$7:$A$18,ÅRSTOT!$A7)+SUMIFS(ISOLATØR!E$7:E$18,ISOLATØR!$A$7:$A$18,ÅRSTOT!$A7)+SUMIFS(MALERE!E$7:E$18,MALERE!$A$7:$A$18,ÅRSTOT!$A7)+SUMIFS(TAKTEKKERE!E$7:E$18,TAKTEKKERE!$A$7:$A$18,ÅRSTOT!$A7) -> 0 | F7: =IF(D7=0,0,B7/D7) -> 308.0714479 | G7: =IF(E7=0,0,C7/E7) -> 0 | H7: =IF(D7+E7=0,0,(B7+C7)/(D7+E7)) -> 308.0714479 | I7: =SUMIFS(BETONG!I$7:I$18,BETONG!$A$7:$A$18,ÅRSTOT!$A7)+SUMIFS(TØMRERE!I$7:I$18,TØMRERE!$A$7:$A$18,ÅRSTOT!$A7)+SUMIFS(RØRLEGGERE!I$7:I$18,RØRLEGGERE!$A$7:$A$18,ÅRSTOT!$A7)+SUMIFS(MURERE!I$7:I$18,MURERE!$A$7:$A$18,ÅRSTOT!$A7)+SUMIFS('BLIKK OG VENTILASJON'!I$7:I$18,'BLIKK OG VENTILASJON'!$A$7:$A$18,ÅRSTOT!$A7)+SUMIFS(ISOLATØR!I$7:I$18,ISOLATØR!$A$7:$A$18,ÅRSTOT!$A7)+SUMIFS(MALERE!I$7:I$18,MALERE!$A$7:$A$18,ÅRSTOT!$A7)+SUMIFS(TAKTEKKERE!I$7:I$18,TAKTEKKERE!$A$7:$A$18,ÅRSTOT!$A7) -> 10620699 | J7: =SUMIFS(BETONG!J$7:J$18,BETONG!$A$7:$A$18,ÅRSTOT!$A7)+SUMIFS(TØMRERE!J$7:J$18,TØMRERE!$A$7:$A$18,ÅRSTOT!$A7)+SUMIFS(RØRLEGGERE!J$7:J$18,RØRLEGGERE!$A$7:$A$18,ÅRSTOT!$A7)+SUMIFS(MURERE!J$7:J$18,MURERE!$A$7:$A$18,ÅRSTOT!$A7)+SUMIFS('BLIKK OG VENTILASJON'!J$7:J$18,'BLIKK OG VENTILASJON'!$A$7:$A$18,ÅRSTOT!$A7)+SUMIFS(ISOLATØR!J$7:J$18,ISOLATØR!$A$7:$A$18,ÅRSTOT!$A7)+SUMIFS(MALERE!J$7:J$18,MALERE!$A$7:$A$18,ÅRSTOT!$A7)+SUMIFS(TAKTEKKERE!J$7:J$18,TAKTEKKERE!$A$7:$A$18,ÅRSTOT!$A7) -> 330230 | K7: 292.789931 | L7: =IF(I7=0,0,(B7-I7)/I7) -> 0.2861571541 | M7: =IF(K7=0,0,(H7-K7)/K7) -> 0.0521927678
A8: Bergen | B8: =SUMIFS(BETONG!B$7:B$18,BETONG!$A$7:$A$18,ÅRSTOT!$A8)+SUMIFS(TØMRERE!B$7:B$18,TØMRERE!$A$7:$A$18,ÅRSTOT!$A8)+SUMIFS(RØRLEGGERE!B$7:B$18,RØRLEGGERE!$A$7:$A$18,ÅRSTOT!$A8)+SUMIFS(MURERE!B$7:B$18,MURERE!$A$7:$A$18,ÅRSTOT!$A8)+SUMIFS('BLIKK OG VENTILASJON'!B$7:B$18,'BLIKK OG VENTILASJON'!$A$7:$A$18,ÅRSTOT!$A8)+SUMIFS(ISOLATØR!B$7:B$18,ISOLATØR!$A$7:$A$18,ÅRSTOT!$A8)+SUMIFS(MALERE!B$7:B$18,MALERE!$A$7:$A$18,ÅRSTOT!$A8)+SUMIFS(TAKTEKKERE!B$7:B$18,TAKTEKKERE!$A$7:$A$18,ÅRSTOT!$A8) -> 32137290.52 | C8: =SUMIFS(BETONG!C$7:C$18,BETONG!$A$7:$A$18,ÅRSTOT!$A8)+SUMIFS(TØMRERE!C$7:C$18,TØMRERE!$A$7:$A$18,ÅRSTOT!$A8)+SUMIFS(RØRLEGGERE!C$7:C$18,RØRLEGGERE!$A$7:$A$18,ÅRSTOT!$A8)+SUMIFS(MURERE!C$7:C$18,MURERE!$A$7:$A$18,ÅRSTOT!$A8)+SUMIFS('BLIKK OG VENTILASJON'!C$7:C$18,'BLIKK OG VENTILASJON'!$A$7:$A$18,ÅRSTOT!$A8)+SUMIFS(ISOLATØR!C$7:C$18,ISOLATØR!$A$7:$A$18,ÅRSTOT!$A8)+SUMIFS(MALERE!C$7:C$18,MALERE!$A$7:$A$18,ÅRSTOT!$A8)+SUMIFS(TAKTEKKERE!C$7:C$18,TAKTEKKERE!$A$7:$A$18,ÅRSTOT!$A8) -> 0 | D8: =SUMIFS(BETONG!D$7:D$18,BETONG!$A$7:$A$18,ÅRSTOT!$A8)+SUMIFS(TØMRERE!D$7:D$18,TØMRERE!$A$7:$A$18,ÅRSTOT!$A8)+SUMIFS(RØRLEGGERE!D$7:D$18,RØRLEGGERE!$A$7:$A$18,ÅRSTOT!$A8)+SUMIFS(MURERE!D$7:D$18,MURERE!$A$7:$A$18,ÅRSTOT!$A8)+SUMIFS('BLIKK OG VENTILASJON'!D$7:D$18,'BLIKK OG VENTILASJON'!$A$7:$A$18,ÅRSTOT!$A8)+SUMIFS(ISOLATØR!D$7:D$18,ISOLATØR!$A$7:$A$18,ÅRSTOT!$A8)+SUMIFS(MALERE!D$7:D$18,MALERE!$A$7:$A$18,ÅRSTOT!$A8)+SUMIFS(TAKTEKKERE!D$7:D$18,TAKTEKKERE!$A$7:$A$18,ÅRSTOT!$A8) -> 108690.01 | E8: =SUMIFS(BETONG!E$7:E$18,BETONG!$A$7:$A$18,ÅRSTOT!$A8)+SUMIFS(TØMRERE!E$7:E$18,TØMRERE!$A$7:$A$18,ÅRSTOT!$A8)+SUMIFS(RØRLEGGERE!E$7:E$18,RØRLEGGERE!$A$7:$A$18,ÅRSTOT!$A8)+SUMIFS(MURERE!E$7:E$18,MURERE!$A$7:$A$18,ÅRSTOT!$A8)+SUMIFS('BLIKK OG VENTILASJON'!E$7:E$18,'BLIKK OG VENTILASJON'!$A$7:$A$18,ÅRSTOT!$A8)+SUMIFS(ISOLATØR!E$7:E$18,ISOLATØR!$A$7:$A$18,ÅRSTOT!$A8)+SUMIFS(MALERE!E$7:E$18,MALERE!$A$7:$A$18,ÅRSTOT!$A8)+SUMIFS(TAKTEKKERE!E$7:E$18,TAKTEKKERE!$A$7:$A$18,ÅRSTOT!$A8) -> 0 | F8: =IF(D8=0,0,B8/D8) -> 295.6784209 | G8: =IF(E8=0,0,C8/E8) -> 0 | H8: =IF(D8+E8=0,0,(B8+C8)/(D8+E8)) -> 295.6784209 | I8: =SUMIFS(BETONG!I$7:I$18,BETONG!$A$7:$A$18,ÅRSTOT!$A8)+SUMIFS(TØMRERE!I$7:I$18,TØMRERE!$A$7:$A$18,ÅRSTOT!$A8)+SUMIFS(RØRLEGGERE!I$7:I$18,RØRLEGGERE!$A$7:$A$18,ÅRSTOT!$A8)+SUMIFS(MURERE!I$7:I$18,MURERE!$A$7:$A$18,ÅRSTOT!$A8)+SUMIFS('BLIKK OG VENTILASJON'!I$7:I$18,'BLIKK OG VENTILASJON'!$A$7:$A$18,ÅRSTOT!$A8)+SUMIFS(ISOLATØR!I$7:I$18,ISOLATØR!$A$7:$A$18,ÅRSTOT!$A8)+SUMIFS(MALERE!I$7:I$18,MALERE!$A$7:$A$18,ÅRSTOT!$A8)+SUMIFS(TAKTEKKERE!I$7:I$18,TAKTEKKERE!$A$7:$A$18,ÅRSTOT!$A8) -> 28112984.92 | J8: =SUMIFS(BETONG!J$7:J$18,BETONG!$A$7:$A$18,ÅRSTOT!$A8)+SUMIFS(TØMRERE!J$7:J$18,TØMRERE!$A$7:$A$18,ÅRSTOT!$A8)+SUMIFS(RØRLEGGERE!J$7:J$18,RØRLEGGERE!$A$7:$A$18,ÅRSTOT!$A8)+SUMIFS(MURERE!J$7:J$18,MURERE!$A$7:$A$18,ÅRSTOT!$A8)+SUMIFS('BLIKK OG VENTILASJON'!J$7:J$18,'BLIKK OG VENTILASJON'!$A$7:$A$18,ÅRSTOT!$A8)+SUMIFS(ISOLATØR!J$7:J$18,ISOLATØR!$A$7:$A$18,ÅRSTOT!$A8)+SUMIFS(MALERE!J$7:J$18,MALERE!$A$7:$A$18,ÅRSTOT!$A8)+SUMIFS(TAKTEKKERE!J$7:J$18,TAKTEKKERE!$A$7:$A$18,ÅRSTOT!$A8) -> 0 | K8: 299.8339082 | L8: =IF(I8=0,0,(B8-I8)/I8) -> 0.1431475744 | M8: =IF(K8=0,0,(H8-K8)/K8) -> -0.01385929738
A9: Nordland | B9: =SUMIFS(BETONG!B$7:B$18,BETONG!$A$7:$A$18,ÅRSTOT!$A9)+SUMIFS(TØMRERE!B$7:B$18,TØMRERE!$A$7:$A$18,ÅRSTOT!$A9)+SUMIFS(RØRLEGGERE!B$7:B$18,RØRLEGGERE!$A$7:$A$18,ÅRSTOT!$A9)+SUMIFS(MURERE!B$7:B$18,MURERE!$A$7:$A$18,ÅRSTOT!$A9)+SUMIFS('BLIKK OG VENTILASJON'!B$7:B$18,'BLIKK OG VENTILASJON'!$A$7:$A$18,ÅRSTOT!$A9)+SUMIFS(ISOLATØR!B$7:B$18,ISOLATØR!$A$7:$A$18,ÅRSTOT!$A9)+SUMIFS(MALERE!B$7:B$18,MALERE!$A$7:$A$18,ÅRSTOT!$A9)+SUMIFS(TAKTEKKERE!B$7:B$18,TAKTEKKERE!$A$7:$A$18,ÅRSTOT!$A9) -> 0 | C9: =SUMIFS(BETONG!C$7:C$18,BETONG!$A$7:$A$18,ÅRSTOT!$A9)+SUMIFS(TØMRERE!C$7:C$18,TØMRERE!$A$7:$A$18,ÅRSTOT!$A9)+SUMIFS(RØRLEGGERE!C$7:C$18,RØRLEGGERE!$A$7:$A$18,ÅRSTOT!$A9)+SUMIFS(MURERE!C$7:C$18,MURERE!$A$7:$A$18,ÅRSTOT!$A9)+SUMIFS('BLIKK OG VENTILASJON'!C$7:C$18,'BLIKK OG VENTILASJON'!$A$7:$A$18,ÅRSTOT!$A9)+SUMIFS(ISOLATØR!C$7:C$18,ISOLATØR!$A$7:$A$18,ÅRSTOT!$A9)+SUMIFS(MALERE!C$7:C$18,MALERE!$A$7:$A$18,ÅRSTOT!$A9)+SUMIFS(TAKTEKKERE!C$7:C$18,TAKTEKKERE!$A$7:$A$18,ÅRSTOT!$A9) -> 0 | D9: =SUMIFS(BETONG!D$7:D$18,BETONG!$A$7:$A$18,ÅRSTOT!$A9)+SUMIFS(TØMRERE!D$7:D$18,TØMRERE!$A$7:$A$18,ÅRSTOT!$A9)+SUMIFS(RØRLEGGERE!D$7:D$18,RØRLEGGERE!$A$7:$A$18,ÅRSTOT!$A9)+SUMIFS(MURERE!D$7:D$18,MURERE!$A$7:$A$18,ÅRSTOT!$A9)+SUMIFS('BLIKK OG VENTILASJON'!D$7:D$18,'BLIKK OG VENTILASJON'!$A$7:$A$18,ÅRSTOT!$A9)+SUMIFS(ISOLATØR!D$7:D$18,ISOLATØR!$A$7:$A$18,ÅRSTOT!$A9)+SUMIFS(MALERE!D$7:D$18,MALERE!$A$7:$A$18,ÅRSTOT!$A9)+SUMIFS(TAKTEKKERE!D$7:D$18,TAKTEKKERE!$A$7:$A$18,ÅRSTOT!$A9) -> 0 | E9: =SUMIFS(BETONG!E$7:E$18,BETONG!$A$7:$A$18,ÅRSTOT!$A9)+SUMIFS(TØMRERE!E$7:E$18,TØMRERE!$A$7:$A$18,ÅRSTOT!$A9)+SUMIFS(RØRLEGGERE!E$7:E$18,RØRLEGGERE!$A$7:$A$18,ÅRSTOT!$A9)+SUMIFS(MURERE!E$7:E$18,MURERE!$A$7:$A$18,ÅRSTOT!$A9)+SUMIFS('BLIKK OG VENTILASJON'!E$7:E$18,'BLIKK OG VENTILASJON'!$A$7:$A$18,ÅRSTOT!$A9)+SUMIFS(ISOLATØR!E$7:E$18,ISOLATØR!$A$7:$A$18,ÅRSTOT!$A9)+SUMIFS(MALERE!E$7:E$18,MALERE!$A$7:$A$18,ÅRSTOT!$A9)+SUMIFS(TAKTEKKERE!E$7:E$18,TAKTEKKERE!$A$7:$A$18,ÅRSTOT!$A9) -> 0 | F9: =IF(D9=0,0,B9/D9) -> 0 | G9: =IF(E9=0,0,C9/E9) -> 0 | H9: =IF(D9+E9=0,0,(B9+C9)/(D9+E9)) -> 0 | I9: =SUMIFS(BETONG!I$7:I$18,BETONG!$A$7:$A$18,ÅRSTOT!$A9)+SUMIFS(TØMRERE!I$7:I$18,TØMRERE!$A$7:$A$18,ÅRSTOT!$A9)+SUMIFS(RØRLEGGERE!I$7:I$18,RØRLEGGERE!$A$7:$A$18,ÅRSTOT!$A9)+SUMIFS(MURERE!I$7:I$18,MURERE!$A$7:$A$18,ÅRSTOT!$A9)+SUMIFS('BLIKK OG VENTILASJON'!I$7:I$18,'BLIKK OG VENTILASJON'!$A$7:$A$18,ÅRSTOT!$A9)+SUMIFS(ISOLATØR!I$7:I$18,ISOLATØR!$A$7:$A$18,ÅRSTOT!$A9)+SUMIFS(MALERE!I$7:I$18,MALERE!$A$7:$A$18,ÅRSTOT!$A9)+SUMIFS(TAKTEKKERE!I$7:I$18,TAKTEKKERE!$A$7:$A$18,ÅRSTOT!$A9) -> 0 | J9: =SUMIFS(BETONG!J$7:J$18,BETONG!$A$7:$A$18,ÅRSTOT!$A9)+SUMIFS(TØMRERE!J$7:J$18,TØMRERE!$A$7:$A$18,ÅRSTOT!$A9)+SUMIFS(RØRLEGGERE!J$7:J$18,RØRLEGGERE!$A$7:$A$18,ÅRSTOT!$A9)+SUMIFS(MURERE!J$7:J$18,MURERE!$A$7:$A$18,ÅRSTOT!$A9)+SUMIFS('BLIKK OG VENTILASJON'!J$7:J$18,'BLIKK OG VENTILASJON'!$A$7:$A$18,ÅRSTOT!$A9)+SUMIFS(ISOLATØR!J$7:J$18,ISOLATØR!$A$7:$A$18,ÅRSTOT!$A9)+SUMIFS(MALERE!J$7:J$18,MALERE!$A$7:$A$18,ÅRSTOT!$A9)+SUMIFS(TAKTEKKERE!J$7:J$18,TAKTEKKERE!$A$7:$A$18,ÅRSTOT!$A9) -> 0 | K9: 0 | L9: =IF(I9=0,0,(B9-I9)/I9) -> 0 | M9: =IF(K9=0,0,(H9-K9)/K9) -> 0
A10: Drammen - Bærum | B10: =SUMIFS(BETONG!B$7:B$18,BETONG!$A$7:$A$18,ÅRSTOT!$A10)+SUMIFS(TØMRERE!B$7:B$18,TØMRERE!$A$7:$A$18,ÅRSTOT!$A10)+SUMIFS(RØRLEGGERE!B$7:B$18,RØRLEGGERE!$A$7:$A$18,ÅRSTOT!$A10)+SUMIFS(MURERE!B$7:B$18,MURERE!$A$7:$A$18,ÅRSTOT!$A10)+SUMIFS('BLIKK OG VENTILASJON'!B$7:B$18,'BLIKK OG VENTILASJON'!$A$7:$A$18,ÅRSTOT!$A10)+SUMIFS(ISOLATØR!B$7:B$18,ISOLATØR!$A$7:$A$18,ÅRSTOT!$A10)+SUMIFS(MALERE!B$7:B$18,MALERE!$A$7:$A$18,ÅRSTOT!$A10)+SUMIFS(TAKTEKKERE!B$7:B$18,TAKTEKKERE!$A$7:$A$18,ÅRSTOT!$A10) -> 0 | C10: =SUMIFS(BETONG!C$7:C$18,BETONG!$A$7:$A$18,ÅRSTOT!$A10)+SUMIFS(TØMRERE!C$7:C$18,TØMRERE!$A$7:$A$18,ÅRSTOT!$A10)+SUMIFS(RØRLEGGERE!C$7:C$18,RØRLEGGERE!$A$7:$A$18,ÅRSTOT!$A10)+SUMIFS(MURERE!C$7:C$18,MURERE!$A$7:$A$18,ÅRSTOT!$A10)+SUMIFS('BLIKK OG VENTILASJON'!C$7:C$18,'BLIKK OG VENTILASJON'!$A$7:$A$18,ÅRSTOT!$A10)+SUMIFS(ISOLATØR!C$7:C$18,ISOLATØR!$A$7:$A$18,ÅRSTOT!$A10)+SUMIFS(MALERE!C$7:C$18,MALERE!$A$7:$A$18,ÅRSTOT!$A10)+SUMIFS(TAKTEKKERE!C$7:C$18,TAKTEKKERE!$A$7:$A$18,ÅRSTOT!$A10) -> 0 | D10: =SUMIFS(BETONG!D$7:D$18,BETONG!$A$7:$A$18,ÅRSTOT!$A10)+SUMIFS(TØMRERE!D$7:D$18,TØMRERE!$A$7:$A$18,ÅRSTOT!$A10)+SUMIFS(RØRLEGGERE!D$7:D$18,RØRLEGGERE!$A$7:$A$18,ÅRSTOT!$A10)+SUMIFS(MURERE!D$7:D$18,MURERE!$A$7:$A$18,ÅRSTOT!$A10)+SUMIFS('BLIKK OG VENTILASJON'!D$7:D$18,'BLIKK OG VENTILASJON'!$A$7:$A$18,ÅRSTOT!$A10)+SUMIFS(ISOLATØR!D$7:D$18,ISOLATØR!$A$7:$A$18,ÅRSTOT!$A10)+SUMIFS(MALERE!D$7:D$18,MALERE!$A$7:$A$18,ÅRSTOT!$A10)+SUMIFS(TAKTEKKERE!D$7:D$18,TAKTEKKERE!$A$7:$A$18,ÅRSTOT!$A10) -> 0 | E10: =SUMIFS(BETONG!E$7:E$18,BETONG!$A$7:$A$18,ÅRSTOT!$A10)+SUMIFS(TØMRERE!E$7:E$18,TØMRERE!$A$7:$A$18,ÅRSTOT!$A10)+SUMIFS(RØRLEGGERE!E$7:E$18,RØRLEGGERE!$A$7:$A$18,ÅRSTOT!$A10)+SUMIFS(MURERE!E$7:E$18,MURERE!$A$7:$A$18,ÅRSTOT!$A10)+SUMIFS('BLIKK OG VENTILASJON'!E$7:E$18,'BLIKK OG VENTILASJON'!$A$7:$A$18,ÅRSTOT!$A10)+SUMIFS(ISOLATØR!E$7:E$18,ISOLATØR!$A$7:$A$18,ÅRSTOT!$A10)+SUMIFS(MALERE!E$7:E$18,MALERE!$A$7:$A$18,ÅRSTOT!$A10)+SUMIFS(TAKTEKKERE!E$7:E$18,TAKTEKKERE!$A$7:$A$18,ÅRSTOT!$A10) -> 0 | F10: =IF(D10=0,0,B10/D10) -> 0 | G10: 0 | H10: =IF(D10+E10=0,0,(B10+C10)/(D10+E10)) -> 0 | I10: =SUMIFS(BETONG!I$7:I$18,BETONG!$A$7:$A$18,ÅRSTOT!$A10)+SUMIFS(TØMRERE!I$7:I$18,TØMRERE!$A$7:$A$18,ÅRSTOT!$A10)+SUMIFS(RØRLEGGERE!I$7:I$18,RØRLEGGERE!$A$7:$A$18,ÅRSTOT!$A10)+SUMIFS(MURERE!I$7:I$18,MURERE!$A$7:$A$18,ÅRSTOT!$A10)+SUMIFS('BLIKK OG VENTILASJON'!I$7:I$18,'BLIKK OG VENTILASJON'!$A$7:$A$18,ÅRSTOT!$A10)+SUMIFS(ISOLATØR!I$7:I$18,ISOLATØR!$A$7:$A$18,ÅRSTOT!$A10)+SUMIFS(MALERE!I$7:I$18,MALERE!$A$7:$A$18,ÅRSTOT!$A10)+SUMIFS(TAKTEKKERE!I$7:I$18,TAKTEKKERE!$A$7:$A$18,ÅRSTOT!$A10) -> 0 | J10: =SUMIFS(BETONG!J$7:J$18,BETONG!$A$7:$A$18,ÅRSTOT!$A10)+SUMIFS(TØMRERE!J$7:J$18,TØMRERE!$A$7:$A$18,ÅRSTOT!$A10)+SUMIFS(RØRLEGGERE!J$7:J$18,RØRLEGGERE!$A$7:$A$18,ÅRSTOT!$A10)+SUMIFS(MURERE!J$7:J$18,MURERE!$A$7:$A$18,ÅRSTOT!$A10)+SUMIFS('BLIKK OG VENTILASJON'!J$7:J$18,'BLIKK OG VENTILASJON'!$A$7:$A$18,ÅRSTOT!$A10)+SUMIFS(ISOLATØR!J$7:J$18,ISOLATØR!$A$7:$A$18,ÅRSTOT!$A10)+SUMIFS(MALERE!J$7:J$18,MALERE!$A$7:$A$18,ÅRSTOT!$A10)+SUMIFS(TAKTEKKERE!J$7:J$18,TAKTEKKERE!$A$7:$A$18,ÅRSTOT!$A10) -> 0 | K10: 0 | L10: 0 | M10: 0
A11: Haugesund | B11: =SUMIFS(BETONG!B$7:B$18,BETONG!$A$7:$A$18,ÅRSTOT!$A11)+SUMIFS(TØMRERE!B$7:B$18,TØMRERE!$A$7:$A$18,ÅRSTOT!$A11)+SUMIFS(RØRLEGGERE!B$7:B$18,RØRLEGGERE!$A$7:$A$18,ÅRSTOT!$A11)+SUMIFS(MURERE!B$7:B$18,MURERE!$A$7:$A$18,ÅRSTOT!$A11)+SUMIFS('BLIKK OG VENTILASJON'!B$7:B$18,'BLIKK OG VENTILASJON'!$A$7:$A$18,ÅRSTOT!$A11)+SUMIFS(ISOLATØR!B$7:B$18,ISOLATØR!$A$7:$A$18,ÅRSTOT!$A11)+SUMIFS(MALERE!B$7:B$18,MALERE!$A$7:$A$18,ÅRSTOT!$A11)+SUMIFS(TAKTEKKERE!B$7:B$18,TAKTEKKERE!$A$7:$A$18,ÅRSTOT!$A11) -> 7139951 | C11: =SUMIFS(BETONG!C$7:C$18,BETONG!$A$7:$A$18,ÅRSTOT!$A11)+SUMIFS(TØMRERE!C$7:C$18,TØMRERE!$A$7:$A$18,ÅRSTOT!$A11)+SUMIFS(RØRLEGGERE!C$7:C$18,RØRLEGGERE!$A$7:$A$18,ÅRSTOT!$A11)+SUMIFS(MURERE!C$7:C$18,MURERE!$A$7:$A$18,ÅRSTOT!$A11)+SUMIFS('BLIKK OG VENTILASJON'!C$7:C$18,'BLIKK OG VENTILASJON'!$A$7:$A$18,ÅRSTOT!$A11)+SUMIFS(ISOLATØR!C$7:C$18,ISOLATØR!$A$7:$A$18,ÅRSTOT!$A11)+SUMIFS(MALERE!C$7:C$18,MALERE!$A$7:$A$18,ÅRSTOT!$A11)+SUMIFS(TAKTEKKERE!C$7:C$18,TAKTEKKERE!$A$7:$A$18,ÅRSTOT!$A11) -> 0 | D11: =SUMIFS(BETONG!D$7:D$18,BETONG!$A$7:$A$18,ÅRSTOT!$A11)+SUMIFS(TØMRERE!D$7:D$18,TØMRERE!$A$7:$A$18,ÅRSTOT!$A11)+SUMIFS(RØRLEGGERE!D$7:D$18,RØRLEGGERE!$A$7:$A$18,ÅRSTOT!$A11)+SUMIFS(MURERE!D$7:D$18,MURERE!$A$7:$A$18,ÅRSTOT!$A11)+SUMIFS('BLIKK OG VENTILASJON'!D$7:D$18,'BLIKK OG VENTILASJON'!$A$7:$A$18,ÅRSTOT!$A11)+SUMIFS(ISOLATØR!D$7:D$18,ISOLATØR!$A$7:$A$18,ÅRSTOT!$A11)+SUMIFS(MALERE!D$7:D$18,MALERE!$A$7:$A$18,ÅRSTOT!$A11)+SUMIFS(TAKTEKKERE!D$7:D$18,TAKTEKKERE!$A$7:$A$18,ÅRSTOT!$A11) -> 25022.13 | E11: =SUMIFS(BETONG!E$7:E$18,BETONG!$A$7:$A$18,ÅRSTOT!$A11)+SUMIFS(TØMRERE!E$7:E$18,TØMRERE!$A$7:$A$18,ÅRSTOT!$A11)+SUMIFS(RØRLEGGERE!E$7:E$18,RØRLEGGERE!$A$7:$A$18,ÅRSTOT!$A11)+SUMIFS(MURERE!E$7:E$18,MURERE!$A$7:$A$18,ÅRSTOT!$A11)+SUMIFS('BLIKK OG VENTILASJON'!E$7:E$18,'BLIKK OG VENTILASJON'!$A$7:$A$18,ÅRSTOT!$A11)+SUMIFS(ISOLATØR!E$7:E$18,ISOLATØR!$A$7:$A$18,ÅRSTOT!$A11)+SUMIFS(MALERE!E$7:E$18,MALERE!$A$7:$A$18,ÅRSTOT!$A11)+SUMIFS(TAKTEKKERE!E$7:E$18,TAKTEKKERE!$A$7:$A$18,ÅRSTOT!$A11) -> 0 | F11: 285.3454522 | G11: 0 | H11: 285.3454522 | I11: =SUMIFS(BETONG!I$7:I$18,BETONG!$A$7:$A$18,ÅRSTOT!$A11)+SUMIFS(TØMRERE!I$7:I$18,TØMRERE!$A$7:$A$18,ÅRSTOT!$A11)+SUMIFS(RØRLEGGERE!I$7:I$18,RØRLEGGERE!$A$7:$A$18,ÅRSTOT!$A11)+SUMIFS(MURERE!I$7:I$18,MURERE!$A$7:$A$18,ÅRSTOT!$A11)+SUMIFS('BLIKK OG VENTILASJON'!I$7:I$18,'BLIKK OG VENTILASJON'!$A$7:$A$18,ÅRSTOT!$A11)+SUMIFS(ISOLATØR!I$7:I$18,ISOLATØR!$A$7:$A$18,ÅRSTOT!$A11)+SUMIFS(MALERE!I$7:I$18,MALERE!$A$7:$A$18,ÅRSTOT!$A11)+SUMIFS(TAKTEKKERE!I$7:I$18,TAKTEKKERE!$A$7:$A$18,ÅRSTOT!$A11) -> 12167164 | J11: =SUMIFS(BETONG!J$7:J$18,BETONG!$A$7:$A$18,ÅRSTOT!$A11)+SUMIFS(TØMRERE!J$7:J$18,TØMRERE!$A$7:$A$18,ÅRSTOT!$A11)+SUMIFS(RØRLEGGERE!J$7:J$18,RØRLEGGERE!$A$7:$A$18,ÅRSTOT!$A11)+SUMIFS(MURERE!J$7:J$18,MURERE!$A$7:$A$18,ÅRSTOT!$A11)+SUMIFS('BLIKK OG VENTILASJON'!J$7:J$18,'BLIKK OG VENTILASJON'!$A$7:$A$18,ÅRSTOT!$A11)+SUMIFS(ISOLATØR!J$7:J$18,ISOLATØR!$A$7:$A$18,ÅRSTOT!$A11)+SUMIFS(MALERE!J$7:J$18,MALERE!$A$7:$A$18,ÅRSTOT!$A11)+SUMIFS(TAKTEKKERE!J$7:J$18,TAKTEKKERE!$A$7:$A$18,ÅRSTOT!$A11) -> 0 | K11: 284.259608 | L11: -0.4131786997 | M11: 0.00381990337
A12: Hamar og Omegn | B12: =SUMIFS(BETONG!B$7:B$18,BETONG!$A$7:$A$18,ÅRSTOT!$A12)+SUMIFS(TØMRERE!B$7:B$18,TØMRERE!$A$7:$A$18,ÅRSTOT!$A12)+SUMIFS(RØRLEGGERE!B$7:B$18,RØRLEGGERE!$A$7:$A$18,ÅRSTOT!$A12)+SUMIFS(MURERE!B$7:B$18,MURERE!$A$7:$A$18,ÅRSTOT!$A12)+SUMIFS('BLIKK OG VENTILASJON'!B$7:B$18,'BLIKK OG VENTILASJON'!$A$7:$A$18,ÅRSTOT!$A12)+SUMIFS(ISOLATØR!B$7:B$18,ISOLATØR!$A$7:$A$18,ÅRSTOT!$A12)+SUMIFS(MALERE!B$7:B$18,MALERE!$A$7:$A$18,ÅRSTOT!$A12)+SUMIFS(TAKTEKKERE!B$7:B$18,TAKTEKKERE!$A$7:$A$18,ÅRSTOT!$A12) -> 11796373 | C12: =SUMIFS(BETONG!C$7:C$18,BETONG!$A$7:$A$18,ÅRSTOT!$A12)+SUMIFS(TØMRERE!C$7:C$18,TØMRERE!$A$7:$A$18,ÅRSTOT!$A12)+SUMIFS(RØRLEGGERE!C$7:C$18,RØRLEGGERE!$A$7:$A$18,ÅRSTOT!$A12)+SUMIFS(MURERE!C$7:C$18,MURERE!$A$7:$A$18,ÅRSTOT!$A12)+SUMIFS('BLIKK OG VENTILASJON'!C$7:C$18,'BLIKK OG VENTILASJON'!$A$7:$A$18,ÅRSTOT!$A12)+SUMIFS(ISOLATØR!C$7:C$18,ISOLATØR!$A$7:$A$18,ÅRSTOT!$A12)+SUMIFS(MALERE!C$7:C$18,MALERE!$A$7:$A$18,ÅRSTOT!$A12)+SUMIFS(TAKTEKKERE!C$7:C$18,TAKTEKKERE!$A$7:$A$18,ÅRSTOT!$A12) -> 438619 | D12: =SUMIFS(BETONG!D$7:D$18,BETONG!$A$7:$A$18,ÅRSTOT!$A12)+SUMIFS(TØMRERE!D$7:D$18,TØMRERE!$A$7:$A$18,ÅRSTOT!$A12)+SUMIFS(RØRLEGGERE!D$7:D$18,RØRLEGGERE!$A$7:$A$18,ÅRSTOT!$A12)+SUMIFS(MURERE!D$7:D$18,MURERE!$A$7:$A$18,ÅRSTOT!$A12)+SUMIFS('BLIKK OG VENTILASJON'!D$7:D$18,'BLIKK OG VENTILASJON'!$A$7:$A$18,ÅRSTOT!$A12)+SUMIFS(ISOLATØR!D$7:D$18,ISOLATØR!$A$7:$A$18,ÅRSTOT!$A12)+SUMIFS(MALERE!D$7:D$18,MALERE!$A$7:$A$18,ÅRSTOT!$A12)+SUMIFS(TAKTEKKERE!D$7:D$18,TAKTEKKERE!$A$7:$A$18,ÅRSTOT!$A12) -> 35780.91 | E12: =SUMIFS(BETONG!E$7:E$18,BETONG!$A$7:$A$18,ÅRSTOT!$A12)+SUMIFS(TØMRERE!E$7:E$18,TØMRERE!$A$7:$A$18,ÅRSTOT!$A12)+SUMIFS(RØRLEGGERE!E$7:E$18,RØRLEGGERE!$A$7:$A$18,ÅRSTOT!$A12)+SUMIFS(MURERE!E$7:E$18,MURERE!$A$7:$A$18,ÅRSTOT!$A12)+SUMIFS('BLIKK OG VENTILASJON'!E$7:E$18,'BLIKK OG VENTILASJON'!$A$7:$A$18,ÅRSTOT!$A12)+SUMIFS(ISOLATØR!E$7:E$18,ISOLATØR!$A$7:$A$18,ÅRSTOT!$A12)+SUMIFS(MALERE!E$7:E$18,MALERE!$A$7:$A$18,ÅRSTOT!$A12)+SUMIFS(TAKTEKKERE!E$7:E$18,TAKTEKKERE!$A$7:$A$18,ÅRSTOT!$A12) -> 2226 | F12: 329.6834262 | G12: 197.0435759 | H12: 321.914936 | I12: =SUMIFS(BETONG!I$7:I$18,BETONG!$A$7:$A$18,ÅRSTOT!$A12)+SUMIFS(TØMRERE!I$7:I$18,TØMRERE!$A$7:$A$18,ÅRSTOT!$A12)+SUMIFS(RØRLEGGERE!I$7:I$18,RØRLEGGERE!$A$7:$A$18,ÅRSTOT!$A12)+SUMIFS(MURERE!I$7:I$18,MURERE!$A$7:$A$18,ÅRSTOT!$A12)+SUMIFS('BLIKK OG VENTILASJON'!I$7:I$18,'BLIKK OG VENTILASJON'!$A$7:$A$18,ÅRSTOT!$A12)+SUMIFS(ISOLATØR!I$7:I$18,ISOLATØR!$A$7:$A$18,ÅRSTOT!$A12)+SUMIFS(MALERE!I$7:I$18,MALERE!$A$7:$A$18,ÅRSTOT!$A12)+SUMIFS(TAKTEKKERE!I$7:I$18,TAKTEKKERE!$A$7:$A$18,ÅRSTOT!$A12) -> 15133578 | J12: =SUMIFS(BETONG!J$7:J$18,BETONG!$A$7:$A$18,ÅRSTOT!$A12)+SUMIFS(TØMRERE!J$7:J$18,TØMRERE!$A$7:$A$18,ÅRSTOT!$A12)+SUMIFS(RØRLEGGERE!J$7:J$18,RØRLEGGERE!$A$7:$A$18,ÅRSTOT!$A12)+SUMIFS(MURERE!J$7:J$18,MURERE!$A$7:$A$18,ÅRSTOT!$A12)+SUMIFS('BLIKK OG VENTILASJON'!J$7:J$18,'BLIKK OG VENTILASJON'!$A$7:$A$18,ÅRSTOT!$A12)+SUMIFS(ISOLATØR!J$7:J$18,ISOLATØR!$A$7:$A$18,ÅRSTOT!$A12)+SUMIFS(MALERE!J$7:J$18,MALERE!$A$7:$A$18,ÅRSTOT!$A12)+SUMIFS(TAKTEKKERE!J$7:J$18,TAKTEKKERE!$A$7:$A$18,ÅRSTOT!$A12) -> 629711 | K12: 331.9572547 | L12: -0.220516589 | M12: -0.0302518428
A13: Sandnes | B13: =SUMIFS(BETONG!B$7:B$18,BETONG!$A$7:$A$18,ÅRSTOT!$A13)+SUMIFS(TØMRERE!B$7:B$18,TØMRERE!$A$7:$A$18,ÅRSTOT!$A13)+SUMIFS(RØRLEGGERE!B$7:B$18,RØRLEGGERE!$A$7:$A$18,ÅRSTOT!$A13)+SUMIFS(MURERE!B$7:B$18,MURERE!$A$7:$A$18,ÅRSTOT!$A13)+SUMIFS('BLIKK OG VENTILASJON'!B$7:B$18,'BLIKK OG VENTILASJON'!$A$7:$A$18,ÅRSTOT!$A13)+SUMIFS(ISOLATØR!B$7:B$18,ISOLATØR!$A$7:$A$18,ÅRSTOT!$A13)+SUMIFS(MALERE!B$7:B$18,MALERE!$A$7:$A$18,ÅRSTOT!$A13)+SUMIFS(TAKTEKKERE!B$7:B$18,TAKTEKKERE!$A$7:$A$18,ÅRSTOT!$A13) -> 37531607.34 | C13: =SUMIFS(BETONG!C$7:C$18,BETONG!$A$7:$A$18,ÅRSTOT!$A13)+SUMIFS(TØMRERE!C$7:C$18,TØMRERE!$A$7:$A$18,ÅRSTOT!$A13)+SUMIFS(RØRLEGGERE!C$7:C$18,RØRLEGGERE!$A$7:$A$18,ÅRSTOT!$A13)+SUMIFS(MURERE!C$7:C$18,MURERE!$A$7:$A$18,ÅRSTOT!$A13)+SUMIFS('BLIKK OG VENTILASJON'!C$7:C$18,'BLIKK OG VENTILASJON'!$A$7:$A$18,ÅRSTOT!$A13)+SUMIFS(ISOLATØR!C$7:C$18,ISOLATØR!$A$7:$A$18,ÅRSTOT!$A13)+SUMIFS(MALERE!C$7:C$18,MALERE!$A$7:$A$18,ÅRSTOT!$A13)+SUMIFS(TAKTEKKERE!C$7:C$18,TAKTEKKERE!$A$7:$A$18,ÅRSTOT!$A13) -> 0 | D13: =SUMIFS(BETONG!D$7:D$18,BETONG!$A$7:$A$18,ÅRSTOT!$A13)+SUMIFS(TØMRERE!D$7:D$18,TØMRERE!$A$7:$A$18,ÅRSTOT!$A13)+SUMIFS(RØRLEGGERE!D$7:D$18,RØRLEGGERE!$A$7:$A$18,ÅRSTOT!$A13)+SUMIFS(MURERE!D$7:D$18,MURERE!$A$7:$A$18,ÅRSTOT!$A13)+SUMIFS('BLIKK OG VENTILASJON'!D$7:D$18,'BLIKK OG VENTILASJON'!$A$7:$A$18,ÅRSTOT!$A13)+SUMIFS(ISOLATØR!D$7:D$18,ISOLATØR!$A$7:$A$18,ÅRSTOT!$A13)+SUMIFS(MALERE!D$7:D$18,MALERE!$A$7:$A$18,ÅRSTOT!$A13)+SUMIFS(TAKTEKKERE!D$7:D$18,TAKTEKKERE!$A$7:$A$18,ÅRSTOT!$A13) -> 114758.03 | E13: =SUMIFS(BETONG!E$7:E$18,BETONG!$A$7:$A$18,ÅRSTOT!$A13)+SUMIFS(TØMRERE!E$7:E$18,TØMRERE!$A$7:$A$18,ÅRSTOT!$A13)+SUMIFS(RØRLEGGERE!E$7:E$18,RØRLEGGERE!$A$7:$A$18,ÅRSTOT!$A13)+SUMIFS(MURERE!E$7:E$18,MURERE!$A$7:$A$18,ÅRSTOT!$A13)+SUMIFS('BLIKK OG VENTILASJON'!E$7:E$18,'BLIKK OG VENTILASJON'!$A$7:$A$18,ÅRSTOT!$A13)+SUMIFS(ISOLATØR!E$7:E$18,ISOLATØR!$A$7:$A$18,ÅRSTOT!$A13)+SUMIFS(MALERE!E$7:E$18,MALERE!$A$7:$A$18,ÅRSTOT!$A13)+SUMIFS(TAKTEKKERE!E$7:E$18,TAKTEKKERE!$A$7:$A$18,ÅRSTOT!$A13) -> 0 | F13: 327.0499445 | G13: 0 | H13: 327.0499445 | I13: =SUMIFS(BETONG!I$7:I$18,BETONG!$A$7:$A$18,ÅRSTOT!$A13)+SUMIFS(TØMRERE!I$7:I$18,TØMRERE!$A$7:$A$18,ÅRSTOT!$A13)+SUMIFS(RØRLEGGERE!I$7:I$18,RØRLEGGERE!$A$7:$A$18,ÅRSTOT!$A13)+SUMIFS(MURERE!I$7:I$18,MURERE!$A$7:$A$18,ÅRSTOT!$A13)+SUMIFS('BLIKK OG VENTILASJON'!I$7:I$18,'BLIKK OG VENTILASJON'!$A$7:$A$18,ÅRSTOT!$A13)+SUMIFS(ISOLATØR!I$7:I$18,ISOLATØR!$A$7:$A$18,ÅRSTOT!$A13)+SUMIFS(MALERE!I$7:I$18,MALERE!$A$7:$A$18,ÅRSTOT!$A13)+SUMIFS(TAKTEKKERE!I$7:I$18,TAKTEKKERE!$A$7:$A$18,ÅRSTOT!$A13) -> 13507839.1 | J13: =SUMIFS(BETONG!J$7:J$18,BETONG!$A$7:$A$18,ÅRSTOT!$A13)+SUMIFS(TØMRERE!J$7:J$18,TØMRERE!$A$7:$A$18,ÅRSTOT!$A13)+SUMIFS(RØRLEGGERE!J$7:J$18,RØRLEGGERE!$A$7:$A$18,ÅRSTOT!$A13)+SUMIFS(MURERE!J$7:J$18,MURERE!$A$7:$A$18,ÅRSTOT!$A13)+SUMIFS('BLIKK OG VENTILASJON'!J$7:J$18,'BLIKK OG VENTILASJON'!$A$7:$A$18,ÅRSTOT!$A13)+SUMIFS(ISOLATØR!J$7:J$18,ISOLATØR!$A$7:$A$18,ÅRSTOT!$A13)+SUMIFS(MALERE!J$7:J$18,MALERE!$A$7:$A$18,ÅRSTOT!$A13)+SUMIFS(TAKTEKKERE!J$7:J$18,TAKTEKKERE!$A$7:$A$18,ÅRSTOT!$A13) -> 0 | K13: 333.3502569 | L13: 1.778505656 | M13: -0.01889997763
A14: Stavanger | B14: =SUMIFS(BETONG!B$7:B$18,BETONG!$A$7:$A$18,ÅRSTOT!$A14)+SUMIFS(TØMRERE!B$7:B$18,TØMRERE!$A$7:$A$18,ÅRSTOT!$A14)+SUMIFS(RØRLEGGERE!B$7:B$18,RØRLEGGERE!$A$7:$A$18,ÅRSTOT!$A14)+SUMIFS(MURERE!B$7:B$18,MURERE!$A$7:$A$18,ÅRSTOT!$A14)+SUMIFS('BLIKK OG VENTILASJON'!B$7:B$18,'BLIKK OG VENTILASJON'!$A$7:$A$18,ÅRSTOT!$A14)+SUMIFS(ISOLATØR!B$7:B$18,ISOLATØR!$A$7:$A$18,ÅRSTOT!$A14)+SUMIFS(MALERE!B$7:B$18,MALERE!$A$7:$A$18,ÅRSTOT!$A14)+SUMIFS(TAKTEKKERE!B$7:B$18,TAKTEKKERE!$A$7:$A$18,ÅRSTOT!$A14) -> 4461131.5 | C14: =SUMIFS(BETONG!C$7:C$18,BETONG!$A$7:$A$18,ÅRSTOT!$A14)+SUMIFS(TØMRERE!C$7:C$18,TØMRERE!$A$7:$A$18,ÅRSTOT!$A14)+SUMIFS(RØRLEGGERE!C$7:C$18,RØRLEGGERE!$A$7:$A$18,ÅRSTOT!$A14)+SUMIFS(MURERE!C$7:C$18,MURERE!$A$7:$A$18,ÅRSTOT!$A14)+SUMIFS('BLIKK OG VENTILASJON'!C$7:C$18,'BLIKK OG VENTILASJON'!$A$7:$A$18,ÅRSTOT!$A14)+SUMIFS(ISOLATØR!C$7:C$18,ISOLATØR!$A$7:$A$18,ÅRSTOT!$A14)+SUMIFS(MALERE!C$7:C$18,MALERE!$A$7:$A$18,ÅRSTOT!$A14)+SUMIFS(TAKTEKKERE!C$7:C$18,TAKTEKKERE!$A$7:$A$18,ÅRSTOT!$A14) -> 0 | D14: =SUMIFS(BETONG!D$7:D$18,BETONG!$A$7:$A$18,ÅRSTOT!$A14)+SUMIFS(TØMRERE!D$7:D$18,TØMRERE!$A$7:$A$18,ÅRSTOT!$A14)+SUMIFS(RØRLEGGERE!D$7:D$18,RØRLEGGERE!$A$7:$A$18,ÅRSTOT!$A14)+SUMIFS(MURERE!D$7:D$18,MURERE!$A$7:$A$18,ÅRSTOT!$A14)+SUMIFS('BLIKK OG VENTILASJON'!D$7:D$18,'BLIKK OG VENTILASJON'!$A$7:$A$18,ÅRSTOT!$A14)+SUMIFS(ISOLATØR!D$7:D$18,ISOLATØR!$A$7:$A$18,ÅRSTOT!$A14)+SUMIFS(MALERE!D$7:D$18,MALERE!$A$7:$A$18,ÅRSTOT!$A14)+SUMIFS(TAKTEKKERE!D$7:D$18,TAKTEKKERE!$A$7:$A$18,ÅRSTOT!$A14) -> 13747 | E14: =SUMIFS(BETONG!E$7:E$18,BETONG!$A$7:$A$18,ÅRSTOT!$A14)+SUMIFS(TØMRERE!E$7:E$18,TØMRERE!$A$7:$A$18,ÅRSTOT!$A14)+SUMIFS(RØRLEGGERE!E$7:E$18,RØRLEGGERE!$A$7:$A$18,ÅRSTOT!$A14)+SUMIFS(MURERE!E$7:E$18,MURERE!$A$7:$A$18,ÅRSTOT!$A14)+SUMIFS('BLIKK OG VENTILASJON'!E$7:E$18,'BLIKK OG VENTILASJON'!$A$7:$A$18,ÅRSTOT!$A14)+SUMIFS(ISOLATØR!E$7:E$18,ISOLATØR!$A$7:$A$18,ÅRSTOT!$A14)+SUMIFS(MALERE!E$7:E$18,MALERE!$A$7:$A$18,ÅRSTOT!$A14)+SUMIFS(TAKTEKKERE!E$7:E$18,TAKTEKKERE!$A$7:$A$18,ÅRSTOT!$A14) -> 0 | F14: 324.5167309 | G14: 0 | H14: 324.5167309 | I14: =SUMIFS(BETONG!I$7:I$18,BETONG!$A$7:$A$18,ÅRSTOT!$A14)+SUMIFS(TØMRERE!I$7:I$18,TØMRERE!$A$7:$A$18,ÅRSTOT!$A14)+SUMIFS(RØRLEGGERE!I$7:I$18,RØRLEGGERE!$A$7:$A$18,ÅRSTOT!$A14)+SUMIFS(MURERE!I$7:I$18,MURERE!$A$7:$A$18,ÅRSTOT!$A14)+SUMIFS('BLIKK OG VENTILASJON'!I$7:I$18,'BLIKK OG VENTILASJON'!$A$7:$A$18,ÅRSTOT!$A14)+SUMIFS(ISOLATØR!I$7:I$18,ISOLATØR!$A$7:$A$18,ÅRSTOT!$A14)+SUMIFS(MALERE!I$7:I$18,MALERE!$A$7:$A$18,ÅRSTOT!$A14)+SUMIFS(TAKTEKKERE!I$7:I$18,TAKTEKKERE!$A$7:$A$18,ÅRSTOT!$A14) -> 5391913.65 | J14: =SUMIFS(BETONG!J$7:J$18,BETONG!$A$7:$A$18,ÅRSTOT!$A14)+SUMIFS(TØMRERE!J$7:J$18,TØMRERE!$A$7:$A$18,ÅRSTOT!$A14)+SUMIFS(RØRLEGGERE!J$7:J$18,RØRLEGGERE!$A$7:$A$18,ÅRSTOT!$A14)+SUMIFS(MURERE!J$7:J$18,MURERE!$A$7:$A$18,ÅRSTOT!$A14)+SUMIFS('BLIKK OG VENTILASJON'!J$7:J$18,'BLIKK OG VENTILASJON'!$A$7:$A$18,ÅRSTOT!$A14)+SUMIFS(ISOLATØR!J$7:J$18,ISOLATØR!$A$7:$A$18,ÅRSTOT!$A14)+SUMIFS(MALERE!J$7:J$18,MALERE!$A$7:$A$18,ÅRSTOT!$A14)+SUMIFS(TAKTEKKERE!J$7:J$18,TAKTEKKERE!$A$7:$A$18,ÅRSTOT!$A14) -> 0 | K14: 293.0786058 | L14: -0.1726255668 | M14: 0.1072685775
A15: Telemark | B15: =SUMIFS(BETONG!B$7:B$18,BETONG!$A$7:$A$18,ÅRSTOT!$A15)+SUMIFS(TØMRERE!B$7:B$18,TØMRERE!$A$7:$A$18,ÅRSTOT!$A15)+SUMIFS(RØRLEGGERE!B$7:B$18,RØRLEGGERE!$A$7:$A$18,ÅRSTOT!$A15)+SUMIFS(MURERE!B$7:B$18,MURERE!$A$7:$A$18,ÅRSTOT!$A15)+SUMIFS('BLIKK OG VENTILASJON'!B$7:B$18,'BLIKK OG VENTILASJON'!$A$7:$A$18,ÅRSTOT!$A15)+SUMIFS(ISOLATØR!B$7:B$18,ISOLATØR!$A$7:$A$18,ÅRSTOT!$A15)+SUMIFS(MALERE!B$7:B$18,MALERE!$A$7:$A$18,ÅRSTOT!$A15)+SUMIFS(TAKTEKKERE!B$7:B$18,TAKTEKKERE!$A$7:$A$18,ÅRSTOT!$A15) -> 14382440.64 | C15: =SUMIFS(BETONG!C$7:C$18,BETONG!$A$7:$A$18,ÅRSTOT!$A15)+SUMIFS(TØMRERE!C$7:C$18,TØMRERE!$A$7:$A$18,ÅRSTOT!$A15)+SUMIFS(RØRLEGGERE!C$7:C$18,RØRLEGGERE!$A$7:$A$18,ÅRSTOT!$A15)+SUMIFS(MURERE!C$7:C$18,MURERE!$A$7:$A$18,ÅRSTOT!$A15)+SUMIFS('BLIKK OG VENTILASJON'!C$7:C$18,'BLIKK OG VENTILASJON'!$A$7:$A$18,ÅRSTOT!$A15)+SUMIFS(ISOLATØR!C$7:C$18,ISOLATØR!$A$7:$A$18,ÅRSTOT!$A15)+SUMIFS(MALERE!C$7:C$18,MALERE!$A$7:$A$18,ÅRSTOT!$A15)+SUMIFS(TAKTEKKERE!C$7:C$18,TAKTEKKERE!$A$7:$A$18,ÅRSTOT!$A15) -> 2568097 | D15: =SUMIFS(BETONG!D$7:D$18,BETONG!$A$7:$A$18,ÅRSTOT!$A15)+SUMIFS(TØMRERE!D$7:D$18,TØMRERE!$A$7:$A$18,ÅRSTOT!$A15)+SUMIFS(RØRLEGGERE!D$7:D$18,RØRLEGGERE!$A$7:$A$18,ÅRSTOT!$A15)+SUMIFS(MURERE!D$7:D$18,MURERE!$A$7:$A$18,ÅRSTOT!$A15)+SUMIFS('BLIKK OG VENTILASJON'!D$7:D$18,'BLIKK OG VENTILASJON'!$A$7:$A$18,ÅRSTOT!$A15)+SUMIFS(ISOLATØR!D$7:D$18,ISOLATØR!$A$7:$A$18,ÅRSTOT!$A15)+SUMIFS(MALERE!D$7:D$18,MALERE!$A$7:$A$18,ÅRSTOT!$A15)+SUMIFS(TAKTEKKERE!D$7:D$18,TAKTEKKERE!$A$7:$A$18,ÅRSTOT!$A15) -> 42775.4 | E15: =SUMIFS(BETONG!E$7:E$18,BETONG!$A$7:$A$18,ÅRSTOT!$A15)+SUMIFS(TØMRERE!E$7:E$18,TØMRERE!$A$7:$A$18,ÅRSTOT!$A15)+SUMIFS(RØRLEGGERE!E$7:E$18,RØRLEGGERE!$A$7:$A$18,ÅRSTOT!$A15)+SUMIFS(MURERE!E$7:E$18,MURERE!$A$7:$A$18,ÅRSTOT!$A15)+SUMIFS('BLIKK OG VENTILASJON'!E$7:E$18,'BLIKK OG VENTILASJON'!$A$7:$A$18,ÅRSTOT!$A15)+SUMIFS(ISOLATØR!E$7:E$18,ISOLATØR!$A$7:$A$18,ÅRSTOT!$A15)+SUMIFS(MALERE!E$7:E$18,MALERE!$A$7:$A$18,ÅRSTOT!$A15)+SUMIFS(TAKTEKKERE!E$7:E$18,TAKTEKKERE!$A$7:$A$18,ÅRSTOT!$A15) -> 11080.81 | F15: 336.2315873 | G15: 231.7607648 | H15: 314.7369197 | I15: =SUMIFS(BETONG!I$7:I$18,BETONG!$A$7:$A$18,ÅRSTOT!$A15)+SUMIFS(TØMRERE!I$7:I$18,TØMRERE!$A$7:$A$18,ÅRSTOT!$A15)+SUMIFS(RØRLEGGERE!I$7:I$18,RØRLEGGERE!$A$7:$A$18,ÅRSTOT!$A15)+SUMIFS(MURERE!I$7:I$18,MURERE!$A$7:$A$18,ÅRSTOT!$A15)+SUMIFS('BLIKK OG VENTILASJON'!I$7:I$18,'BLIKK OG VENTILASJON'!$A$7:$A$18,ÅRSTOT!$A15)+SUMIFS(ISOLATØR!I$7:I$18,ISOLATØR!$A$7:$A$18,ÅRSTOT!$A15)+SUMIFS(MALERE!I$7:I$18,MALERE!$A$7:$A$18,ÅRSTOT!$A15)+SUMIFS(TAKTEKKERE!I$7:I$18,TAKTEKKERE!$A$7:$A$18,ÅRSTOT!$A15) -> 26445934.6 | J15: =SUMIFS(BETONG!J$7:J$18,BETONG!$A$7:$A$18,ÅRSTOT!$A15)+SUMIFS(TØMRERE!J$7:J$18,TØMRERE!$A$7:$A$18,ÅRSTOT!$A15)+SUMIFS(RØRLEGGERE!J$7:J$18,RØRLEGGERE!$A$7:$A$18,ÅRSTOT!$A15)+SUMIFS(MURERE!J$7:J$18,MURERE!$A$7:$A$18,ÅRSTOT!$A15)+SUMIFS('BLIKK OG VENTILASJON'!J$7:J$18,'BLIKK OG VENTILASJON'!$A$7:$A$18,ÅRSTOT!$A15)+SUMIFS(ISOLATØR!J$7:J$18,ISOLATØR!$A$7:$A$18,ÅRSTOT!$A15)+SUMIFS(MALERE!J$7:J$18,MALERE!$A$7:$A$18,ÅRSTOT!$A15)+SUMIFS(TAKTEKKERE!J$7:J$18,TAKTEKKERE!$A$7:$A$18,ÅRSTOT!$A15) -> 265600 | K15: 305.0498159 | L15: -0.4561568401 | M15: 0.0317558094
A16: Trondheim | B16: =SUMIFS(BETONG!B$7:B$18,BETONG!$A$7:$A$18,ÅRSTOT!$A16)+SUMIFS(TØMRERE!B$7:B$18,TØMRERE!$A$7:$A$18,ÅRSTOT!$A16)+SUMIFS(RØRLEGGERE!B$7:B$18,RØRLEGGERE!$A$7:$A$18,ÅRSTOT!$A16)+SUMIFS(MURERE!B$7:B$18,MURERE!$A$7:$A$18,ÅRSTOT!$A16)+SUMIFS('BLIKK OG VENTILASJON'!B$7:B$18,'BLIKK OG VENTILASJON'!$A$7:$A$18,ÅRSTOT!$A16)+SUMIFS(ISOLATØR!B$7:B$18,ISOLATØR!$A$7:$A$18,ÅRSTOT!$A16)+SUMIFS(MALERE!B$7:B$18,MALERE!$A$7:$A$18,ÅRSTOT!$A16)+SUMIFS(TAKTEKKERE!B$7:B$18,TAKTEKKERE!$A$7:$A$18,ÅRSTOT!$A16) -> 158804706.4 | C16: =SUMIFS(BETONG!C$7:C$18,BETONG!$A$7:$A$18,ÅRSTOT!$A16)+SUMIFS(TØMRERE!C$7:C$18,TØMRERE!$A$7:$A$18,ÅRSTOT!$A16)+SUMIFS(RØRLEGGERE!C$7:C$18,RØRLEGGERE!$A$7:$A$18,ÅRSTOT!$A16)+SUMIFS(MURERE!C$7:C$18,MURERE!$A$7:$A$18,ÅRSTOT!$A16)+SUMIFS('BLIKK OG VENTILASJON'!C$7:C$18,'BLIKK OG VENTILASJON'!$A$7:$A$18,ÅRSTOT!$A16)+SUMIFS(ISOLATØR!C$7:C$18,ISOLATØR!$A$7:$A$18,ÅRSTOT!$A16)+SUMIFS(MALERE!C$7:C$18,MALERE!$A$7:$A$18,ÅRSTOT!$A16)+SUMIFS(TAKTEKKERE!C$7:C$18,TAKTEKKERE!$A$7:$A$18,ÅRSTOT!$A16) -> 21229822.51 | D16: =SUMIFS(BETONG!D$7:D$18,BETONG!$A$7:$A$18,ÅRSTOT!$A16)+SUMIFS(TØMRERE!D$7:D$18,TØMRERE!$A$7:$A$18,ÅRSTOT!$A16)+SUMIFS(RØRLEGGERE!D$7:D$18,RØRLEGGERE!$A$7:$A$18,ÅRSTOT!$A16)+SUMIFS(MURERE!D$7:D$18,MURERE!$A$7:$A$18,ÅRSTOT!$A16)+SUMIFS('BLIKK OG VENTILASJON'!D$7:D$18,'BLIKK OG VENTILASJON'!$A$7:$A$18,ÅRSTOT!$A16)+SUMIFS(ISOLATØR!D$7:D$18,ISOLATØR!$A$7:$A$18,ÅRSTOT!$A16)+SUMIFS(MALERE!D$7:D$18,MALERE!$A$7:$A$18,ÅRSTOT!$A16)+SUMIFS(TAKTEKKERE!D$7:D$18,TAKTEKKERE!$A$7:$A$18,ÅRSTOT!$A16) -> 489771.37 | E16: =SUMIFS(BETONG!E$7:E$18,BETONG!$A$7:$A$18,ÅRSTOT!$A16)+SUMIFS(TØMRERE!E$7:E$18,TØMRERE!$A$7:$A$18,ÅRSTOT!$A16)+SUMIFS(RØRLEGGERE!E$7:E$18,RØRLEGGERE!$A$7:$A$18,ÅRSTOT!$A16)+SUMIFS(MURERE!E$7:E$18,MURERE!$A$7:$A$18,ÅRSTOT!$A16)+SUMIFS('BLIKK OG VENTILASJON'!E$7:E$18,'BLIKK OG VENTILASJON'!$A$7:$A$18,ÅRSTOT!$A16)+SUMIFS(ISOLATØR!E$7:E$18,ISOLATØR!$A$7:$A$18,ÅRSTOT!$A16)+SUMIFS(MALERE!E$7:E$18,MALERE!$A$7:$A$18,ÅRSTOT!$A16)+SUMIFS(TAKTEKKERE!E$7:E$18,TAKTEKKERE!$A$7:$A$18,ÅRSTOT!$A16) -> 98806.93 | F16: =IF(D16=0,0,B16/D16) -> 324.2425264 | G16: 214.8616753 | H16: =IF(D16+E16=0,0,(B16+C16)/(D16+E16)) -> 305.8803372 | I16: =SUMIFS(BETONG!I$7:I$18,BETONG!$A$7:$A$18,ÅRSTOT!$A16)+SUMIFS(TØMRERE!I$7:I$18,TØMRERE!$A$7:$A$18,ÅRSTOT!$A16)+SUMIFS(RØRLEGGERE!I$7:I$18,RØRLEGGERE!$A$7:$A$18,ÅRSTOT!$A16)+SUMIFS(MURERE!I$7:I$18,MURERE!$A$7:$A$18,ÅRSTOT!$A16)+SUMIFS('BLIKK OG VENTILASJON'!I$7:I$18,'BLIKK OG VENTILASJON'!$A$7:$A$18,ÅRSTOT!$A16)+SUMIFS(ISOLATØR!I$7:I$18,ISOLATØR!$A$7:$A$18,ÅRSTOT!$A16)+SUMIFS(MALERE!I$7:I$18,MALERE!$A$7:$A$18,ÅRSTOT!$A16)+SUMIFS(TAKTEKKERE!I$7:I$18,TAKTEKKERE!$A$7:$A$18,ÅRSTOT!$A16) -> 124184190 | J16: =SUMIFS(BETONG!J$7:J$18,BETONG!$A$7:$A$18,ÅRSTOT!$A16)+SUMIFS(TØMRERE!J$7:J$18,TØMRERE!$A$7:$A$18,ÅRSTOT!$A16)+SUMIFS(RØRLEGGERE!J$7:J$18,RØRLEGGERE!$A$7:$A$18,ÅRSTOT!$A16)+SUMIFS(MURERE!J$7:J$18,MURERE!$A$7:$A$18,ÅRSTOT!$A16)+SUMIFS('BLIKK OG VENTILASJON'!J$7:J$18,'BLIKK OG VENTILASJON'!$A$7:$A$18,ÅRSTOT!$A16)+SUMIFS(ISOLATØR!J$7:J$18,ISOLATØR!$A$7:$A$18,ÅRSTOT!$A16)+SUMIFS(MALERE!J$7:J$18,MALERE!$A$7:$A$18,ÅRSTOT!$A16)+SUMIFS(TAKTEKKERE!J$7:J$18,TAKTEKKERE!$A$7:$A$18,ÅRSTOT!$A16) -> 12547056.78 | K16: 298.5266997 | L16: 0.2787836065 | M16: 0.02463309803
A17: Vestfold | B17: =SUMIFS(BETONG!B$7:B$18,BETONG!$A$7:$A$18,ÅRSTOT!$A17)+SUMIFS(TØMRERE!B$7:B$18,TØMRERE!$A$7:$A$18,ÅRSTOT!$A17)+SUMIFS(RØRLEGGERE!B$7:B$18,RØRLEGGERE!$A$7:$A$18,ÅRSTOT!$A17)+SUMIFS(MURERE!B$7:B$18,MURERE!$A$7:$A$18,ÅRSTOT!$A17)+SUMIFS('BLIKK OG VENTILASJON'!B$7:B$18,'BLIKK OG VENTILASJON'!$A$7:$A$18,ÅRSTOT!$A17)+SUMIFS(ISOLATØR!B$7:B$18,ISOLATØR!$A$7:$A$18,ÅRSTOT!$A17)+SUMIFS(MALERE!B$7:B$18,MALERE!$A$7:$A$18,ÅRSTOT!$A17)+SUMIFS(TAKTEKKERE!B$7:B$18,TAKTEKKERE!$A$7:$A$18,ÅRSTOT!$A17) -> 4819741.7 | C17: =SUMIFS(BETONG!C$7:C$18,BETONG!$A$7:$A$18,ÅRSTOT!$A17)+SUMIFS(TØMRERE!C$7:C$18,TØMRERE!$A$7:$A$18,ÅRSTOT!$A17)+SUMIFS(RØRLEGGERE!C$7:C$18,RØRLEGGERE!$A$7:$A$18,ÅRSTOT!$A17)+SUMIFS(MURERE!C$7:C$18,MURERE!$A$7:$A$18,ÅRSTOT!$A17)+SUMIFS('BLIKK OG VENTILASJON'!C$7:C$18,'BLIKK OG VENTILASJON'!$A$7:$A$18,ÅRSTOT!$A17)+SUMIFS(ISOLATØR!C$7:C$18,ISOLATØR!$A$7:$A$18,ÅRSTOT!$A17)+SUMIFS(MALERE!C$7:C$18,MALERE!$A$7:$A$18,ÅRSTOT!$A17)+SUMIFS(TAKTEKKERE!C$7:C$18,TAKTEKKERE!$A$7:$A$18,ÅRSTOT!$A17) -> 0 | D17: =SUMIFS(BETONG!D$7:D$18,BETONG!$A$7:$A$18,ÅRSTOT!$A17)+SUMIFS(TØMRERE!D$7:D$18,TØMRERE!$A$7:$A$18,ÅRSTOT!$A17)+SUMIFS(RØRLEGGERE!D$7:D$18,RØRLEGGERE!$A$7:$A$18,ÅRSTOT!$A17)+SUMIFS(MURERE!D$7:D$18,MURERE!$A$7:$A$18,ÅRSTOT!$A17)+SUMIFS('BLIKK OG VENTILASJON'!D$7:D$18,'BLIKK OG VENTILASJON'!$A$7:$A$18,ÅRSTOT!$A17)+SUMIFS(ISOLATØR!D$7:D$18,ISOLATØR!$A$7:$A$18,ÅRSTOT!$A17)+SUMIFS(MALERE!D$7:D$18,MALERE!$A$7:$A$18,ÅRSTOT!$A17)+SUMIFS(TAKTEKKERE!D$7:D$18,TAKTEKKERE!$A$7:$A$18,ÅRSTOT!$A17) -> 14570 | E17: =SUMIFS(BETONG!E$7:E$18,BETONG!$A$7:$A$18,ÅRSTOT!$A17)+SUMIFS(TØMRERE!E$7:E$18,TØMRERE!$A$7:$A$18,ÅRSTOT!$A17)+SUMIFS(RØRLEGGERE!E$7:E$18,RØRLEGGERE!$A$7:$A$18,ÅRSTOT!$A17)+SUMIFS(MURERE!E$7:E$18,MURERE!$A$7:$A$18,ÅRSTOT!$A17)+SUMIFS('BLIKK OG VENTILASJON'!E$7:E$18,'BLIKK OG VENTILASJON'!$A$7:$A$18,ÅRSTOT!$A17)+SUMIFS(ISOLATØR!E$7:E$18,ISOLATØR!$A$7:$A$18,ÅRSTOT!$A17)+SUMIFS(MALERE!E$7:E$18,MALERE!$A$7:$A$18,ÅRSTOT!$A17)+SUMIFS(TAKTEKKERE!E$7:E$18,TAKTEKKERE!$A$7:$A$18,ÅRSTOT!$A17) -> 0 | F17: 330.7990185 | G17: 0 | H17: 330.7990185 | I17: =SUMIFS(BETONG!I$7:I$18,BETONG!$A$7:$A$18,ÅRSTOT!$A17)+SUMIFS(TØMRERE!I$7:I$18,TØMRERE!$A$7:$A$18,ÅRSTOT!$A17)+SUMIFS(RØRLEGGERE!I$7:I$18,RØRLEGGERE!$A$7:$A$18,ÅRSTOT!$A17)+SUMIFS(MURERE!I$7:I$18,MURERE!$A$7:$A$18,ÅRSTOT!$A17)+SUMIFS('BLIKK OG VENTILASJON'!I$7:I$18,'BLIKK OG VENTILASJON'!$A$7:$A$18,ÅRSTOT!$A17)+SUMIFS(ISOLATØR!I$7:I$18,ISOLATØR!$A$7:$A$18,ÅRSTOT!$A17)+SUMIFS(MALERE!I$7:I$18,MALERE!$A$7:$A$18,ÅRSTOT!$A17)+SUMIFS(TAKTEKKERE!I$7:I$18,TAKTEKKERE!$A$7:$A$18,ÅRSTOT!$A17) -> 854436.06 | J17: =SUMIFS(BETONG!J$7:J$18,BETONG!$A$7:$A$18,ÅRSTOT!$A17)+SUMIFS(TØMRERE!J$7:J$18,TØMRERE!$A$7:$A$18,ÅRSTOT!$A17)+SUMIFS(RØRLEGGERE!J$7:J$18,RØRLEGGERE!$A$7:$A$18,ÅRSTOT!$A17)+SUMIFS(MURERE!J$7:J$18,MURERE!$A$7:$A$18,ÅRSTOT!$A17)+SUMIFS('BLIKK OG VENTILASJON'!J$7:J$18,'BLIKK OG VENTILASJON'!$A$7:$A$18,ÅRSTOT!$A17)+SUMIFS(ISOLATØR!J$7:J$18,ISOLATØR!$A$7:$A$18,ÅRSTOT!$A17)+SUMIFS(MALERE!J$7:J$18,MALERE!$A$7:$A$18,ÅRSTOT!$A17)+SUMIFS(TAKTEKKERE!J$7:J$18,TAKTEKKERE!$A$7:$A$18,ÅRSTOT!$A17) -> 0 | K17: 450.4143701 | L17: 4.640845378 | M17: -0.2655673519
A18: Østfold | B18: =SUMIFS(BETONG!B$7:B$18,BETONG!$A$7:$A$18,ÅRSTOT!$A18)+SUMIFS(TØMRERE!B$7:B$18,TØMRERE!$A$7:$A$18,ÅRSTOT!$A18)+SUMIFS(RØRLEGGERE!B$7:B$18,RØRLEGGERE!$A$7:$A$18,ÅRSTOT!$A18)+SUMIFS(MURERE!B$7:B$18,MURERE!$A$7:$A$18,ÅRSTOT!$A18)+SUMIFS('BLIKK OG VENTILASJON'!B$7:B$18,'BLIKK OG VENTILASJON'!$A$7:$A$18,ÅRSTOT!$A18)+SUMIFS(ISOLATØR!B$7:B$18,ISOLATØR!$A$7:$A$18,ÅRSTOT!$A18)+SUMIFS(MALERE!B$7:B$18,MALERE!$A$7:$A$18,ÅRSTOT!$A18)+SUMIFS(TAKTEKKERE!B$7:B$18,TAKTEKKERE!$A$7:$A$18,ÅRSTOT!$A18) -> 13918078 | C18: =SUMIFS(BETONG!C$7:C$18,BETONG!$A$7:$A$18,ÅRSTOT!$A18)+SUMIFS(TØMRERE!C$7:C$18,TØMRERE!$A$7:$A$18,ÅRSTOT!$A18)+SUMIFS(RØRLEGGERE!C$7:C$18,RØRLEGGERE!$A$7:$A$18,ÅRSTOT!$A18)+SUMIFS(MURERE!C$7:C$18,MURERE!$A$7:$A$18,ÅRSTOT!$A18)+SUMIFS('BLIKK OG VENTILASJON'!C$7:C$18,'BLIKK OG VENTILASJON'!$A$7:$A$18,ÅRSTOT!$A18)+SUMIFS(ISOLATØR!C$7:C$18,ISOLATØR!$A$7:$A$18,ÅRSTOT!$A18)+SUMIFS(MALERE!C$7:C$18,MALERE!$A$7:$A$18,ÅRSTOT!$A18)+SUMIFS(TAKTEKKERE!C$7:C$18,TAKTEKKERE!$A$7:$A$18,ÅRSTOT!$A18) -> 2949901 | D18: =SUMIFS(BETONG!D$7:D$18,BETONG!$A$7:$A$18,ÅRSTOT!$A18)+SUMIFS(TØMRERE!D$7:D$18,TØMRERE!$A$7:$A$18,ÅRSTOT!$A18)+SUMIFS(RØRLEGGERE!D$7:D$18,RØRLEGGERE!$A$7:$A$18,ÅRSTOT!$A18)+SUMIFS(MURERE!D$7:D$18,MURERE!$A$7:$A$18,ÅRSTOT!$A18)+SUMIFS('BLIKK OG VENTILASJON'!D$7:D$18,'BLIKK OG VENTILASJON'!$A$7:$A$18,ÅRSTOT!$A18)+SUMIFS(ISOLATØR!D$7:D$18,ISOLATØR!$A$7:$A$18,ÅRSTOT!$A18)+SUMIFS(MALERE!D$7:D$18,MALERE!$A$7:$A$18,ÅRSTOT!$A18)+SUMIFS(TAKTEKKERE!D$7:D$18,TAKTEKKERE!$A$7:$A$18,ÅRSTOT!$A18) -> 46031 | E18: =SUMIFS(BETONG!E$7:E$18,BETONG!$A$7:$A$18,ÅRSTOT!$A18)+SUMIFS(TØMRERE!E$7:E$18,TØMRERE!$A$7:$A$18,ÅRSTOT!$A18)+SUMIFS(RØRLEGGERE!E$7:E$18,RØRLEGGERE!$A$7:$A$18,ÅRSTOT!$A18)+SUMIFS(MURERE!E$7:E$18,MURERE!$A$7:$A$18,ÅRSTOT!$A18)+SUMIFS('BLIKK OG VENTILASJON'!E$7:E$18,'BLIKK OG VENTILASJON'!$A$7:$A$18,ÅRSTOT!$A18)+SUMIFS(ISOLATØR!E$7:E$18,ISOLATØR!$A$7:$A$18,ÅRSTOT!$A18)+SUMIFS(MALERE!E$7:E$18,MALERE!$A$7:$A$18,ÅRSTOT!$A18)+SUMIFS(TAKTEKKERE!E$7:E$18,TAKTEKKERE!$A$7:$A$18,ÅRSTOT!$A18) -> 13316 | F18: 302.3631466 | G18: 221.5305647 | H18: 284.226313 | I18: =SUMIFS(BETONG!I$7:I$18,BETONG!$A$7:$A$18,ÅRSTOT!$A18)+SUMIFS(TØMRERE!I$7:I$18,TØMRERE!$A$7:$A$18,ÅRSTOT!$A18)+SUMIFS(RØRLEGGERE!I$7:I$18,RØRLEGGERE!$A$7:$A$18,ÅRSTOT!$A18)+SUMIFS(MURERE!I$7:I$18,MURERE!$A$7:$A$18,ÅRSTOT!$A18)+SUMIFS('BLIKK OG VENTILASJON'!I$7:I$18,'BLIKK OG VENTILASJON'!$A$7:$A$18,ÅRSTOT!$A18)+SUMIFS(ISOLATØR!I$7:I$18,ISOLATØR!$A$7:$A$18,ÅRSTOT!$A18)+SUMIFS(MALERE!I$7:I$18,MALERE!$A$7:$A$18,ÅRSTOT!$A18)+SUMIFS(TAKTEKKERE!I$7:I$18,TAKTEKKERE!$A$7:$A$18,ÅRSTOT!$A18) -> 9501433 | J18: =SUMIFS(BETONG!J$7:J$18,BETONG!$A$7:$A$18,ÅRSTOT!$A18)+SUMIFS(TØMRERE!J$7:J$18,TØMRERE!$A$7:$A$18,ÅRSTOT!$A18)+SUMIFS(RØRLEGGERE!J$7:J$18,RØRLEGGERE!$A$7:$A$18,ÅRSTOT!$A18)+SUMIFS(MURERE!J$7:J$18,MURERE!$A$7:$A$18,ÅRSTOT!$A18)+SUMIFS('BLIKK OG VENTILASJON'!J$7:J$18,'BLIKK OG VENTILASJON'!$A$7:$A$18,ÅRSTOT!$A18)+SUMIFS(ISOLATØR!J$7:J$18,ISOLATØR!$A$7:$A$18,ÅRSTOT!$A18)+SUMIFS(MALERE!J$7:J$18,MALERE!$A$7:$A$18,ÅRSTOT!$A18)+SUMIFS(TAKTEKKERE!J$7:J$18,TAKTEKKERE!$A$7:$A$18,ÅRSTOT!$A18) -> 2279375 | K18: 286.6620758 | L18: 0.4648398826 | M18: -0.008496983071
A19: Oslo | B19: =SUMIFS(BETONG!B$7:B$18,BETONG!$A$7:$A$18,ÅRSTOT!$A19)+SUMIFS(TØMRERE!B$7:B$18,TØMRERE!$A$7:$A$18,ÅRSTOT!$A19)+SUMIFS(RØRLEGGERE!B$7:B$18,RØRLEGGERE!$A$7:$A$18,ÅRSTOT!$A19)+SUMIFS(MURERE!B$7:B$18,MURERE!$A$7:$A$18,ÅRSTOT!$A19)+SUMIFS('BLIKK OG VENTILASJON'!B$7:B$18,'BLIKK OG VENTILASJON'!$A$7:$A$18,ÅRSTOT!$A19)+SUMIFS(ISOLATØR!B$7:B$18,ISOLATØR!$A$7:$A$18,ÅRSTOT!$A19)+SUMIFS(MALERE!B$7:B$18,MALERE!$A$7:$A$18,ÅRSTOT!$A19)+SUMIFS(TAKTEKKERE!B$7:B$18,TAKTEKKERE!$A$7:$A$18,ÅRSTOT!$A19) -> 146003922.1 | C19: =SUMIFS(BETONG!C$7:C$18,BETONG!$A$7:$A$18,ÅRSTOT!$A19)+SUMIFS(TØMRERE!C$7:C$18,TØMRERE!$A$7:$A$18,ÅRSTOT!$A19)+SUMIFS(RØRLEGGERE!C$7:C$18,RØRLEGGERE!$A$7:$A$18,ÅRSTOT!$A19)+SUMIFS(MURERE!C$7:C$18,MURERE!$A$7:$A$18,ÅRSTOT!$A19)+SUMIFS('BLIKK OG VENTILASJON'!C$7:C$18,'BLIKK OG VENTILASJON'!$A$7:$A$18,ÅRSTOT!$A19)+SUMIFS(ISOLATØR!C$7:C$18,ISOLATØR!$A$7:$A$18,ÅRSTOT!$A19)+SUMIFS(MALERE!C$7:C$18,MALERE!$A$7:$A$18,ÅRSTOT!$A19)+SUMIFS(TAKTEKKERE!C$7:C$18,TAKTEKKERE!$A$7:$A$18,ÅRSTOT!$A19) -> 4522933.07 | D19: =SUMIFS(BETONG!D$7:D$18,BETONG!$A$7:$A$18,ÅRSTOT!$A19)+SUMIFS(TØMRERE!D$7:D$18,TØMRERE!$A$7:$A$18,ÅRSTOT!$A19)+SUMIFS(RØRLEGGERE!D$7:D$18,RØRLEGGERE!$A$7:$A$18,ÅRSTOT!$A19)+SUMIFS(MURERE!D$7:D$18,MURERE!$A$7:$A$18,ÅRSTOT!$A19)+SUMIFS('BLIKK OG VENTILASJON'!D$7:D$18,'BLIKK OG VENTILASJON'!$A$7:$A$18,ÅRSTOT!$A19)+SUMIFS(ISOLATØR!D$7:D$18,ISOLATØR!$A$7:$A$18,ÅRSTOT!$A19)+SUMIFS(MALERE!D$7:D$18,MALERE!$A$7:$A$18,ÅRSTOT!$A19)+SUMIFS(TAKTEKKERE!D$7:D$18,TAKTEKKERE!$A$7:$A$18,ÅRSTOT!$A19) -> 435131.9 | E19: =SUMIFS(BETONG!E$7:E$18,BETONG!$A$7:$A$18,ÅRSTOT!$A19)+SUMIFS(TØMRERE!E$7:E$18,TØMRERE!$A$7:$A$18,ÅRSTOT!$A19)+SUMIFS(RØRLEGGERE!E$7:E$18,RØRLEGGERE!$A$7:$A$18,ÅRSTOT!$A19)+SUMIFS(MURERE!E$7:E$18,MURERE!$A$7:$A$18,ÅRSTOT!$A19)+SUMIFS('BLIKK OG VENTILASJON'!E$7:E$18,'BLIKK OG VENTILASJON'!$A$7:$A$18,ÅRSTOT!$A19)+SUMIFS(ISOLATØR!E$7:E$18,ISOLATØR!$A$7:$A$18,ÅRSTOT!$A19)+SUMIFS(MALERE!E$7:E$18,MALERE!$A$7:$A$18,ÅRSTOT!$A19)+SUMIFS(TAKTEKKERE!E$7:E$18,TAKTEKKERE!$A$7:$A$18,ÅRSTOT!$A19) -> 21221.3 | F19: 335.5394585 | G19: 213.1317624 | H19: 329.8472656 | I19: =SUMIFS(BETONG!I$7:I$18,BETONG!$A$7:$A$18,ÅRSTOT!$A19)+SUMIFS(TØMRERE!I$7:I$18,TØMRERE!$A$7:$A$18,ÅRSTOT!$A19)+SUMIFS(RØRLEGGERE!I$7:I$18,RØRLEGGERE!$A$7:$A$18,ÅRSTOT!$A19)+SUMIFS(MURERE!I$7:I$18,MURERE!$A$7:$A$18,ÅRSTOT!$A19)+SUMIFS('BLIKK OG VENTILASJON'!I$7:I$18,'BLIKK OG VENTILASJON'!$A$7:$A$18,ÅRSTOT!$A19)+SUMIFS(ISOLATØR!I$7:I$18,ISOLATØR!$A$7:$A$18,ÅRSTOT!$A19)+SUMIFS(MALERE!I$7:I$18,MALERE!$A$7:$A$18,ÅRSTOT!$A19)+SUMIFS(TAKTEKKERE!I$7:I$18,TAKTEKKERE!$A$7:$A$18,ÅRSTOT!$A19) -> 105329865.8 | J19: =SUMIFS(BETONG!J$7:J$18,BETONG!$A$7:$A$18,ÅRSTOT!$A19)+SUMIFS(TØMRERE!J$7:J$18,TØMRERE!$A$7:$A$18,ÅRSTOT!$A19)+SUMIFS(RØRLEGGERE!J$7:J$18,RØRLEGGERE!$A$7:$A$18,ÅRSTOT!$A19)+SUMIFS(MURERE!J$7:J$18,MURERE!$A$7:$A$18,ÅRSTOT!$A19)+SUMIFS('BLIKK OG VENTILASJON'!J$7:J$18,'BLIKK OG VENTILASJON'!$A$7:$A$18,ÅRSTOT!$A19)+SUMIFS(ISOLATØR!J$7:J$18,ISOLATØR!$A$7:$A$18,ÅRSTOT!$A19)+SUMIFS(MALERE!J$7:J$18,MALERE!$A$7:$A$18,ÅRSTOT!$A19)+SUMIFS(TAKTEKKERE!J$7:J$18,TAKTEKKERE!$A$7:$A$18,ÅRSTOT!$A19) -> 2745163.03 | K19: 332.000097 | L19: 0.3861588168 | M19: -0.006484430146
A20: Landet i alt | B20: =SUM(B7:B19) -> 444655130.1 | C20: =SUM(C7:C19) -> 31709372.58 | D20: =SUM(D7:D19) -> 1370617.75 | E20: =SUM(E7:E19) -> 146651.04 | F20: =IF(D20=0,0,B20/D20) -> 324.4195037 | G20: =IF(E20=0,0,C20/E20) -> 216.2233052 | H20: =IF(D20+E20=0,0,(B20+C20)/(D20+E20)) -> 313.9618411 | I20: =SUM(I7:I19) -> 351250038.1 | J20: =SUM(J7:J19) -> 18797135.81 | K20: 309.7984977 | L20: =IF(I20=0,0,(B20-I20)/I20) -> 0.2659219415 | M20: =IF(K20=0,0,(H20-K20)/K20) -> 0.01343887546
A23: ="MÅLESTATISTIKK FOR ALLE BYGGFAG - 2. HALVÅR "&FORS!$A$14 -> MÅLESTATISTIKK FOR ALLE BYGGFAG - 2. HALVÅR 2021
B25: Målesum i kroner | D25: Timer | F25: ="Fortjeneste 2. halvår "&FORS!$A$14-0 -> Fortjeneste 2. halvår 2021 | I25: =" 2. halvår "&FORS!$A$14-1 -> 2. halvår 2020 | L25: Endringer i %
B26: Innmålt m/ | C26: Innmålt m/ | D26: Innmålt m/ | E26: Innmålt m/ | F26: Innmålt m/ | G26: Innmålt m/ | H26: Gjennom- | I26: Innmålt m/ | J26: Innmålt m/ | K26: Gjen.snitt | L26: Innmålt m/ | M26: Gjen.snitt
B27: overskudd | C27: underskudd | D27: overskudd | E27: underskudd | F27: overskudd | G27: underskudd | H27: snitt | I27: overskudd | J27: underskudd | K27: fortjeneste | L27: overskudd | M27: fortjeneste
A28: Agder | B28: =SUMIFS(BETONG!B$27:B$38,BETONG!$A$27:$A$38,ÅRSTOT!$A28)+SUMIFS(TØMRERE!B$27:B$38,TØMRERE!$A$27:$A$38,ÅRSTOT!$A28)+SUMIFS(RØRLEGGERE!B$27:B$38,RØRLEGGERE!$A$27:$A$38,ÅRSTOT!$A28)+SUMIFS(MURERE!B$27:B$38,MURERE!$A$27:$A$38,ÅRSTOT!$A28)+SUMIFS('BLIKK OG VENTILASJON'!B$27:B$38,'BLIKK OG VENTILASJON'!$A$27:$A$38,ÅRSTOT!$A28)+SUMIFS(ISOLATØR!B$27:B$38,ISOLATØR!$A$27:$A$38,ÅRSTOT!$A28)+SUMIFS(MALERE!B$27:B$38,MALERE!$A$27:$A$38,ÅRSTOT!$A28)+SUMIFS(TAKTEKKERE!B$27:B$38,TAKTEKKERE!$A$27:$A$38,ÅRSTOT!$A28) -> 10963288 | C28: =SUMIFS(BETONG!C$27:C$38,BETONG!$A$27:$A$38,ÅRSTOT!$A28)+SUMIFS(TØMRERE!C$27:C$38,TØMRERE!$A$27:$A$38,ÅRSTOT!$A28)+SUMIFS(RØRLEGGERE!C$27:C$38,RØRLEGGERE!$A$27:$A$38,ÅRSTOT!$A28)+SUMIFS(MURERE!C$27:C$38,MURERE!$A$27:$A$38,ÅRSTOT!$A28)+SUMIFS('BLIKK OG VENTILASJON'!C$27:C$38,'BLIKK OG VENTILASJON'!$A$27:$A$38,ÅRSTOT!$A28)+SUMIFS(ISOLATØR!C$27:C$38,ISOLATØR!$A$27:$A$38,ÅRSTOT!$A28)+SUMIFS(MALERE!C$27:C$38,MALERE!$A$27:$A$38,ÅRSTOT!$A28)+SUMIFS(TAKTEKKERE!C$27:C$38,TAKTEKKERE!$A$27:$A$38,ÅRSTOT!$A28) -> 0 | D28: =SUMIFS(BETONG!D$27:D$38,BETONG!$A$27:$A$38,ÅRSTOT!$A28)+SUMIFS(TØMRERE!D$27:D$38,TØMRERE!$A$27:$A$38,ÅRSTOT!$A28)+SUMIFS(RØRLEGGERE!D$27:D$38,RØRLEGGERE!$A$27:$A$38,ÅRSTOT!$A28)+SUMIFS(MURERE!D$27:D$38,MURERE!$A$27:$A$38,ÅRSTOT!$A28)+SUMIFS('BLIKK OG VENTILASJON'!D$27:D$38,'BLIKK OG VENTILASJON'!$A$27:$A$38,ÅRSTOT!$A28)+SUMIFS(ISOLATØR!D$27:D$38,ISOLATØR!$A$27:$A$38,ÅRSTOT!$A28)+SUMIFS(MALERE!D$27:D$38,MALERE!$A$27:$A$38,ÅRSTOT!$A28)+SUMIFS(TAKTEKKERE!D$27:D$38,TAKTEKKERE!$A$27:$A$38,ÅRSTOT!$A28) -> 34825 | E28: =SUMIFS(BETONG!E$27:E$38,BETONG!$A$27:$A$38,ÅRSTOT!$A28)+SUMIFS(TØMRERE!E$27:E$38,TØMRERE!$A$27:$A$38,ÅRSTOT!$A28)+SUMIFS(RØRLEGGERE!E$27:E$38,RØRLEGGERE!$A$27:$A$38,ÅRSTOT!$A28)+SUMIFS(MURERE!E$27:E$38,MURERE!$A$27:$A$38,ÅRSTOT!$A28)+SUMIFS('BLIKK OG VENTILASJON'!E$27:E$38,'BLIKK OG VENTILASJON'!$A$27:$A$38,ÅRSTOT!$A28)+SUMIFS(ISOLATØR!E$27:E$38,ISOLATØR!$A$27:$A$38,ÅRSTOT!$A28)+SUMIFS(MALERE!E$27:E$38,MALERE!$A$27:$A$38,ÅRSTOT!$A28)+SUMIFS(TAKTEKKERE!E$27:E$38,TAKTEKKERE!$A$27:$A$38,ÅRSTOT!$A28) -> 0 | F28: =IF(D28=0,0,B28/D28) -> 314.8108543 | G28: =IF(E28=0,0,C28/E28) -> 0 | H28: =IF(D28+E28=0,0,(B28+C28)/(D28+E28)) -> 314.8108543 | I28: =SUMIFS(BETONG!I$27:I$38,BETONG!$A$27:$A$38,ÅRSTOT!$A28)+SUMIFS(TØMRERE!I$27:I$38,TØMRERE!$A$27:$A$38,ÅRSTOT!$A28)+SUMIFS(RØRLEGGERE!I$27:I$38,RØRLEGGERE!$A$27:$A$38,ÅRSTOT!$A28)+SUMIFS(MURERE!I$27:I$38,MURERE!$A$27:$A$38,ÅRSTOT!$A28)+SUMIFS('BLIKK OG VENTILASJON'!I$27:I$38,'BLIKK OG VENTILASJON'!$A$27:$A$38,ÅRSTOT!$A28)+SUMIFS(ISOLATØR!I$27:I$38,ISOLATØR!$A$27:$A$38,ÅRSTOT!$A28)+SUMIFS(MALERE!I$27:I$38,MALERE!$A$27:$A$38,ÅRSTOT!$A28)+SUMIFS(TAKTEKKERE!I$27:I$38,TAKTEKKERE!$A$27:$A$38,ÅRSTOT!$A28) -> 11804988 | J28: =SUMIFS(BETONG!J$27:J$38,BETONG!$A$27:$A$38,ÅRSTOT!$A28)+SUMIFS(TØMRERE!J$27:J$38,TØMRERE!$A$27:$A$38,ÅRSTOT!$A28)+SUMIFS(RØRLEGGERE!J$27:J$38,RØRLEGGERE!$A$27:$A$38,ÅRSTOT!$A28)+SUMIFS(MURERE!J$27:J$38,MURERE!$A$27:$A$38,ÅRSTOT!$A28)+SUMIFS('BLIKK OG VENTILASJON'!J$27:J$38,'BLIKK OG VENTILASJON'!$A$27:$A$38,ÅRSTOT!$A28)+SUMIFS(ISOLATØR!J$27:J$38,ISOLATØR!$A$27:$A$38,ÅRSTOT!$A28)+SUMIFS(MALERE!J$27:J$38,MALERE!$A$27:$A$38,ÅRSTOT!$A28)+SUMIFS(TAKTEKKERE!J$27:J$38,TAKTEKKERE!$A$27:$A$38,ÅRSTOT!$A28) -> 0 | K28: 307.8464547 | L28: =IF(I28=0,0,(B28-I28)/I28) -> -0.07130036896 | M28: =IF(K28=0,0,(H28-K28)/K28) -> 0.02262296486
A29: Bergen | B29: =SUMIFS(BETONG!B$27:B$38,BETONG!$A$27:$A$38,ÅRSTOT!$A29)+SUMIFS(TØMRERE!B$27:B$38,TØMRERE!$A$27:$A$38,ÅRSTOT!$A29)+SUMIFS(RØRLEGGERE!B$27:B$38,RØRLEGGERE!$A$27:$A$38,ÅRSTOT!$A29)+SUMIFS(MURERE!B$27:B$38,MURERE!$A$27:$A$38,ÅRSTOT!$A29)+SUMIFS('BLIKK OG VENTILASJON'!B$27:B$38,'BLIKK OG VENTILASJON'!$A$27:$A$38,ÅRSTOT!$A29)+SUMIFS(ISOLATØR!B$27:B$38,ISOLATØR!$A$27:$A$38,ÅRSTOT!$A29)+SUMIFS(MALERE!B$27:B$38,MALERE!$A$27:$A$38,ÅRSTOT!$A29)+SUMIFS(TAKTEKKERE!B$27:B$38,TAKTEKKERE!$A$27:$A$38,ÅRSTOT!$A29) -> 17703504.13 | C29: =SUMIFS(BETONG!C$27:C$38,BETONG!$A$27:$A$38,ÅRSTOT!$A29)+SUMIFS(TØMRERE!C$27:C$38,TØMRERE!$A$27:$A$38,ÅRSTOT!$A29)+SUMIFS(RØRLEGGERE!C$27:C$38,RØRLEGGERE!$A$27:$A$38,ÅRSTOT!$A29)+SUMIFS(MURERE!C$27:C$38,MURERE!$A$27:$A$38,ÅRSTOT!$A29)+SUMIFS('BLIKK OG VENTILASJON'!C$27:C$38,'BLIKK OG VENTILASJON'!$A$27:$A$38,ÅRSTOT!$A29)+SUMIFS(ISOLATØR!C$27:C$38,ISOLATØR!$A$27:$A$38,ÅRSTOT!$A29)+SUMIFS(MALERE!C$27:C$38,MALERE!$A$27:$A$38,ÅRSTOT!$A29)+SUMIFS(TAKTEKKERE!C$27:C$38,TAKTEKKERE!$A$27:$A$38,ÅRSTOT!$A29) -> 0 | D29: =SUMIFS(BETONG!D$27:D$38,BETONG!$A$27:$A$38,ÅRSTOT!$A29)+SUMIFS(TØMRERE!D$27:D$38,TØMRERE!$A$27:$A$38,ÅRSTOT!$A29)+SUMIFS(RØRLEGGERE!D$27:D$38,RØRLEGGERE!$A$27:$A$38,ÅRSTOT!$A29)+SUMIFS(MURERE!D$27:D$38,MURERE!$A$27:$A$38,ÅRSTOT!$A29)+SUMIFS('BLIKK OG VENTILASJON'!D$27:D$38,'BLIKK OG VENTILASJON'!$A$27:$A$38,ÅRSTOT!$A29)+SUMIFS(ISOLATØR!D$27:D$38,ISOLATØR!$A$27:$A$38,ÅRSTOT!$A29)+SUMIFS(MALERE!D$27:D$38,MALERE!$A$27:$A$38,ÅRSTOT!$A29)+SUMIFS(TAKTEKKERE!D$27:D$38,TAKTEKKERE!$A$27:$A$38,ÅRSTOT!$A29) -> 56675.11 | E29: =SUMIFS(BETONG!E$27:E$38,BETONG!$A$27:$A$38,ÅRSTOT!$A29)+SUMIFS(TØMRERE!E$27:E$38,TØMRERE!$A$27:$A$38,ÅRSTOT!$A29)+SUMIFS(RØRLEGGERE!E$27:E$38,RØRLEGGERE!$A$27:$A$38,ÅRSTOT!$A29)+SUMIFS(MURERE!E$27:E$38,MURERE!$A$27:$A$38,ÅRSTOT!$A29)+SUMIFS('BLIKK OG VENTILASJON'!E$27:E$38,'BLIKK OG VENTILASJON'!$A$27:$A$38,ÅRSTOT!$A29)+SUMIFS(ISOLATØR!E$27:E$38,ISOLATØR!$A$27:$A$38,ÅRSTOT!$A29)+SUMIFS(MALERE!E$27:E$38,MALERE!$A$27:$A$38,ÅRSTOT!$A29)+SUMIFS(TAKTEKKERE!E$27:E$38,TAKTEKKERE!$A$27:$A$38,ÅRSTOT!$A29) -> 0 | F29: 312.3682359 | G29: 0 | H29: 312.3682359 | I29: =SUMIFS(BETONG!I$27:I$38,BETONG!$A$27:$A$38,ÅRSTOT!$A29)+SUMIFS(TØMRERE!I$27:I$38,TØMRERE!$A$27:$A$38,ÅRSTOT!$A29)+SUMIFS(RØRLEGGERE!I$27:I$38,RØRLEGGERE!$A$27:$A$38,ÅRSTOT!$A29)+SUMIFS(MURERE!I$27:I$38,MURERE!$A$27:$A$38,ÅRSTOT!$A29)+SUMIFS('BLIKK OG VENTILASJON'!I$27:I$38,'BLIKK OG VENTILASJON'!$A$27:$A$38,ÅRSTOT!$A29)+SUMIFS(ISOLATØR!I$27:I$38,ISOLATØR!$A$27:$A$38,ÅRSTOT!$A29)+SUMIFS(MALERE!I$27:I$38,MALERE!$A$27:$A$38,ÅRSTOT!$A29)+SUMIFS(TAKTEKKERE!I$27:I$38,TAKTEKKERE!$A$27:$A$38,ÅRSTOT!$A29) -> 38863806.78 | J29: =SUMIFS(BETONG!J$27:J$38,BETONG!$A$27:$A$38,ÅRSTOT!$A29)+SUMIFS(TØMRERE!J$27:J$38,TØMRERE!$A$27:$A$38,ÅRSTOT!$A29)+SUMIFS(RØRLEGGERE!J$27:J$38,RØRLEGGERE!$A$27:$A$38,ÅRSTOT!$A29)+SUMIFS(MURERE!J$27:J$38,MURERE!$A$27:$A$38,ÅRSTOT!$A29)+SUMIFS('BLIKK OG VENTILASJON'!J$27:J$38,'BLIKK OG VENTILASJON'!$A$27:$A$38,ÅRSTOT!$A29)+SUMIFS(ISOLATØR!J$27:J$38,ISOLATØR!$A$27:$A$38,ÅRSTOT!$A29)+SUMIFS(MALERE!J$27:J$38,MALERE!$A$27:$A$38,ÅRSTOT!$A29)+SUMIFS(TAKTEKKERE!J$27:J$38,TAKTEKKERE!$A$27:$A$38,ÅRSTOT!$A29) -> 0 | K29: 287.1070517 | L29: =IF(I29=0,0,(B29-I29)/I29) -> -0.5444732362 | M29: 0.08798524468
A30: Nordland | B30: =SUMIFS(BETONG!B$27:B$38,BETONG!$A$27:$A$38,ÅRSTOT!$A30)+SUMIFS(TØMRERE!B$27:B$38,TØMRERE!$A$27:$A$38,ÅRSTOT!$A30)+SUMIFS(RØRLEGGERE!B$27:B$38,RØRLEGGERE!$A$27:$A$38,ÅRSTOT!$A30)+SUMIFS(MURERE!B$27:B$38,MURERE!$A$27:$A$38,ÅRSTOT!$A30)+SUMIFS('BLIKK OG VENTILASJON'!B$27:B$38,'BLIKK OG VENTILASJON'!$A$27:$A$38,ÅRSTOT!$A30)+SUMIFS(ISOLATØR!B$27:B$38,ISOLATØR!$A$27:$A$38,ÅRSTOT!$A30)+SUMIFS(MALERE!B$27:B$38,MALERE!$A$27:$A$38,ÅRSTOT!$A30)+SUMIFS(TAKTEKKERE!B$27:B$38,TAKTEKKERE!$A$27:$A$38,ÅRSTOT!$A30) -> 0 | C30: =SUMIFS(BETONG!C$27:C$38,BETONG!$A$27:$A$38,ÅRSTOT!$A30)+SUMIFS(TØMRERE!C$27:C$38,TØMRERE!$A$27:$A$38,ÅRSTOT!$A30)+SUMIFS(RØRLEGGERE!C$27:C$38,RØRLEGGERE!$A$27:$A$38,ÅRSTOT!$A30)+SUMIFS(MURERE!C$27:C$38,MURERE!$A$27:$A$38,ÅRSTOT!$A30)+SUMIFS('BLIKK OG VENTILASJON'!C$27:C$38,'BLIKK OG VENTILASJON'!$A$27:$A$38,ÅRSTOT!$A30)+SUMIFS(ISOLATØR!C$27:C$38,ISOLATØR!$A$27:$A$38,ÅRSTOT!$A30)+SUMIFS(MALERE!C$27:C$38,MALERE!$A$27:$A$38,ÅRSTOT!$A30)+SUMIFS(TAKTEKKERE!C$27:C$38,TAKTEKKERE!$A$27:$A$38,ÅRSTOT!$A30) -> 0 | D30: =SUMIFS(BETONG!D$27:D$38,BETONG!$A$27:$A$38,ÅRSTOT!$A30)+SUMIFS(TØMRERE!D$27:D$38,TØMRERE!$A$27:$A$38,ÅRSTOT!$A30)+SUMIFS(RØRLEGGERE!D$27:D$38,RØRLEGGERE!$A$27:$A$38,ÅRSTOT!$A30)+SUMIFS(MURERE!D$27:D$38,MURERE!$A$27:$A$38,ÅRSTOT!$A30)+SUMIFS('BLIKK OG VENTILASJON'!D$27:D$38,'BLIKK OG VENTILASJON'!$A$27:$A$38,ÅRSTOT!$A30)+SUMIFS(ISOLATØR!D$27:D$38,ISOLATØR!$A$27:$A$38,ÅRSTOT!$A30)+SUMIFS(MALERE!D$27:D$38,MALERE!$A$27:$A$38,ÅRSTOT!$A30)+SUMIFS(TAKTEKKERE!D$27:D$38,TAKTEKKERE!$A$27:$A$38,ÅRSTOT!$A30) -> 0 | E30: =SUMIFS(BETONG!E$27:E$38,BETONG!$A$27:$A$38,ÅRSTOT!$A30)+SUMIFS(TØMRERE!E$27:E$38,TØMRERE!$A$27:$A$38,ÅRSTOT!$A30)+SUMIFS(RØRLEGGERE!E$27:E$38,RØRLEGGERE!$A$27:$A$38,ÅRSTOT!$A30)+SUMIFS(MURERE!E$27:E$38,MURERE!$A$27:$A$38,ÅRSTOT!$A30)+SUMIFS('BLIKK OG VENTILASJON'!E$27:E$38,'BLIKK OG VENTILASJON'!$A$27:$A$38,ÅRSTOT!$A30)+SUMIFS(ISOLATØR!E$27:E$38,ISOLATØR!$A$27:$A$38,ÅRSTOT!$A30)+SUMIFS(MALERE!E$27:E$38,MALERE!$A$27:$A$38,ÅRSTOT!$A30)+SUMIFS(TAKTEKKERE!E$27:E$38,TAKTEKKERE!$A$27:$A$38,ÅRSTOT!$A30) -> 0 | F30: 0 | G30: 0 | H30: 0 | I30: =SUMIFS(BETONG!I$27:I$38,BETONG!$A$27:$A$38,ÅRSTOT!$A30)+SUMIFS(TØMRERE!I$27:I$38,TØMRERE!$A$27:$A$38,ÅRSTOT!$A30)+SUMIFS(RØRLEGGERE!I$27:I$38,RØRLEGGERE!$A$27:$A$38,ÅRSTOT!$A30)+SUMIFS(MURERE!I$27:I$38,MURERE!$A$27:$A$38,ÅRSTOT!$A30)+SUMIFS('BLIKK OG VENTILASJON'!I$27:I$38,'BLIKK OG VENTILASJON'!$A$27:$A$38,ÅRSTOT!$A30)+SUMIFS(ISOLATØR!I$27:I$38,ISOLATØR!$A$27:$A$38,ÅRSTOT!$A30)+SUMIFS(MALERE!I$27:I$38,MALERE!$A$27:$A$38,ÅRSTOT!$A30)+SUMIFS(TAKTEKKERE!I$27:I$38,TAKTEKKERE!$A$27:$A$38,ÅRSTOT!$A30) -> 0 | J30: =SUMIFS(BETONG!J$27:J$38,BETONG!$A$27:$A$38,ÅRSTOT!$A30)+SUMIFS(TØMRERE!J$27:J$38,TØMRERE!$A$27:$A$38,ÅRSTOT!$A30)+SUMIFS(RØRLEGGERE!J$27:J$38,RØRLEGGERE!$A$27:$A$38,ÅRSTOT!$A30)+SUMIFS(MURERE!J$27:J$38,MURERE!$A$27:$A$38,ÅRSTOT!$A30)+SUMIFS('BLIKK OG VENTILASJON'!J$27:J$38,'BLIKK OG VENTILASJON'!$A$27:$A$38,ÅRSTOT!$A30)+SUMIFS(ISOLATØR!J$27:J$38,ISOLATØR!$A$27:$A$38,ÅRSTOT!$A30)+SUMIFS(MALERE!J$27:J$38,MALERE!$A$27:$A$38,ÅRSTOT!$A30)+SUMIFS(TAKTEKKERE!J$27:J$38,TAKTEKKERE!$A$27:$A$38,ÅRSTOT!$A30) -> 424816.48 | K30: 201.7651294 | L30: 0 | M30: -1
A31: Drammen - Bærum | B31: =SUMIFS(BETONG!B$27:B$38,BETONG!$A$27:$A$38,ÅRSTOT!$A31)+SUMIFS(TØMRERE!B$27:B$38,TØMRERE!$A$27:$A$38,ÅRSTOT!$A31)+SUMIFS(RØRLEGGERE!B$27:B$38,RØRLEGGERE!$A$27:$A$38,ÅRSTOT!$A31)+SUMIFS(MURERE!B$27:B$38,MURERE!$A$27:$A$38,ÅRSTOT!$A31)+SUMIFS('BLIKK OG VENTILASJON'!B$27:B$38,'BLIKK OG VENTILASJON'!$A$27:$A$38,ÅRSTOT!$A31)+SUMIFS(ISOLATØR!B$27:B$38,ISOLATØR!$A$27:$A$38,ÅRSTOT!$A31)+SUMIFS(MALERE!B$27:B$38,MALERE!$A$27:$A$38,ÅRSTOT!$A31)+SUMIFS(TAKTEKKERE!B$27:B$38,TAKTEKKERE!$A$27:$A$38,ÅRSTOT!$A31) -> 0 | C31: =SUMIFS(BETONG!C$27:C$38,BETONG!$A$27:$A$38,ÅRSTOT!$A31)+SUMIFS(TØMRERE!C$27:C$38,TØMRERE!$A$27:$A$38,ÅRSTOT!$A31)+SUMIFS(RØRLEGGERE!C$27:C$38,RØRLEGGERE!$A$27:$A$38,ÅRSTOT!$A31)+SUMIFS(MURERE!C$27:C$38,MURERE!$A$27:$A$38,ÅRSTOT!$A31)+SUMIFS('BLIKK OG VENTILASJON'!C$27:C$38,'BLIKK OG VENTILASJON'!$A$27:$A$38,ÅRSTOT!$A31)+SUMIFS(ISOLATØR!C$27:C$38,ISOLATØR!$A$27:$A$38,ÅRSTOT!$A31)+SUMIFS(MALERE!C$27:C$38,MALERE!$A$27:$A$38,ÅRSTOT!$A31)+SUMIFS(TAKTEKKERE!C$27:C$38,TAKTEKKERE!$A$27:$A$38,ÅRSTOT!$A31) -> 0 | D31: =SUMIFS(BETONG!D$27:D$38,BETONG!$A$27:$A$38,ÅRSTOT!$A31)+SUMIFS(TØMRERE!D$27:D$38,TØMRERE!$A$27:$A$38,ÅRSTOT!$A31)+SUMIFS(RØRLEGGERE!D$27:D$38,RØRLEGGERE!$A$27:$A$38,ÅRSTOT!$A31)+SUMIFS(MURERE!D$27:D$38,MURERE!$A$27:$A$38,ÅRSTOT!$A31)+SUMIFS('BLIKK OG VENTILASJON'!D$27:D$38,'BLIKK OG VENTILASJON'!$A$27:$A$38,ÅRSTOT!$A31)+SUMIFS(ISOLATØR!D$27:D$38,ISOLATØR!$A$27:$A$38,ÅRSTOT!$A31)+SUMIFS(MALERE!D$27:D$38,MALERE!$A$27:$A$38,ÅRSTOT!$A31)+SUMIFS(TAKTEKKERE!D$27:D$38,TAKTEKKERE!$A$27:$A$38,ÅRSTOT!$A31) -> 0 | E31: =SUMIFS(BETONG!E$27:E$38,BETONG!$A$27:$A$38,ÅRSTOT!$A31)+SUMIFS(TØMRERE!E$27:E$38,TØMRERE!$A$27:$A$38,ÅRSTOT!$A31)+SUMIFS(RØRLEGGERE!E$27:E$38,RØRLEGGERE!$A$27:$A$38,ÅRSTOT!$A31)+SUMIFS(MURERE!E$27:E$38,MURERE!$A$27:$A$38,ÅRSTOT!$A31)+SUMIFS('BLIKK OG VENTILASJON'!E$27:E$38,'BLIKK OG VENTILASJON'!$A$27:$A$38,ÅRSTOT!$A31)+SUMIFS(ISOLATØR!E$27:E$38,ISOLATØR!$A$27:$A$38,ÅRSTOT!$A31)+SUMIFS(MALERE!E$27:E$38,MALERE!$A$27:$A$38,ÅRSTOT!$A31)+SUMIFS(TAKTEKKERE!E$27:E$38,TAKTEKKERE!$A$27:$A$38,ÅRSTOT!$A31) -> 0 | F31: 0 | G31: 0 | H31: 0 | I31: =SUMIFS(BETONG!I$27:I$38,BETONG!$A$27:$A$38,ÅRSTOT!$A31)+SUMIFS(TØMRERE!I$27:I$38,TØMRERE!$A$27:$A$38,ÅRSTOT!$A31)+SUMIFS(RØRLEGGERE!I$27:I$38,RØRLEGGERE!$A$27:$A$38,ÅRSTOT!$A31)+SUMIFS(MURERE!I$27:I$38,MURERE!$A$27:$A$38,ÅRSTOT!$A31)+SUMIFS('BLIKK OG VENTILASJON'!I$27:I$38,'BLIKK OG VENTILASJON'!$A$27:$A$38,ÅRSTOT!$A31)+SUMIFS(ISOLATØR!I$27:I$38,ISOLATØR!$A$27:$A$38,ÅRSTOT!$A31)+SUMIFS(MALERE!I$27:I$38,MALERE!$A$27:$A$38,ÅRSTOT!$A31)+SUMIFS(TAKTEKKERE!I$27:I$38,TAKTEKKERE!$A$27:$A$38,ÅRSTOT!$A31) -> 0 | J31: =SUMIFS(BETONG!J$27:J$38,BETONG!$A$27:$A$38,ÅRSTOT!$A31)+SUMIFS(TØMRERE!J$27:J$38,TØMRERE!$A$27:$A$38,ÅRSTOT!$A31)+SUMIFS(RØRLEGGERE!J$27:J$38,RØRLEGGERE!$A$27:$A$38,ÅRSTOT!$A31)+SUMIFS(MURERE!J$27:J$38,MURERE!$A$27:$A$38,ÅRSTOT!$A31)+SUMIFS('BLIKK OG VENTILASJON'!J$27:J$38,'BLIKK OG VENTILASJON'!$A$27:$A$38,ÅRSTOT!$A31)+SUMIFS(ISOLATØR!J$27:J$38,ISOLATØR!$A$27:$A$38,ÅRSTOT!$A31)+SUMIFS(MALERE!J$27:J$38,MALERE!$A$27:$A$38,ÅRSTOT!$A31)+SUMIFS(TAKTEKKERE!J$27:J$38,TAKTEKKERE!$A$27:$A$38,ÅRSTOT!$A31) -> 0 | K31: 0 | L31: 0 | M31: 0
A32: Haugesund | B32: =SUMIFS(BETONG!B$27:B$38,BETONG!$A$27:$A$38,ÅRSTOT!$A32)+SUMIFS(TØMRERE!B$27:B$38,TØMRERE!$A$27:$A$38,ÅRSTOT!$A32)+SUMIFS(RØRLEGGERE!B$27:B$38,RØRLEGGERE!$A$27:$A$38,ÅRSTOT!$A32)+SUMIFS(MURERE!B$27:B$38,MURERE!$A$27:$A$38,ÅRSTOT!$A32)+SUMIFS('BLIKK OG VENTILASJON'!B$27:B$38,'BLIKK OG VENTILASJON'!$A$27:$A$38,ÅRSTOT!$A32)+SUMIFS(ISOLATØR!B$27:B$38,ISOLATØR!$A$27:$A$38,ÅRSTOT!$A32)+SUMIFS(MALERE!B$27:B$38,MALERE!$A$27:$A$38,ÅRSTOT!$A32)+SUMIFS(TAKTEKKERE!B$27:B$38,TAKTEKKERE!$A$27:$A$38,ÅRSTOT!$A32) -> 4682448 | C32: =SUMIFS(BETONG!C$27:C$38,BETONG!$A$27:$A$38,ÅRSTOT!$A32)+SUMIFS(TØMRERE!C$27:C$38,TØMRERE!$A$27:$A$38,ÅRSTOT!$A32)+SUMIFS(RØRLEGGERE!C$27:C$38,RØRLEGGERE!$A$27:$A$38,ÅRSTOT!$A32)+SUMIFS(MURERE!C$27:C$38,MURERE!$A$27:$A$38,ÅRSTOT!$A32)+SUMIFS('BLIKK OG VENTILASJON'!C$27:C$38,'BLIKK OG VENTILASJON'!$A$27:$A$38,ÅRSTOT!$A32)+SUMIFS(ISOLATØR!C$27:C$38,ISOLATØR!$A$27:$A$38,ÅRSTOT!$A32)+SUMIFS(MALERE!C$27:C$38,MALERE!$A$27:$A$38,ÅRSTOT!$A32)+SUMIFS(TAKTEKKERE!C$27:C$38,TAKTEKKERE!$A$27:$A$38,ÅRSTOT!$A32) -> 0 | D32: =SUMIFS(BETONG!D$27:D$38,BETONG!$A$27:$A$38,ÅRSTOT!$A32)+SUMIFS(TØMRERE!D$27:D$38,TØMRERE!$A$27:$A$38,ÅRSTOT!$A32)+SUMIFS(RØRLEGGERE!D$27:D$38,RØRLEGGERE!$A$27:$A$38,ÅRSTOT!$A32)+SUMIFS(MURERE!D$27:D$38,MURERE!$A$27:$A$38,ÅRSTOT!$A32)+SUMIFS('BLIKK OG VENTILASJON'!D$27:D$38,'BLIKK OG VENTILASJON'!$A$27:$A$38,ÅRSTOT!$A32)+SUMIFS(ISOLATØR!D$27:D$38,ISOLATØR!$A$27:$A$38,ÅRSTOT!$A32)+SUMIFS(MALERE!D$27:D$38,MALERE!$A$27:$A$38,ÅRSTOT!$A32)+SUMIFS(TAKTEKKERE!D$27:D$38,TAKTEKKERE!$A$27:$A$38,ÅRSTOT!$A32) -> 15694.85 | E32: =SUMIFS(BETONG!E$27:E$38,BETONG!$A$27:$A$38,ÅRSTOT!$A32)+SUMIFS(TØMRERE!E$27:E$38,TØMRERE!$A$27:$A$38,ÅRSTOT!$A32)+SUMIFS(RØRLEGGERE!E$27:E$38,RØRLEGGERE!$A$27:$A$38,ÅRSTOT!$A32)+SUMIFS(MURERE!E$27:E$38,MURERE!$A$27:$A$38,ÅRSTOT!$A32)+SUMIFS('BLIKK OG VENTILASJON'!E$27:E$38,'BLIKK OG VENTILASJON'!$A$27:$A$38,ÅRSTOT!$A32)+SUMIFS(ISOLATØR!E$27:E$38,ISOLATØR!$A$27:$A$38,ÅRSTOT!$A32)+SUMIFS(MALERE!E$27:E$38,MALERE!$A$27:$A$38,ÅRSTOT!$A32)+SUMIFS(TAKTEKKERE!E$27:E$38,TAKTEKKERE!$A$27:$A$38,ÅRSTOT!$A32) -> 0 | F32: 298.3429596 | G32: 0 | H32: 298.3429596 | I32: =SUMIFS(BETONG!I$27:I$38,BETONG!$A$27:$A$38,ÅRSTOT!$A32)+SUMIFS(TØMRERE!I$27:I$38,TØMRERE!$A$27:$A$38,ÅRSTOT!$A32)+SUMIFS(RØRLEGGERE!I$27:I$38,RØRLEGGERE!$A$27:$A$38,ÅRSTOT!$A32)+SUMIFS(MURERE!I$27:I$38,MURERE!$A$27:$A$38,ÅRSTOT!$A32)+SUMIFS('BLIKK OG VENTILASJON'!I$27:I$38,'BLIKK OG VENTILASJON'!$A$27:$A$38,ÅRSTOT!$A32)+SUMIFS(ISOLATØR!I$27:I$38,ISOLATØR!$A$27:$A$38,ÅRSTOT!$A32)+SUMIFS(MALERE!I$27:I$38,MALERE!$A$27:$A$38,ÅRSTOT!$A32)+SUMIFS(TAKTEKKERE!I$27:I$38,TAKTEKKERE!$A$27:$A$38,ÅRSTOT!$A32) -> 5537155 | J32: =SUMIFS(BETONG!J$27:J$38,BETONG!$A$27:$A$38,ÅRSTOT!$A32)+SUMIFS(TØMRERE!J$27:J$38,TØMRERE!$A$27:$A$38,ÅRSTOT!$A32)+SUMIFS(RØRLEGGERE!J$27:J$38,RØRLEGGERE!$A$27:$A$38,ÅRSTOT!$A32)+SUMIFS(MURERE!J$27:J$38,MURERE!$A$27:$A$38,ÅRSTOT!$A32)+SUMIFS('BLIKK OG VENTILASJON'!J$27:J$38,'BLIKK OG VENTILASJON'!$A$27:$A$38,ÅRSTOT!$A32)+SUMIFS(ISOLATØR!J$27:J$38,ISOLATØR!$A$27:$A$38,ÅRSTOT!$A32)+SUMIFS(MALERE!J$27:J$38,MALERE!$A$27:$A$38,ÅRSTOT!$A32)+SUMIFS(TAKTEKKERE!J$27:J$38,TAKTEKKERE!$A$27:$A$38,ÅRSTOT!$A32) -> 0 | K32: 280.6804778 | L32: -0.1543585108 | M32: 0.06292736141
A33: Hamar og Omegn | B33: =SUMIFS(BETONG!B$27:B$38,BETONG!$A$27:$A$38,ÅRSTOT!$A33)+SUMIFS(TØMRERE!B$27:B$38,TØMRERE!$A$27:$A$38,ÅRSTOT!$A33)+SUMIFS(RØRLEGGERE!B$27:B$38,RØRLEGGERE!$A$27:$A$38,ÅRSTOT!$A33)+SUMIFS(MURERE!B$27:B$38,MURERE!$A$27:$A$38,ÅRSTOT!$A33)+SUMIFS('BLIKK OG VENTILASJON'!B$27:B$38,'BLIKK OG VENTILASJON'!$A$27:$A$38,ÅRSTOT!$A33)+SUMIFS(ISOLATØR!B$27:B$38,ISOLATØR!$A$27:$A$38,ÅRSTOT!$A33)+SUMIFS(MALERE!B$27:B$38,MALERE!$A$27:$A$38,ÅRSTOT!$A33)+SUMIFS(TAKTEKKERE!B$27:B$38,TAKTEKKERE!$A$27:$A$38,ÅRSTOT!$A33) -> 13660961 | C33: =SUMIFS(BETONG!C$27:C$38,BETONG!$A$27:$A$38,ÅRSTOT!$A33)+SUMIFS(TØMRERE!C$27:C$38,TØMRERE!$A$27:$A$38,ÅRSTOT!$A33)+SUMIFS(RØRLEGGERE!C$27:C$38,RØRLEGGERE!$A$27:$A$38,ÅRSTOT!$A33)+SUMIFS(MURERE!C$27:C$38,MURERE!$A$27:$A$38,ÅRSTOT!$A33)+SUMIFS('BLIKK OG VENTILASJON'!C$27:C$38,'BLIKK OG VENTILASJON'!$A$27:$A$38,ÅRSTOT!$A33)+SUMIFS(ISOLATØR!C$27:C$38,ISOLATØR!$A$27:$A$38,ÅRSTOT!$A33)+SUMIFS(MALERE!C$27:C$38,MALERE!$A$27:$A$38,ÅRSTOT!$A33)+SUMIFS(TAKTEKKERE!C$27:C$38,TAKTEKKERE!$A$27:$A$38,ÅRSTOT!$A33) -> 1530936 | D33: =SUMIFS(BETONG!D$27:D$38,BETONG!$A$27:$A$38,ÅRSTOT!$A33)+SUMIFS(TØMRERE!D$27:D$38,TØMRERE!$A$27:$A$38,ÅRSTOT!$A33)+SUMIFS(RØRLEGGERE!D$27:D$38,RØRLEGGERE!$A$27:$A$38,ÅRSTOT!$A33)+SUMIFS(MURERE!D$27:D$38,MURERE!$A$27:$A$38,ÅRSTOT!$A33)+SUMIFS('BLIKK OG VENTILASJON'!D$27:D$38,'BLIKK OG VENTILASJON'!$A$27:$A$38,ÅRSTOT!$A33)+SUMIFS(ISOLATØR!D$27:D$38,ISOLATØR!$A$27:$A$38,ÅRSTOT!$A33)+SUMIFS(MALERE!D$27:D$38,MALERE!$A$27:$A$38,ÅRSTOT!$A33)+SUMIFS(TAKTEKKERE!D$27:D$38,TAKTEKKERE!$A$27:$A$38,ÅRSTOT!$A33) -> 40200.89 | E33: =SUMIFS(BETONG!E$27:E$38,BETONG!$A$27:$A$38,ÅRSTOT!$A33)+SUMIFS(TØMRERE!E$27:E$38,TØMRERE!$A$27:$A$38,ÅRSTOT!$A33)+SUMIFS(RØRLEGGERE!E$27:E$38,RØRLEGGERE!$A$27:$A$38,ÅRSTOT!$A33)+SUMIFS(MURERE!E$27:E$38,MURERE!$A$27:$A$38,ÅRSTOT!$A33)+SUMIFS('BLIKK OG VENTILASJON'!E$27:E$38,'BLIKK OG VENTILASJON'!$A$27:$A$38,ÅRSTOT!$A33)+SUMIFS(ISOLATØR!E$27:E$38,ISOLATØR!$A$27:$A$38,ÅRSTOT!$A33)+SUMIFS(MALERE!E$27:E$38,MALERE!$A$27:$A$38,ÅRSTOT!$A33)+SUMIFS(TAKTEKKERE!E$27:E$38,TAKTEKKERE!$A$27:$A$38,ÅRSTOT!$A33) -> 8280.7 | F33: 339.8173772 | G33: 184.8800222 | H33: 313.353935 | I33: =SUMIFS(BETONG!I$27:I$38,BETONG!$A$27:$A$38,ÅRSTOT!$A33)+SUMIFS(TØMRERE!I$27:I$38,TØMRERE!$A$27:$A$38,ÅRSTOT!$A33)+SUMIFS(RØRLEGGERE!I$27:I$38,RØRLEGGERE!$A$27:$A$38,ÅRSTOT!$A33)+SUMIFS(MURERE!I$27:I$38,MURERE!$A$27:$A$38,ÅRSTOT!$A33)+SUMIFS('BLIKK OG VENTILASJON'!I$27:I$38,'BLIKK OG VENTILASJON'!$A$27:$A$38,ÅRSTOT!$A33)+SUMIFS(ISOLATØR!I$27:I$38,ISOLATØR!$A$27:$A$38,ÅRSTOT!$A33)+SUMIFS(MALERE!I$27:I$38,MALERE!$A$27:$A$38,ÅRSTOT!$A33)+SUMIFS(TAKTEKKERE!I$27:I$38,TAKTEKKERE!$A$27:$A$38,ÅRSTOT!$A33) -> 22236041 | J33: =SUMIFS(BETONG!J$27:J$38,BETONG!$A$27:$A$38,ÅRSTOT!$A33)+SUMIFS(TØMRERE!J$27:J$38,TØMRERE!$A$27:$A$38,ÅRSTOT!$A33)+SUMIFS(RØRLEGGERE!J$27:J$38,RØRLEGGERE!$A$27:$A$38,ÅRSTOT!$A33)+SUMIFS(MURERE!J$27:J$38,MURERE!$A$27:$A$38,ÅRSTOT!$A33)+SUMIFS('BLIKK OG VENTILASJON'!J$27:J$38,'BLIKK OG VENTILASJON'!$A$27:$A$38,ÅRSTOT!$A33)+SUMIFS(ISOLATØR!J$27:J$38,ISOLATØR!$A$27:$A$38,ÅRSTOT!$A33)+SUMIFS(MALERE!J$27:J$38,MALERE!$A$27:$A$38,ÅRSTOT!$A33)+SUMIFS(TAKTEKKERE!J$27:J$38,TAKTEKKERE!$A$27:$A$38,ÅRSTOT!$A33) -> 388790 | K33: 303.2979356 | L33: -0.3856387924 | M33: 0.03315551546
A34: Sandnes | B34: =SUMIFS(BETONG!B$27:B$38,BETONG!$A$27:$A$38,ÅRSTOT!$A34)+SUMIFS(TØMRERE!B$27:B$38,TØMRERE!$A$27:$A$38,ÅRSTOT!$A34)+SUMIFS(RØRLEGGERE!B$27:B$38,RØRLEGGERE!$A$27:$A$38,ÅRSTOT!$A34)+SUMIFS(MURERE!B$27:B$38,MURERE!$A$27:$A$38,ÅRSTOT!$A34)+SUMIFS('BLIKK OG VENTILASJON'!B$27:B$38,'BLIKK OG VENTILASJON'!$A$27:$A$38,ÅRSTOT!$A34)+SUMIFS(ISOLATØR!B$27:B$38,ISOLATØR!$A$27:$A$38,ÅRSTOT!$A34)+SUMIFS(MALERE!B$27:B$38,MALERE!$A$27:$A$38,ÅRSTOT!$A34)+SUMIFS(TAKTEKKERE!B$27:B$38,TAKTEKKERE!$A$27:$A$38,ÅRSTOT!$A34) -> 22178853.21 | C34: =SUMIFS(BETONG!C$27:C$38,BETONG!$A$27:$A$38,ÅRSTOT!$A34)+SUMIFS(TØMRERE!C$27:C$38,TØMRERE!$A$27:$A$38,ÅRSTOT!$A34)+SUMIFS(RØRLEGGERE!C$27:C$38,RØRLEGGERE!$A$27:$A$38,ÅRSTOT!$A34)+SUMIFS(MURERE!C$27:C$38,MURERE!$A$27:$A$38,ÅRSTOT!$A34)+SUMIFS('BLIKK OG VENTILASJON'!C$27:C$38,'BLIKK OG VENTILASJON'!$A$27:$A$38,ÅRSTOT!$A34)+SUMIFS(ISOLATØR!C$27:C$38,ISOLATØR!$A$27:$A$38,ÅRSTOT!$A34)+SUMIFS(MALERE!C$27:C$38,MALERE!$A$27:$A$38,ÅRSTOT!$A34)+SUMIFS(TAKTEKKERE!C$27:C$38,TAKTEKKERE!$A$27:$A$38,ÅRSTOT!$A34) -> 0 | D34: =SUMIFS(BETONG!D$27:D$38,BETONG!$A$27:$A$38,ÅRSTOT!$A34)+SUMIFS(TØMRERE!D$27:D$38,TØMRERE!$A$27:$A$38,ÅRSTOT!$A34)+SUMIFS(RØRLEGGERE!D$27:D$38,RØRLEGGERE!$A$27:$A$38,ÅRSTOT!$A34)+SUMIFS(MURERE!D$27:D$38,MURERE!$A$27:$A$38,ÅRSTOT!$A34)+SUMIFS('BLIKK OG VENTILASJON'!D$27:D$38,'BLIKK OG VENTILASJON'!$A$27:$A$38,ÅRSTOT!$A34)+SUMIFS(ISOLATØR!D$27:D$38,ISOLATØR!$A$27:$A$38,ÅRSTOT!$A34)+SUMIFS(MALERE!D$27:D$38,MALERE!$A$27:$A$38,ÅRSTOT!$A34)+SUMIFS(TAKTEKKERE!D$27:D$38,TAKTEKKERE!$A$27:$A$38,ÅRSTOT!$A34) -> 66216.43 | E34: =SUMIFS(BETONG!E$27:E$38,BETONG!$A$27:$A$38,ÅRSTOT!$A34)+SUMIFS(TØMRERE!E$27:E$38,TØMRERE!$A$27:$A$38,ÅRSTOT!$A34)+SUMIFS(RØRLEGGERE!E$27:E$38,RØRLEGGERE!$A$27:$A$38,ÅRSTOT!$A34)+SUMIFS(MURERE!E$27:E$38,MURERE!$A$27:$A$38,ÅRSTOT!$A34)+SUMIFS('BLIKK OG VENTILASJON'!E$27:E$38,'BLIKK OG VENTILASJON'!$A$27:$A$38,ÅRSTOT!$A34)+SUMIFS(ISOLATØR!E$27:E$38,ISOLATØR!$A$27:$A$38,ÅRSTOT!$A34)+SUMIFS(MALERE!E$27:E$38,MALERE!$A$27:$A$38,ÅRSTOT!$A34)+SUMIFS(TAKTEKKERE!E$27:E$38,TAKTEKKERE!$A$27:$A$38,ÅRSTOT!$A34) -> 0 | F34: 334.944865 | G34: 0 | H34: 334.944865 | I34: =SUMIFS(BETONG!I$27:I$38,BETONG!$A$27:$A$38,ÅRSTOT!$A34)+SUMIFS(TØMRERE!I$27:I$38,TØMRERE!$A$27:$A$38,ÅRSTOT!$A34)+SUMIFS(RØRLEGGERE!I$27:I$38,RØRLEGGERE!$A$27:$A$38,ÅRSTOT!$A34)+SUMIFS(MURERE!I$27:I$38,MURERE!$A$27:$A$38,ÅRSTOT!$A34)+SUMIFS('BLIKK OG VENTILASJON'!I$27:I$38,'BLIKK OG VENTILASJON'!$A$27:$A$38,ÅRSTOT!$A34)+SUMIFS(ISOLATØR!I$27:I$38,ISOLATØR!$A$27:$A$38,ÅRSTOT!$A34)+SUMIFS(MALERE!I$27:I$38,MALERE!$A$27:$A$38,ÅRSTOT!$A34)+SUMIFS(TAKTEKKERE!I$27:I$38,TAKTEKKERE!$A$27:$A$38,ÅRSTOT!$A34) -> 31744816.84 | J34: =SUMIFS(BETONG!J$27:J$38,BETONG!$A$27:$A$38,ÅRSTOT!$A34)+SUMIFS(TØMRERE!J$27:J$38,TØMRERE!$A$27:$A$38,ÅRSTOT!$A34)+SUMIFS(RØRLEGGERE!J$27:J$38,RØRLEGGERE!$A$27:$A$38,ÅRSTOT!$A34)+SUMIFS(MURERE!J$27:J$38,MURERE!$A$27:$A$38,ÅRSTOT!$A34)+SUMIFS('BLIKK OG VENTILASJON'!J$27:J$38,'BLIKK OG VENTILASJON'!$A$27:$A$38,ÅRSTOT!$A34)+SUMIFS(ISOLATØR!J$27:J$38,ISOLATØR!$A$27:$A$38,ÅRSTOT!$A34)+SUMIFS(MALERE!J$27:J$38,MALERE!$A$27:$A$38,ÅRSTOT!$A34)+SUMIFS(TAKTEKKERE!J$27:J$38,TAKTEKKERE!$A$27:$A$38,ÅRSTOT!$A34) -> 0 | K34: 328.212352 | L34: -0.3013393865 | M34: 0.02051267426
A35: Stavanger | B35: =SUMIFS(BETONG!B$27:B$38,BETONG!$A$27:$A$38,ÅRSTOT!$A35)+SUMIFS(TØMRERE!B$27:B$38,TØMRERE!$A$27:$A$38,ÅRSTOT!$A35)+SUMIFS(RØRLEGGERE!B$27:B$38,RØRLEGGERE!$A$27:$A$38,ÅRSTOT!$A35)+SUMIFS(MURERE!B$27:B$38,MURERE!$A$27:$A$38,ÅRSTOT!$A35)+SUMIFS('BLIKK OG VENTILASJON'!B$27:B$38,'BLIKK OG VENTILASJON'!$A$27:$A$38,ÅRSTOT!$A35)+SUMIFS(ISOLATØR!B$27:B$38,ISOLATØR!$A$27:$A$38,ÅRSTOT!$A35)+SUMIFS(MALERE!B$27:B$38,MALERE!$A$27:$A$38,ÅRSTOT!$A35)+SUMIFS(TAKTEKKERE!B$27:B$38,TAKTEKKERE!$A$27:$A$38,ÅRSTOT!$A35) -> 4049422.4 | C35: =SUMIFS(BETONG!C$27:C$38,BETONG!$A$27:$A$38,ÅRSTOT!$A35)+SUMIFS(TØMRERE!C$27:C$38,TØMRERE!$A$27:$A$38,ÅRSTOT!$A35)+SUMIFS(RØRLEGGERE!C$27:C$38,RØRLEGGERE!$A$27:$A$38,ÅRSTOT!$A35)+SUMIFS(MURERE!C$27:C$38,MURERE!$A$27:$A$38,ÅRSTOT!$A35)+SUMIFS('BLIKK OG VENTILASJON'!C$27:C$38,'BLIKK OG VENTILASJON'!$A$27:$A$38,ÅRSTOT!$A35)+SUMIFS(ISOLATØR!C$27:C$38,ISOLATØR!$A$27:$A$38,ÅRSTOT!$A35)+SUMIFS(MALERE!C$27:C$38,MALERE!$A$27:$A$38,ÅRSTOT!$A35)+SUMIFS(TAKTEKKERE!C$27:C$38,TAKTEKKERE!$A$27:$A$38,ÅRSTOT!$A35) -> 0 | D35: =SUMIFS(BETONG!D$27:D$38,BETONG!$A$27:$A$38,ÅRSTOT!$A35)+SUMIFS(TØMRERE!D$27:D$38,TØMRERE!$A$27:$A$38,ÅRSTOT!$A35)+SUMIFS(RØRLEGGERE!D$27:D$38,RØRLEGGERE!$A$27:$A$38,ÅRSTOT!$A35)+SUMIFS(MURERE!D$27:D$38,MURERE!$A$27:$A$38,ÅRSTOT!$A35)+SUMIFS('BLIKK OG VENTILASJON'!D$27:D$38,'BLIKK OG VENTILASJON'!$A$27:$A$38,ÅRSTOT!$A35)+SUMIFS(ISOLATØR!D$27:D$38,ISOLATØR!$A$27:$A$38,ÅRSTOT!$A35)+SUMIFS(MALERE!D$27:D$38,MALERE!$A$27:$A$38,ÅRSTOT!$A35)+SUMIFS(TAKTEKKERE!D$27:D$38,TAKTEKKERE!$A$27:$A$38,ÅRSTOT!$A35) -> 11898 | E35: =SUMIFS(BETONG!E$27:E$38,BETONG!$A$27:$A$38,ÅRSTOT!$A35)+SUMIFS(TØMRERE!E$27:E$38,TØMRERE!$A$27:$A$38,ÅRSTOT!$A35)+SUMIFS(RØRLEGGERE!E$27:E$38,RØRLEGGERE!$A$27:$A$38,ÅRSTOT!$A35)+SUMIFS(MURERE!E$27:E$38,MURERE!$A$27:$A$38,ÅRSTOT!$A35)+SUMIFS('BLIKK OG VENTILASJON'!E$27:E$38,'BLIKK OG VENTILASJON'!$A$27:$A$38,ÅRSTOT!$A35)+SUMIFS(ISOLATØR!E$27:E$38,ISOLATØR!$A$27:$A$38,ÅRSTOT!$A35)+SUMIFS(MALERE!E$27:E$38,MALERE!$A$27:$A$38,ÅRSTOT!$A35)+SUMIFS(TAKTEKKERE!E$27:E$38,TAKTEKKERE!$A$27:$A$38,ÅRSTOT!$A35) -> 0 | F35: 340.3447974 | G35: 0 | H35: 340.3447974 | I35: =SUMIFS(BETONG!I$27:I$38,BETONG!$A$27:$A$38,ÅRSTOT!$A35)+SUMIFS(TØMRERE!I$27:I$38,TØMRERE!$A$27:$A$38,ÅRSTOT!$A35)+SUMIFS(RØRLEGGERE!I$27:I$38,RØRLEGGERE!$A$27:$A$38,ÅRSTOT!$A35)+SUMIFS(MURERE!I$27:I$38,MURERE!$A$27:$A$38,ÅRSTOT!$A35)+SUMIFS('BLIKK OG VENTILASJON'!I$27:I$38,'BLIKK OG VENTILASJON'!$A$27:$A$38,ÅRSTOT!$A35)+SUMIFS(ISOLATØR!I$27:I$38,ISOLATØR!$A$27:$A$38,ÅRSTOT!$A35)+SUMIFS(MALERE!I$27:I$38,MALERE!$A$27:$A$38,ÅRSTOT!$A35)+SUMIFS(TAKTEKKERE!I$27:I$38,TAKTEKKERE!$A$27:$A$38,ÅRSTOT!$A35) -> 4132135.43 | J35: =SUMIFS(BETONG!J$27:J$38,BETONG!$A$27:$A$38,ÅRSTOT!$A35)+SUMIFS(TØMRERE!J$27:J$38,TØMRERE!$A$27:$A$38,ÅRSTOT!$A35)+SUMIFS(RØRLEGGERE!J$27:J$38,RØRLEGGERE!$A$27:$A$38,ÅRSTOT!$A35)+SUMIFS(MURERE!J$27:J$38,MURERE!$A$27:$A$38,ÅRSTOT!$A35)+SUMIFS('BLIKK OG VENTILASJON'!J$27:J$38,'BLIKK OG VENTILASJON'!$A$27:$A$38,ÅRSTOT!$A35)+SUMIFS(ISOLATØR!J$27:J$38,ISOLATØR!$A$27:$A$38,ÅRSTOT!$A35)+SUMIFS(MALERE!J$27:J$38,MALERE!$A$27:$A$38,ÅRSTOT!$A35)+SUMIFS(TAKTEKKERE!J$27:J$38,TAKTEKKERE!$A$27:$A$38,ÅRSTOT!$A35) -> 0 | K35: 311.4244587 | L35: -0.02001701817 | M35: 0.09286469948
A36: Telemark | B36: =SUMIFS(BETONG!B$27:B$38,BETONG!$A$27:$A$38,ÅRSTOT!$A36)+SUMIFS(TØMRERE!B$27:B$38,TØMRERE!$A$27:$A$38,ÅRSTOT!$A36)+SUMIFS(RØRLEGGERE!B$27:B$38,RØRLEGGERE!$A$27:$A$38,ÅRSTOT!$A36)+SUMIFS(MURERE!B$27:B$38,MURERE!$A$27:$A$38,ÅRSTOT!$A36)+SUMIFS('BLIKK OG VENTILASJON'!B$27:B$38,'BLIKK OG VENTILASJON'!$A$27:$A$38,ÅRSTOT!$A36)+SUMIFS(ISOLATØR!B$27:B$38,ISOLATØR!$A$27:$A$38,ÅRSTOT!$A36)+SUMIFS(MALERE!B$27:B$38,MALERE!$A$27:$A$38,ÅRSTOT!$A36)+SUMIFS(TAKTEKKERE!B$27:B$38,TAKTEKKERE!$A$27:$A$38,ÅRSTOT!$A36) -> 19220692 | C36: =SUMIFS(BETONG!C$27:C$38,BETONG!$A$27:$A$38,ÅRSTOT!$A36)+SUMIFS(TØMRERE!C$27:C$38,TØMRERE!$A$27:$A$38,ÅRSTOT!$A36)+SUMIFS(RØRLEGGERE!C$27:C$38,RØRLEGGERE!$A$27:$A$38,ÅRSTOT!$A36)+SUMIFS(MURERE!C$27:C$38,MURERE!$A$27:$A$38,ÅRSTOT!$A36)+SUMIFS('BLIKK OG VENTILASJON'!C$27:C$38,'BLIKK OG VENTILASJON'!$A$27:$A$38,ÅRSTOT!$A36)+SUMIFS(ISOLATØR!C$27:C$38,ISOLATØR!$A$27:$A$38,ÅRSTOT!$A36)+SUMIFS(MALERE!C$27:C$38,MALERE!$A$27:$A$38,ÅRSTOT!$A36)+SUMIFS(TAKTEKKERE!C$27:C$38,TAKTEKKERE!$A$27:$A$38,ÅRSTOT!$A36) -> 57403 | D36: =SUMIFS(BETONG!D$27:D$38,BETONG!$A$27:$A$38,ÅRSTOT!$A36)+SUMIFS(TØMRERE!D$27:D$38,TØMRERE!$A$27:$A$38,ÅRSTOT!$A36)+SUMIFS(RØRLEGGERE!D$27:D$38,RØRLEGGERE!$A$27:$A$38,ÅRSTOT!$A36)+SUMIFS(MURERE!D$27:D$38,MURERE!$A$27:$A$38,ÅRSTOT!$A36)+SUMIFS('BLIKK OG VENTILASJON'!D$27:D$38,'BLIKK OG VENTILASJON'!$A$27:$A$38,ÅRSTOT!$A36)+SUMIFS(ISOLATØR!D$27:D$38,ISOLATØR!$A$27:$A$38,ÅRSTOT!$A36)+SUMIFS(MALERE!D$27:D$38,MALERE!$A$27:$A$38,ÅRSTOT!$A36)+SUMIFS(TAKTEKKERE!D$27:D$38,TAKTEKKERE!$A$27:$A$38,ÅRSTOT!$A36) -> 63812.8 | E36: =SUMIFS(BETONG!E$27:E$38,BETONG!$A$27:$A$38,ÅRSTOT!$A36)+SUMIFS(TØMRERE!E$27:E$38,TØMRERE!$A$27:$A$38,ÅRSTOT!$A36)+SUMIFS(RØRLEGGERE!E$27:E$38,RØRLEGGERE!$A$27:$A$38,ÅRSTOT!$A36)+SUMIFS(MURERE!E$27:E$38,MURERE!$A$27:$A$38,ÅRSTOT!$A36)+SUMIFS('BLIKK OG VENTILASJON'!E$27:E$38,'BLIKK OG VENTILASJON'!$A$27:$A$38,ÅRSTOT!$A36)+SUMIFS(ISOLATØR!E$27:E$38,ISOLATØR!$A$27:$A$38,ÅRSTOT!$A36)+SUMIFS(MALERE!E$27:E$38,MALERE!$A$27:$A$38,ÅRSTOT!$A36)+SUMIFS(TAKTEKKERE!E$27:E$38,TAKTEKKERE!$A$27:$A$38,ÅRSTOT!$A36) -> 366 | F36: =IF(D36=0,0,B36/D36) -> 301.2043352 | G36: 156.8387978 | H36: 300.3810448 | I36: =SUMIFS(BETONG!I$27:I$38,BETONG!$A$27:$A$38,ÅRSTOT!$A36)+SUMIFS(TØMRERE!I$27:I$38,TØMRERE!$A$27:$A$38,ÅRSTOT!$A36)+SUMIFS(RØRLEGGERE!I$27:I$38,RØRLEGGERE!$A$27:$A$38,ÅRSTOT!$A36)+SUMIFS(MURERE!I$27:I$38,MURERE!$A$27:$A$38,ÅRSTOT!$A36)+SUMIFS('BLIKK OG VENTILASJON'!I$27:I$38,'BLIKK OG VENTILASJON'!$A$27:$A$38,ÅRSTOT!$A36)+SUMIFS(ISOLATØR!I$27:I$38,ISOLATØR!$A$27:$A$38,ÅRSTOT!$A36)+SUMIFS(MALERE!I$27:I$38,MALERE!$A$27:$A$38,ÅRSTOT!$A36)+SUMIFS(TAKTEKKERE!I$27:I$38,TAKTEKKERE!$A$27:$A$38,ÅRSTOT!$A36) -> 12895111 | J36: =SUMIFS(BETONG!J$27:J$38,BETONG!$A$27:$A$38,ÅRSTOT!$A36)+SUMIFS(TØMRERE!J$27:J$38,TØMRERE!$A$27:$A$38,ÅRSTOT!$A36)+SUMIFS(RØRLEGGERE!J$27:J$38,RØRLEGGERE!$A$27:$A$38,ÅRSTOT!$A36)+SUMIFS(MURERE!J$27:J$38,MURERE!$A$27:$A$38,ÅRSTOT!$A36)+SUMIFS('BLIKK OG VENTILASJON'!J$27:J$38,'BLIKK OG VENTILASJON'!$A$27:$A$38,ÅRSTOT!$A36)+SUMIFS(ISOLATØR!J$27:J$38,ISOLATØR!$A$27:$A$38,ÅRSTOT!$A36)+SUMIFS(MALERE!J$27:J$38,MALERE!$A$27:$A$38,ÅRSTOT!$A36)+SUMIFS(TAKTEKKERE!J$27:J$38,TAKTEKKERE!$A$27:$A$38,ÅRSTOT!$A36) -> 2000000 | K36: 321.7051868 | L36: 0.4905410275 | M36: -0.06628473153
A37: Trondheim | B37: =SUMIFS(BETONG!B$27:B$38,BETONG!$A$27:$A$38,ÅRSTOT!$A37)+SUMIFS(TØMRERE!B$27:B$38,TØMRERE!$A$27:$A$38,ÅRSTOT!$A37)+SUMIFS(RØRLEGGERE!B$27:B$38,RØRLEGGERE!$A$27:$A$38,ÅRSTOT!$A37)+SUMIFS(MURERE!B$27:B$38,MURERE!$A$27:$A$38,ÅRSTOT!$A37)+SUMIFS('BLIKK OG VENTILASJON'!B$27:B$38,'BLIKK OG VENTILASJON'!$A$27:$A$38,ÅRSTOT!$A37)+SUMIFS(ISOLATØR!B$27:B$38,ISOLATØR!$A$27:$A$38,ÅRSTOT!$A37)+SUMIFS(MALERE!B$27:B$38,MALERE!$A$27:$A$38,ÅRSTOT!$A37)+SUMIFS(TAKTEKKERE!B$27:B$38,TAKTEKKERE!$A$27:$A$38,ÅRSTOT!$A37) -> 148050234.2 | C37: =SUMIFS(BETONG!C$27:C$38,BETONG!$A$27:$A$38,ÅRSTOT!$A37)+SUMIFS(TØMRERE!C$27:C$38,TØMRERE!$A$27:$A$38,ÅRSTOT!$A37)+SUMIFS(RØRLEGGERE!C$27:C$38,RØRLEGGERE!$A$27:$A$38,ÅRSTOT!$A37)+SUMIFS(MURERE!C$27:C$38,MURERE!$A$27:$A$38,ÅRSTOT!$A37)+SUMIFS('BLIKK OG VENTILASJON'!C$27:C$38,'BLIKK OG VENTILASJON'!$A$27:$A$38,ÅRSTOT!$A37)+SUMIFS(ISOLATØR!C$27:C$38,ISOLATØR!$A$27:$A$38,ÅRSTOT!$A37)+SUMIFS(MALERE!C$27:C$38,MALERE!$A$27:$A$38,ÅRSTOT!$A37)+SUMIFS(TAKTEKKERE!C$27:C$38,TAKTEKKERE!$A$27:$A$38,ÅRSTOT!$A37) -> 8638814.34 | D37: =SUMIFS(BETONG!D$27:D$38,BETONG!$A$27:$A$38,ÅRSTOT!$A37)+SUMIFS(TØMRERE!D$27:D$38,TØMRERE!$A$27:$A$38,ÅRSTOT!$A37)+SUMIFS(RØRLEGGERE!D$27:D$38,RØRLEGGERE!$A$27:$A$38,ÅRSTOT!$A37)+SUMIFS(MURERE!D$27:D$38,MURERE!$A$27:$A$38,ÅRSTOT!$A37)+SUMIFS('BLIKK OG VENTILASJON'!D$27:D$38,'BLIKK OG VENTILASJON'!$A$27:$A$38,ÅRSTOT!$A37)+SUMIFS(ISOLATØR!D$27:D$38,ISOLATØR!$A$27:$A$38,ÅRSTOT!$A37)+SUMIFS(MALERE!D$27:D$38,MALERE!$A$27:$A$38,ÅRSTOT!$A37)+SUMIFS(TAKTEKKERE!D$27:D$38,TAKTEKKERE!$A$27:$A$38,ÅRSTOT!$A37) -> 435933.6 | E37: =SUMIFS(BETONG!E$27:E$38,BETONG!$A$27:$A$38,ÅRSTOT!$A37)+SUMIFS(TØMRERE!E$27:E$38,TØMRERE!$A$27:$A$38,ÅRSTOT!$A37)+SUMIFS(RØRLEGGERE!E$27:E$38,RØRLEGGERE!$A$27:$A$38,ÅRSTOT!$A37)+SUMIFS(MURERE!E$27:E$38,MURERE!$A$27:$A$38,ÅRSTOT!$A37)+SUMIFS('BLIKK OG VENTILASJON'!E$27:E$38,'BLIKK OG VENTILASJON'!$A$27:$A$38,ÅRSTOT!$A37)+SUMIFS(ISOLATØR!E$27:E$38,ISOLATØR!$A$27:$A$38,ÅRSTOT!$A37)+SUMIFS(MALERE!E$27:E$38,MALERE!$A$27:$A$38,ÅRSTOT!$A37)+SUMIFS(TAKTEKKERE!E$27:E$38,TAKTEKKERE!$A$27:$A$38,ÅRSTOT!$A37) -> 40034.72 | F37: =IF(B37=0,0,B37/D37) -> 339.6164787 | G37: =IF(E37=0,0,C37/E37) -> 215.7830588 | H37: 329.2005831 | I37: =SUMIFS(BETONG!I$27:I$38,BETONG!$A$27:$A$38,ÅRSTOT!$A37)+SUMIFS(TØMRERE!I$27:I$38,TØMRERE!$A$27:$A$38,ÅRSTOT!$A37)+SUMIFS(RØRLEGGERE!I$27:I$38,RØRLEGGERE!$A$27:$A$38,ÅRSTOT!$A37)+SUMIFS(MURERE!I$27:I$38,MURERE!$A$27:$A$38,ÅRSTOT!$A37)+SUMIFS('BLIKK OG VENTILASJON'!I$27:I$38,'BLIKK OG VENTILASJON'!$A$27:$A$38,ÅRSTOT!$A37)+SUMIFS(ISOLATØR!I$27:I$38,ISOLATØR!$A$27:$A$38,ÅRSTOT!$A37)+SUMIFS(MALERE!I$27:I$38,MALERE!$A$27:$A$38,ÅRSTOT!$A37)+SUMIFS(TAKTEKKERE!I$27:I$38,TAKTEKKERE!$A$27:$A$38,ÅRSTOT!$A37) -> 135011761 | J37: =SUMIFS(BETONG!J$27:J$38,BETONG!$A$27:$A$38,ÅRSTOT!$A37)+SUMIFS(TØMRERE!J$27:J$38,TØMRERE!$A$27:$A$38,ÅRSTOT!$A37)+SUMIFS(RØRLEGGERE!J$27:J$38,RØRLEGGERE!$A$27:$A$38,ÅRSTOT!$A37)+SUMIFS(MURERE!J$27:J$38,MURERE!$A$27:$A$38,ÅRSTOT!$A37)+SUMIFS('BLIKK OG VENTILASJON'!J$27:J$38,'BLIKK OG VENTILASJON'!$A$27:$A$38,ÅRSTOT!$A37)+SUMIFS(ISOLATØR!J$27:J$38,ISOLATØR!$A$27:$A$38,ÅRSTOT!$A37)+SUMIFS(MALERE!J$27:J$38,MALERE!$A$27:$A$38,ÅRSTOT!$A37)+SUMIFS(TAKTEKKERE!J$27:J$38,TAKTEKKERE!$A$27:$A$38,ÅRSTOT!$A37) -> 15532124.66 | K37: 296.2068629 | L37: 0.09657286906 | M37: 0.1113874269
A38: Vestfold | B38: =SUMIFS(BETONG!B$27:B$38,BETONG!$A$27:$A$38,ÅRSTOT!$A38)+SUMIFS(TØMRERE!B$27:B$38,TØMRERE!$A$27:$A$38,ÅRSTOT!$A38)+SUMIFS(RØRLEGGERE!B$27:B$38,RØRLEGGERE!$A$27:$A$38,ÅRSTOT!$A38)+SUMIFS(MURERE!B$27:B$38,MURERE!$A$27:$A$38,ÅRSTOT!$A38)+SUMIFS('BLIKK OG VENTILASJON'!B$27:B$38,'BLIKK OG VENTILASJON'!$A$27:$A$38,ÅRSTOT!$A38)+SUMIFS(ISOLATØR!B$27:B$38,ISOLATØR!$A$27:$A$38,ÅRSTOT!$A38)+SUMIFS(MALERE!B$27:B$38,MALERE!$A$27:$A$38,ÅRSTOT!$A38)+SUMIFS(TAKTEKKERE!B$27:B$38,TAKTEKKERE!$A$27:$A$38,ÅRSTOT!$A38) -> 1472901 | C38: =SUMIFS(BETONG!C$27:C$38,BETONG!$A$27:$A$38,ÅRSTOT!$A38)+SUMIFS(TØMRERE!C$27:C$38,TØMRERE!$A$27:$A$38,ÅRSTOT!$A38)+SUMIFS(RØRLEGGERE!C$27:C$38,RØRLEGGERE!$A$27:$A$38,ÅRSTOT!$A38)+SUMIFS(MURERE!C$27:C$38,MURERE!$A$27:$A$38,ÅRSTOT!$A38)+SUMIFS('BLIKK OG VENTILASJON'!C$27:C$38,'BLIKK OG VENTILASJON'!$A$27:$A$38,ÅRSTOT!$A38)+SUMIFS(ISOLATØR!C$27:C$38,ISOLATØR!$A$27:$A$38,ÅRSTOT!$A38)+SUMIFS(MALERE!C$27:C$38,MALERE!$A$27:$A$38,ÅRSTOT!$A38)+SUMIFS(TAKTEKKERE!C$27:C$38,TAKTEKKERE!$A$27:$A$38,ÅRSTOT!$A38) -> 0 | D38: =SUMIFS(BETONG!D$27:D$38,BETONG!$A$27:$A$38,ÅRSTOT!$A38)+SUMIFS(TØMRERE!D$27:D$38,TØMRERE!$A$27:$A$38,ÅRSTOT!$A38)+SUMIFS(RØRLEGGERE!D$27:D$38,RØRLEGGERE!$A$27:$A$38,ÅRSTOT!$A38)+SUMIFS(MURERE!D$27:D$38,MURERE!$A$27:$A$38,ÅRSTOT!$A38)+SUMIFS('BLIKK OG VENTILASJON'!D$27:D$38,'BLIKK OG VENTILASJON'!$A$27:$A$38,ÅRSTOT!$A38)+SUMIFS(ISOLATØR!D$27:D$38,ISOLATØR!$A$27:$A$38,ÅRSTOT!$A38)+SUMIFS(MALERE!D$27:D$38,MALERE!$A$27:$A$38,ÅRSTOT!$A38)+SUMIFS(TAKTEKKERE!D$27:D$38,TAKTEKKERE!$A$27:$A$38,ÅRSTOT!$A38) -> 2955.5 | E38: =SUMIFS(BETONG!E$27:E$38,BETONG!$A$27:$A$38,ÅRSTOT!$A38)+SUMIFS(TØMRERE!E$27:E$38,TØMRERE!$A$27:$A$38,ÅRSTOT!$A38)+SUMIFS(RØRLEGGERE!E$27:E$38,RØRLEGGERE!$A$27:$A$38,ÅRSTOT!$A38)+SUMIFS(MURERE!E$27:E$38,MURERE!$A$27:$A$38,ÅRSTOT!$A38)+SUMIFS('BLIKK OG VENTILASJON'!E$27:E$38,'BLIKK OG VENTILASJON'!$A$27:$A$38,ÅRSTOT!$A38)+SUMIFS(ISOLATØR!E$27:E$38,ISOLATØR!$A$27:$A$38,ÅRSTOT!$A38)+SUMIFS(MALERE!E$27:E$38,MALERE!$A$27:$A$38,ÅRSTOT!$A38)+SUMIFS(TAKTEKKERE!E$27:E$38,TAKTEKKERE!$A$27:$A$38,ÅRSTOT!$A38) -> 0 | F38: =IF(D38=0,0,B38/D38) -> 498.3593301 | G38: 0 | H38: 498.3593301 | I38: =SUMIFS(BETONG!I$27:I$38,BETONG!$A$27:$A$38,ÅRSTOT!$A38)+SUMIFS(TØMRERE!I$27:I$38,TØMRERE!$A$27:$A$38,ÅRSTOT!$A38)+SUMIFS(RØRLEGGERE!I$27:I$38,RØRLEGGERE!$A$27:$A$38,ÅRSTOT!$A38)+SUMIFS(MURERE!I$27:I$38,MURERE!$A$27:$A$38,ÅRSTOT!$A38)+SUMIFS('BLIKK OG VENTILASJON'!I$27:I$38,'BLIKK OG VENTILASJON'!$A$27:$A$38,ÅRSTOT!$A38)+SUMIFS(ISOLATØR!I$27:I$38,ISOLATØR!$A$27:$A$38,ÅRSTOT!$A38)+SUMIFS(MALERE!I$27:I$38,MALERE!$A$27:$A$38,ÅRSTOT!$A38)+SUMIFS(TAKTEKKERE!I$27:I$38,TAKTEKKERE!$A$27:$A$38,ÅRSTOT!$A38) -> 328413 | J38: =SUMIFS(BETONG!J$27:J$38,BETONG!$A$27:$A$38,ÅRSTOT!$A38)+SUMIFS(TØMRERE!J$27:J$38,TØMRERE!$A$27:$A$38,ÅRSTOT!$A38)+SUMIFS(RØRLEGGERE!J$27:J$38,RØRLEGGERE!$A$27:$A$38,ÅRSTOT!$A38)+SUMIFS(MURERE!J$27:J$38,MURERE!$A$27:$A$38,ÅRSTOT!$A38)+SUMIFS('BLIKK OG VENTILASJON'!J$27:J$38,'BLIKK OG VENTILASJON'!$A$27:$A$38,ÅRSTOT!$A38)+SUMIFS(ISOLATØR!J$27:J$38,ISOLATØR!$A$27:$A$38,ÅRSTOT!$A38)+SUMIFS(MALERE!J$27:J$38,MALERE!$A$27:$A$38,ÅRSTOT!$A38)+SUMIFS(TAKTEKKERE!J$27:J$38,TAKTEKKERE!$A$27:$A$38,ÅRSTOT!$A38) -> 0 | K38: 393.7805755 | L38: 3.484904678 | M38: 0.2655762143
A39: Østfold | B39: =SUMIFS(BETONG!B$27:B$38,BETONG!$A$27:$A$38,ÅRSTOT!$A39)+SUMIFS(TØMRERE!B$27:B$38,TØMRERE!$A$27:$A$38,ÅRSTOT!$A39)+SUMIFS(RØRLEGGERE!B$27:B$38,RØRLEGGERE!$A$27:$A$38,ÅRSTOT!$A39)+SUMIFS(MURERE!B$27:B$38,MURERE!$A$27:$A$38,ÅRSTOT!$A39)+SUMIFS('BLIKK OG VENTILASJON'!B$27:B$38,'BLIKK OG VENTILASJON'!$A$27:$A$38,ÅRSTOT!$A39)+SUMIFS(ISOLATØR!B$27:B$38,ISOLATØR!$A$27:$A$38,ÅRSTOT!$A39)+SUMIFS(MALERE!B$27:B$38,MALERE!$A$27:$A$38,ÅRSTOT!$A39)+SUMIFS(TAKTEKKERE!B$27:B$38,TAKTEKKERE!$A$27:$A$38,ÅRSTOT!$A39) -> 6265419.5 | C39: =SUMIFS(BETONG!C$27:C$38,BETONG!$A$27:$A$38,ÅRSTOT!$A39)+SUMIFS(TØMRERE!C$27:C$38,TØMRERE!$A$27:$A$38,ÅRSTOT!$A39)+SUMIFS(RØRLEGGERE!C$27:C$38,RØRLEGGERE!$A$27:$A$38,ÅRSTOT!$A39)+SUMIFS(MURERE!C$27:C$38,MURERE!$A$27:$A$38,ÅRSTOT!$A39)+SUMIFS('BLIKK OG VENTILASJON'!C$27:C$38,'BLIKK OG VENTILASJON'!$A$27:$A$38,ÅRSTOT!$A39)+SUMIFS(ISOLATØR!C$27:C$38,ISOLATØR!$A$27:$A$38,ÅRSTOT!$A39)+SUMIFS(MALERE!C$27:C$38,MALERE!$A$27:$A$38,ÅRSTOT!$A39)+SUMIFS(TAKTEKKERE!C$27:C$38,TAKTEKKERE!$A$27:$A$38,ÅRSTOT!$A39) -> 895337 | D39: =SUMIFS(BETONG!D$27:D$38,BETONG!$A$27:$A$38,ÅRSTOT!$A39)+SUMIFS(TØMRERE!D$27:D$38,TØMRERE!$A$27:$A$38,ÅRSTOT!$A39)+SUMIFS(RØRLEGGERE!D$27:D$38,RØRLEGGERE!$A$27:$A$38,ÅRSTOT!$A39)+SUMIFS(MURERE!D$27:D$38,MURERE!$A$27:$A$38,ÅRSTOT!$A39)+SUMIFS('BLIKK OG VENTILASJON'!D$27:D$38,'BLIKK OG VENTILASJON'!$A$27:$A$38,ÅRSTOT!$A39)+SUMIFS(ISOLATØR!D$27:D$38,ISOLATØR!$A$27:$A$38,ÅRSTOT!$A39)+SUMIFS(MALERE!D$27:D$38,MALERE!$A$27:$A$38,ÅRSTOT!$A39)+SUMIFS(TAKTEKKERE!D$27:D$38,TAKTEKKERE!$A$27:$A$38,ÅRSTOT!$A39) -> 16055 | E39: =SUMIFS(BETONG!E$27:E$38,BETONG!$A$27:$A$38,ÅRSTOT!$A39)+SUMIFS(TØMRERE!E$27:E$38,TØMRERE!$A$27:$A$38,ÅRSTOT!$A39)+SUMIFS(RØRLEGGERE!E$27:E$38,RØRLEGGERE!$A$27:$A$38,ÅRSTOT!$A39)+SUMIFS(MURERE!E$27:E$38,MURERE!$A$27:$A$38,ÅRSTOT!$A39)+SUMIFS('BLIKK OG VENTILASJON'!E$27:E$38,'BLIKK OG VENTILASJON'!$A$27:$A$38,ÅRSTOT!$A39)+SUMIFS(ISOLATØR!E$27:E$38,ISOLATØR!$A$27:$A$38,ÅRSTOT!$A39)+SUMIFS(MALERE!E$27:E$38,MALERE!$A$27:$A$38,ÅRSTOT!$A39)+SUMIFS(TAKTEKKERE!E$27:E$38,TAKTEKKERE!$A$27:$A$38,ÅRSTOT!$A39) -> 4096 | F39: 390.2472438 | G39: 218.5881348 | H39: 355.3548955 | I39: =SUMIFS(BETONG!I$27:I$38,BETONG!$A$27:$A$38,ÅRSTOT!$A39)+SUMIFS(TØMRERE!I$27:I$38,TØMRERE!$A$27:$A$38,ÅRSTOT!$A39)+SUMIFS(RØRLEGGERE!I$27:I$38,RØRLEGGERE!$A$27:$A$38,ÅRSTOT!$A39)+SUMIFS(MURERE!I$27:I$38,MURERE!$A$27:$A$38,ÅRSTOT!$A39)+SUMIFS('BLIKK OG VENTILASJON'!I$27:I$38,'BLIKK OG VENTILASJON'!$A$27:$A$38,ÅRSTOT!$A39)+SUMIFS(ISOLATØR!I$27:I$38,ISOLATØR!$A$27:$A$38,ÅRSTOT!$A39)+SUMIFS(MALERE!I$27:I$38,MALERE!$A$27:$A$38,ÅRSTOT!$A39)+SUMIFS(TAKTEKKERE!I$27:I$38,TAKTEKKERE!$A$27:$A$38,ÅRSTOT!$A39) -> 17242127 | J39: =SUMIFS(BETONG!J$27:J$38,BETONG!$A$27:$A$38,ÅRSTOT!$A39)+SUMIFS(TØMRERE!J$27:J$38,TØMRERE!$A$27:$A$38,ÅRSTOT!$A39)+SUMIFS(RØRLEGGERE!J$27:J$38,RØRLEGGERE!$A$27:$A$38,ÅRSTOT!$A39)+SUMIFS(MURERE!J$27:J$38,MURERE!$A$27:$A$38,ÅRSTOT!$A39)+SUMIFS('BLIKK OG VENTILASJON'!J$27:J$38,'BLIKK OG VENTILASJON'!$A$27:$A$38,ÅRSTOT!$A39)+SUMIFS(ISOLATØR!J$27:J$38,ISOLATØR!$A$27:$A$38,ÅRSTOT!$A39)+SUMIFS(MALERE!J$27:J$38,MALERE!$A$27:$A$38,ÅRSTOT!$A39)+SUMIFS(TAKTEKKERE!J$27:J$38,TAKTEKKERE!$A$27:$A$38,ÅRSTOT!$A39) -> 96089 | K39: 308.1390856 | L39: -0.6366214273 | M39: 0.1532288896
A40: Oslo | B40: =SUMIFS(BETONG!B$27:B$38,BETONG!$A$27:$A$38,ÅRSTOT!$A40)+SUMIFS(TØMRERE!B$27:B$38,TØMRERE!$A$27:$A$38,ÅRSTOT!$A40)+SUMIFS(RØRLEGGERE!B$27:B$38,RØRLEGGERE!$A$27:$A$38,ÅRSTOT!$A40)+SUMIFS(MURERE!B$27:B$38,MURERE!$A$27:$A$38,ÅRSTOT!$A40)+SUMIFS('BLIKK OG VENTILASJON'!B$27:B$38,'BLIKK OG VENTILASJON'!$A$27:$A$38,ÅRSTOT!$A40)+SUMIFS(ISOLATØR!B$27:B$38,ISOLATØR!$A$27:$A$38,ÅRSTOT!$A40)+SUMIFS(MALERE!B$27:B$38,MALERE!$A$27:$A$38,ÅRSTOT!$A40)+SUMIFS(TAKTEKKERE!B$27:B$38,TAKTEKKERE!$A$27:$A$38,ÅRSTOT!$A40) -> 85436379.07 | C40: =SUMIFS(BETONG!C$27:C$38,BETONG!$A$27:$A$38,ÅRSTOT!$A40)+SUMIFS(TØMRERE!C$27:C$38,TØMRERE!$A$27:$A$38,ÅRSTOT!$A40)+SUMIFS(RØRLEGGERE!C$27:C$38,RØRLEGGERE!$A$27:$A$38,ÅRSTOT!$A40)+SUMIFS(MURERE!C$27:C$38,MURERE!$A$27:$A$38,ÅRSTOT!$A40)+SUMIFS('BLIKK OG VENTILASJON'!C$27:C$38,'BLIKK OG VENTILASJON'!$A$27:$A$38,ÅRSTOT!$A40)+SUMIFS(ISOLATØR!C$27:C$38,ISOLATØR!$A$27:$A$38,ÅRSTOT!$A40)+SUMIFS(MALERE!C$27:C$38,MALERE!$A$27:$A$38,ÅRSTOT!$A40)+SUMIFS(TAKTEKKERE!C$27:C$38,TAKTEKKERE!$A$27:$A$38,ÅRSTOT!$A40) -> 494715.99 | D40: =SUMIFS(BETONG!D$27:D$38,BETONG!$A$27:$A$38,ÅRSTOT!$A40)+SUMIFS(TØMRERE!D$27:D$38,TØMRERE!$A$27:$A$38,ÅRSTOT!$A40)+SUMIFS(RØRLEGGERE!D$27:D$38,RØRLEGGERE!$A$27:$A$38,ÅRSTOT!$A40)+SUMIFS(MURERE!D$27:D$38,MURERE!$A$27:$A$38,ÅRSTOT!$A40)+SUMIFS('BLIKK OG VENTILASJON'!D$27:D$38,'BLIKK OG VENTILASJON'!$A$27:$A$38,ÅRSTOT!$A40)+SUMIFS(ISOLATØR!D$27:D$38,ISOLATØR!$A$27:$A$38,ÅRSTOT!$A40)+SUMIFS(MALERE!D$27:D$38,MALERE!$A$27:$A$38,ÅRSTOT!$A40)+SUMIFS(TAKTEKKERE!D$27:D$38,TAKTEKKERE!$A$27:$A$38,ÅRSTOT!$A40) -> 253378.1 | E40: =SUMIFS(BETONG!E$27:E$38,BETONG!$A$27:$A$38,ÅRSTOT!$A40)+SUMIFS(TØMRERE!E$27:E$38,TØMRERE!$A$27:$A$38,ÅRSTOT!$A40)+SUMIFS(RØRLEGGERE!E$27:E$38,RØRLEGGERE!$A$27:$A$38,ÅRSTOT!$A40)+SUMIFS(MURERE!E$27:E$38,MURERE!$A$27:$A$38,ÅRSTOT!$A40)+SUMIFS('BLIKK OG VENTILASJON'!E$27:E$38,'BLIKK OG VENTILASJON'!$A$27:$A$38,ÅRSTOT!$A40)+SUMIFS(ISOLATØR!E$27:E$38,ISOLATØR!$A$27:$A$38,ÅRSTOT!$A40)+SUMIFS(MALERE!E$27:E$38,MALERE!$A$27:$A$38,ÅRSTOT!$A40)+SUMIFS(TAKTEKKERE!E$27:E$38,TAKTEKKERE!$A$27:$A$38,ÅRSTOT!$A40) -> 2247 | F40: 337.1892799 | G40: 220.1673298 | H40: 336.1606316 | I40: =SUMIFS(BETONG!I$27:I$38,BETONG!$A$27:$A$38,ÅRSTOT!$A40)+SUMIFS(TØMRERE!I$27:I$38,TØMRERE!$A$27:$A$38,ÅRSTOT!$A40)+SUMIFS(RØRLEGGERE!I$27:I$38,RØRLEGGERE!$A$27:$A$38,ÅRSTOT!$A40)+SUMIFS(MURERE!I$27:I$38,MURERE!$A$27:$A$38,ÅRSTOT!$A40)+SUMIFS('BLIKK OG VENTILASJON'!I$27:I$38,'BLIKK OG VENTILASJON'!$A$27:$A$38,ÅRSTOT!$A40)+SUMIFS(ISOLATØR!I$27:I$38,ISOLATØR!$A$27:$A$38,ÅRSTOT!$A40)+SUMIFS(MALERE!I$27:I$38,MALERE!$A$27:$A$38,ÅRSTOT!$A40)+SUMIFS(TAKTEKKERE!I$27:I$38,TAKTEKKERE!$A$27:$A$38,ÅRSTOT!$A40) -> 132928385.6 | J40: =SUMIFS(BETONG!J$27:J$38,BETONG!$A$27:$A$38,ÅRSTOT!$A40)+SUMIFS(TØMRERE!J$27:J$38,TØMRERE!$A$27:$A$38,ÅRSTOT!$A40)+SUMIFS(RØRLEGGERE!J$27:J$38,RØRLEGGERE!$A$27:$A$38,ÅRSTOT!$A40)+SUMIFS(MURERE!J$27:J$38,MURERE!$A$27:$A$38,ÅRSTOT!$A40)+SUMIFS('BLIKK OG VENTILASJON'!J$27:J$38,'BLIKK OG VENTILASJON'!$A$27:$A$38,ÅRSTOT!$A40)+SUMIFS(ISOLATØR!J$27:J$38,ISOLATØR!$A$27:$A$38,ÅRSTOT!$A40)+SUMIFS(MALERE!J$27:J$38,MALERE!$A$27:$A$38,ÅRSTOT!$A40)+SUMIFS(TAKTEKKERE!J$27:J$38,TAKTEKKERE!$A$27:$A$38,ÅRSTOT!$A40) -> 10551383.85 | K40: 333.9879632 | L40: -0.3572751323 | M40: 0.006505229427
A41: Landet i alt | B41: =SUM(B28:B40) -> 333684102.5 | C41: =SUM(C28:C40) -> 11617206.33 | D41: =SUM(D28:D40) -> 997645.28 | E41: =SUM(E28:E40) -> 55024.42 | F41: =IF(D41=0,0,B41/D41) -> 334.4716896 | G41: 211.1281924 | H41: 328.024364 | I41: =SUM(I28:I40) -> 412724740.7 | J41: =SUM(J28:J40) -> 28993203.99 | K41: 310.770209 | L41: -0.1915093292 | M41: 0.05552062094
A44: ="MÅLESTATISTIKK FOR ALLE BYGGFAG - GJENNOMSNITT HELE ÅRET "&FORS!$A$14 -> MÅLESTATISTIKK FOR ALLE BYGGFAG - GJENNOMSNITT HELE ÅRET 2021
B46: Målesum i kroner | D46: Timer | F46: ="Fortjeneste hele "&FORS!$A$14-0 -> Fortjeneste hele 2021 | I46: =" Hele året "&FORS!$A$14-1 -> Hele året 2020 | L46: Endringer i %
B47: Innmålt m/ | C47: Innmålt m/ | D47: Innmålt m/ | E47: Innmålt m/ | F47: Innmålt m/ | G47: Innmålt m/ | H47: Gjennom- | I47: Innmålt m/ | J47: Innmålt m/ | K47: Gjen.snitt | L47: Innmålt m/ | M47: Gjen.snitt
B48: overskudd | C48: underskudd | D48: overskudd | E48: underskudd | F48: overskudd | G48: underskudd | H48: snitt | I48: overskudd | J48: underskudd | K48: fortjeneste | L48: overskudd | M48: fortjeneste
A49: Agder | B49: =SUMIFS(B$7:B$19,$A$7:$A$19,$A49)+SUMIFS(B$28:B$40,$A$28:$A$40,$A49) -> 24623176 | C49: =SUMIFS(C$7:C$19,$A$7:$A$19,$A49)+SUMIFS(C$28:C$40,$A$28:$A$40,$A49) -> 0 | D49: 79165 | E49: 0 | F49: =IF(D49=0,0,B49/D49) -> 311.0361397 | G49: =IF(E49=0,0,C49/E49) -> 0 | H49: =IF(D49+E49=0,0,(B49+C49)/(D49+E49)) -> 311.0361397 | I49: =SUMIFS(I$7:I$19,$A$7:$A$19,$A49)+SUMIFS(I$28:I$40,$A$28:$A$40,$A49) -> 22425687 | J49: 330230 | K49: 300.4121111 | L49: =IF(I49=0,0,(B49-I49)/I49) -> 0.09798981855 | M49: =IF(K49=0,0,(H49-K49)/K49) -> 0.03536484804
A50: Bergen | B50: =SUMIFS(B$7:B$19,$A$7:$A$19,$A50)+SUMIFS(B$28:B$40,$A$28:$A$40,$A50) -> 49840794.65 | C50: 0 | D50: 165365.12 | E50: 0 | F50: 301.398473 | G50: 0 | H50: 301.398473 | I50: 66976791.7 | J50: 0 | K50: 292.315091 | L50: -0.2558497745 | M50: 0.0310739411
A51: Nordland | B51: 0 | C51: 0 | D51: 0 | E51: 0 | F51: =IF(D51=0,0,B51/D51) -> 0 | G51: =IF(E51=0,0,C51/E51) -> 0 | H51: =IF(D51+E51=0,0,(B51+C51)/(D51+E51)) -> 0 | I51: 0 | J51: 424816.48 | K51: 201.7651294 | L51: 0 | M51: -1
A52: Drammen - Bærum | B52: 0 | C52: 0 | D52: 0 | E52: 0 | F52: 0 | G52: 0 | H52: 0 | I52: 0 | J52: 0 | K52: 0 | L52: 0 | M52: 0
A53: Haugesund | B53: 11822399 | C53: 0 | D53: 40716.98 | E53: 0 | F53: 290.3554979 | G53: 0 | H53: 290.3554979 | I53: 17704319 | J53: 0 | K53: 283.130438 | L53: -0.3322307963 | M53: 0.02551848502
A54: Hamar og Omegn | B54: 25457334 | C54: 1969555 | D54: 75981.8 | E54: 10506.7 | F54: 335.0451556 | G54: 187.4570512 | H54: 317.1160212 | I54: 37369619 | J54: 1018501 | K54: 314.4454758 | L54: -0.3187692387 | M54: 0.008492872694
A55: Sandnes | B55: 59710460.55 | C55: 0 | D55: 180974.46 | E55: 0 | F55: 329.9386032 | G55: 0 | H55: 329.9386032 | I55: 45252655.94 | J55: 0 | K55: 329.7293488 | L55: 0.3194907417 | M55: 0.0006346247065
A56: Stavanger | B56: 8510553.9 | C56: 0 | D56: 25645 | E56: 0 | F56: 331.8601638 | G56: 0 | H56: 331.8601638 | I56: 9524049.08 | J56: 0 | K56: 300.7657765 | L56: -0.1064143172 | M56: 0.1033840605
A57: Telemark | B57: 33603132.64 | C57: 2625500 | D57: 106588.2 | E57: 11446.81 | F57: 315.2612826 | G57: 229.3652118 | H57: 306.9312456 | I57: 39341045.6 | J57: 2265600 | K57: 310.8104852 | L57: -0.1458505455 | M57: -0.0124810449
A58: Trondheim | B58: 306854940.5 | C58: 29868636.85 | D58: 925704.97 | E58: 138841.65 | F58: 331.4824382 | G58: 215.1273544 | H58: 316.3070278 | I58: 259195951 | J58: 28079181.44 | K58: 297.3064975 | L58: 0.1838724305 | M58: 0.06390889707
A59: Vestfold | B59: 6292642.7 | C59: 0 | D59: 17525.5 | E59: 0 | F59: =IF(D59=0,0,B59/D59) -> 359.0563864 | G59: =IF(E59=0,0,C59/E59) -> 0 | H59: 359.0563864 | I59: 1182849.06 | J59: 0 | K59: 433.1193922 | L59: 4.31990337 | M59: -0.1709990527
A60: Østfold | B60: 20183497.5 | C60: 3845238 | D60: 62086 | E60: 17412 | F60: 325.0893519 | G60: 220.8383873 | H60: 302.2558492 | I60: 26743560 | J60: 2375464 | K60: 299.0738261 | L60: -0.2452950355 | M60: 0.01063959087
A61: Oslo | B61: 231440301.2 | C61: 5017649.06 | D61: 688510 | E61: 23468.3 | F61: 336.1466081 | G61: 213.8053911 | H61: =IF(D61+E61=0,0,(B61+C61)/(D61+E61)) -> 332.1139847 | I61: 238258251.4 | J61: 13296546.88 | K61: 333.1310107 | L61: -0.02861579895 | M61: -0.003052931133
A62: Landet i alt | B62: =SUM(B49:B61) -> 778339232.6 | C62: =SUM(C49:C61) -> 43326578.91 | D62: =SUM(D49:D61) -> 2368263.03 | E62: =SUM(E49:E61) -> 201675.46 | F62: =IF(D62=0,0,B62/D62) -> 328.6540485 | G62: 214.8331726 | H62: =IF(D62+E62=0,0,(B62+C62)/(D62+E62)) -> 319.7219757 | I62: =SUM(I49:I61) -> 763974778.8 | J62: =SUM(J49:J61) -> 47790339.8 | K62: 310.3264946 | L62: 0.01880226183 | M62: 0.03027611663

Sheet BETONG
A2: ="MÅLESTATISTIKK FOR BETONGFAGENE - 1. HALVÅR "&FORS!$A$14 -> MÅLESTATISTIKK FOR BETONGFAGENE - 1. HALVÅR 2021
B4: Målesum i kroner | D4: Timer | F4: ="Fortjeneste 1. halvår "&FORS!$A$14-0 -> Fortjeneste 1. halvår 2021 | I4: =" 1. halvår "&FORS!$A$14-1 -> 1. halvår 2020 | L4: Endringer i %
B5: Innmålt m/ | C5: Innmålt m/ | D5: Innmålt m/ | E5: Innmålt m/ | F5: Innmålt m/ | G5: Innmålt m/ | H5: Gjennom- | I5: Innmålt m/ | J5: Innmålt m/ | K5: Gjen.snitt | L5: Innmålt m/ | M5: Gjen.snitt
B6: overskudd | C6: underskudd | D6: overskudd | E6: underskudd | F6: overskudd | G6: underskudd | H6: snitt | I6: overskudd | J6: underskudd | K6: fortjeneste | L6: overskudd | M6: fortjeneste
A7: Agder | B7: 6471377 | D7: 20915 | F7: =IF(D7=0,0,B7/D7) -> 309.4131963 | G7: =IF(E7=0,0,C7/E7) -> 0 | H7: =IF(D7+E7=0,0,(B7+C7)/(D7+E7)) -> 309.4131963 | I7: 5285873 | J7: 330230 | K7: 295.3822648 | L7: =IF(I7=0,0,(B7-I7)/I7) -> 0.2242778061 | M7: =IF(K7=0,0,(H7-K7)/K7) -> 0.04750092737
A8: Bergen | B8: 30743693.6 | D8: 103299.46 | F8: =IF(D8=0,0,B8/D8) -> 297.6171763 | G8: =IF(E8=0,0,C8/E8) -> 0 | H8: =IF(D8+E8=0,0,(B8+C8)/(D8+E8)) -> 297.6171763 | I8: 25422200.28 | K8: 304.8939066 | L8: =IF(I8=0,0,(B8-I8)/I8) -> 0.2093246557 | M8: =IF(K8=0,0,(H8-K8)/K8) -> -0.0238664339
A9: Drammen - Bærum | F9: =IF(D9=0,0,B9/D9) -> 0 | G9: =IF(E9=0,0,C9/E9) -> 0 | H9: =IF(D9+E9=0,0,(B9+C9)/(D9+E9)) -> 0 | K9: 0 | L9: =IF(I9=0,0,(B9-I9)/I9) -> 0 | M9: =IF(K9=0,0,(H9-K9)/K9) -> 0
A10: Haugesund | B10: 7139951 | D10: 25022.13 | F10: 285.3454522 | G10: 0 | H10: 285.3454522 | I10: 12167164 | K10: 284.259608 | L10: -0.4131786997 | M10: 0.00381990337
A11: Hamar og Omegn | B11: 5936813 | D11: 18836.44 | F11: 315.1770186 | G11: 0 | H11: 315.1770186 | I11: 5400384 | K11: 389.4155721 | L11: 0.09933164012 | M11: -0.1906409471
A12: Sandnes | B12: 35209187.55 | D12: 106703.33 | F12: 329.9727155 | G12: 0 | H12: 329.9727155 | I12: 13507839.1 | K12: 333.3502569 | L12: 1.606574396 | M12: -0.0101321098
A13: Stavanger | F13: 0 | G13: 0 | H13: 0 | K13: 0 | L13: 0 | M13: 0
A14: Telemark | B14: 4634581 | D14: 15129 | F14: 306.3375636 | G14: 0 | H14: 306.3375636 | I14: 9041294 | K14: 280.3936734 | L14: -0.4873984852 | M14: 0.09252666033
A15: Trondheim | B15: 41121339.95 | C15: 0 | D15: 117769.85 | F15: 349.1669553 | G15: 0 | H15: 349.1669553 | I15: 35742579 | K15: 336.6038463 | L15: 0.1504860897 | M15: =IF(K15=0,0,(H15-K15)/K15) -> 0.03732312955
A16: Vestfold | F16: 0 | G16: 0 | H16: 0 | K16: 0 | L16: 0 | M16: 0
A17: Østfold | B17: 3654340 | D17: 11768.5 | F17: 310.5187577 | G17: 0 | H17: 310.5187577 | I17: 4907563 | K17: 300.6348321 | L17: -0.2553656469 | M17: 0.03287684757
A18: Oslo | B18: 31092369 | C18: 1846219 | D18: 85739 | E18: 8405 | F18: 362.6397439 | G18: 219.6572278 | H18: 349.8745326 | I18: 26191837 | J18: 602075 | K18: 359.5919047 | L18: 0.1871015004 | M18: -0.02702333368
A19: Landet i alt | B19: =SUM(B7:B18) -> 166003652.1 | C19: =SUM(C7:C18) -> 1846219 | D19: =SUM(D7:D18) -> 505182.71 | E19: =SUM(E7:E18) -> 8405 | F19: =IF(D19=0,0,B19/D19) -> 328.6012146 | G19: =IF(E19=0,0,C19/E19) -> 219.6572278 | H19: =IF(D19+E19=0,0,(B19+C19)/(D19+E19)) -> 326.8183172 | I19: =SUM(I7:I18) -> 137666733.4 | J19: =SUM(J7:J18) -> 932305 | K19: 323.1856118 | L19: =IF(I19=0,0,(B19-I19)/I19) -> 0.2058370822 | M19: =IF(K19=0,0,(H19-K19)/K19) -> 0.01124030661
A22: ="MÅLESTATISTIKK FOR BETONGFAGENE - 2. HALVÅR "&FORS!$A$14 -> MÅLESTATISTIKK FOR BETONGFAGENE - 2. HALVÅR 2021
B24: Målesum i kroner | D24: Timer | F24: ="Fortjeneste 2. halvår "&FORS!$A$14-0 -> Fortjeneste 2. halvår 2021 | I24: =" 2. halvår "&FORS!$A$14-1 -> 2. halvår 2020 | L24: Endringer i %
B25: Innmålt m/ | C25: Innmålt m/ | D25: Innmålt m/ | E25: Innmålt m/ | F25: Innmålt m/ | G25: Innmålt m/ | H25: Gjennom- | I25: Innmålt m/ | J25: Innmålt m/ | K25: Gjen.snitt | L25: Innmålt m/ | M25: Gjen.snitt
B26: overskudd | C26: underskudd | D26: overskudd | E26: underskudd | F26: overskudd | G26: underskudd | H26: snitt | I26: overskudd | J26: underskudd | K26: fortjeneste | L26: overskudd | M26: fortjeneste
A27: Agder | B27: 2469868 | D27: 7597 | F27: =IF(D27=0,0,B27/D27) -> 325.1109649 | G27: =IF(E27=0,0,C27/E27) -> 0 | H27: =IF(D27+E27=0,0,(B27+C27)/(D27+E27)) -> 325.1109649 | I27: 7913531 | K27: 311.9616431 | L27: =IF(I27=0,0,(B27-I27)/I27) -> -0.6878930531 | M27: =IF(K27=0,0,(H27-K27)/K27) -> 0.04215044403
A28: Bergen | B28: 16738539.32 | D28: 52766.88 | F28: 317.2167716 | G28: 0 | H28: =IF(D28+E28=0,0,(B28+C28)/(D28+E28)) -> 317.2167716 | I28: 33342487.23 | K28: 292.6890794 | L28: =IF(I28=0,0,(B28-I28)/I28) -> -0.4979816831 | M28: =IF(K28=0,0,(H28-K28)/K28) -> 0.08380118663
A29: Drammen - Bærum | F29: 0 | G29: 0 | H29: 0 | K29: 0 | L29: 0 | M29: 0
A30: Haugesund | B30: 4682448 | D30: 15694.85 | F30: 298.3429596 | G30: 0 | H30: 298.3429596 | I30: 5537155 | K30: 280.6804778 | L30: -0.1543585108 | M30: 0.06292736141
A31: Hamar og Omegn | B31: 3774159 | C31: 1047893 | D31: 11046.2 | E31: 5934 | F31: 341.6703482 | G31: 176.5913381 | H31: 283.9808718 | I31: 3452479 | J31: 0 | K31: 331.1276247 | L31: 0.09317362973 | M31: -0.142382421
A32: Sandnes | B32: 22178853.21 | D32: 66216.43 | F32: 334.944865 | G32: 0 | H32: 334.944865 | I32: 30178354.46 | K32: 330.9336353 | L32: -0.2650741365 | M32: 0.01212094907
A33: Stavanger | F33: 0 | G33: 0 | H33: 0 | K33: 0 | L33: 0 | M33: 0
A34: Telemark | B34: 1742899 | D34: 5889 | F34: 295.958397 | G34: 0 | H34: 295.958397 | I34: 2401103 | K34: 378.1264567 | L34: -0.2741256831 | M34: -0.2173031223
A35: Trondheim | B35: 40566999.29 | D35: 116077.08 | F35: 349.4832855 | G35: 0 | H35: 349.4832855 | I35: 36178457.68 | K35: 355.9476056 | L35: 0.1213026174 | M35: -0.01816087531
A36: Vestfold | F36: 0 | G36: 0 | H36: 0 | K36: 0 | L36: 0 | M36: 0
A37: Østfold | B37: 2947087 | C37: 53500 | D37: 8300 | E37: 214 | F37: 355.0707229 | G37: 250 | H37: 352.4297627 | I37: 4557897 | J37: 58589 | K37: 303.8061268 | L37: -0.3534107945 | M37: 0.1600482401
A38: Oslo | B38: 15855206 | D38: 44498 | F38: 356.3127781 | G38: 0 | H38: 356.3127781 | I38: 32598530 | K38: 367.6719451 | L38: -0.513622056 | M38: -0.03089484305
A39: Landet i alt | B39: =SUM(B27:B38) -> 110956058.8 | C39: =SUM(C27:C38) -> 1101393 | D39: =SUM(D27:D38) -> 328085.44 | E39: =SUM(E27:E38) -> 6148 | F39: =IF(D39=0,0,B39/D39) -> 338.1925721 | G39: =IF(E39=0,0,C39/E39) -> 179.1465517 | H39: =IF(D39+E39=0,0,(B39+C39)/(D39+E39)) -> 335.2670272 | I39: =SUM(I27:I38) -> 156159994.4 | J39: =SUM(J27:J38) -> 58589 | K39: 330.6369381 | L39: =IF(I39=0,0,(B39-I39)/I39) -> -0.2894719338 | M39: =IF(K39=0,0,(H39-K39)/K39) -> 0.01400354448
A42: ="MÅLESTATISTIKK FOR BETONGFAGENE - GJENNOMSNITT HELE ÅRET "&FORS!$A$14 -> MÅLESTATISTIKK FOR BETONGFAGENE - GJENNOMSNITT HELE ÅRET 2021
B44: Målesum i kroner | D44: Timer | F44: ="Fortjeneste hele "&FORS!$A$14-0 -> Fortjeneste hele 2021 | I44: =" Hele året "&FORS!$A$14-1 -> Hele året 2020 | L44: Endringer i %
B45: Innmålt m/ | C45: Innmålt m/ | D45: Innmålt m/ | E45: Innmålt m/ | F45: Innmålt m/ | G45: Innmålt m/ | H45: Gjennom- | I45: Innmålt m/ | J45: Innmålt m/ | K45: Gjen.snitt | L45: Innmålt m/ | M45: Gjen.snitt
B46: overskudd | C46: underskudd | D46: overskudd | E46: underskudd | F46: overskudd | G46: underskudd | H46: snitt | I46: overskudd | J46: underskudd | K46: fortjeneste | L46: overskudd | M46: fortjeneste
A47: Agder | B47: =SUMIFS(B$7:B$19,$A$7:$A$19,$A47)+SUMIFS(B$27:B$39,$A$27:$A$39,$A47) -> 8941245 | C47: =SUMIFS(C$7:C$19,$A$7:$A$19,$A47)+SUMIFS(C$27:C$39,$A$27:$A$39,$A47) -> 0 | D47: 28512 | E47: 0 | F47: =IF(D47=0,0,B47/D47) -> 313.5958544 | G47: =IF(E47=0,0,C27/E47) -> 0 | H47: =IF(D47+E47=0,0,(B47+C47)/(D47+E47)) -> 313.5958544 | I47: =SUMIFS(I$7:I$19,$A$7:$A$19,$A47)+SUMIFS(I$27:I$39,$A$27:$A$39,$A47) -> 13199404 | J47: =SUMIFS(J$7:J$19,$A$7:$A$19,$A47)+SUMIFS(J$27:J$39,$A$27:$A$39,$A47) -> 330230 | K47: 304.8588103 | L47: =IF(I47=0,0,(B47-I47)/I47) -> -0.322602369 | M47: =IF(K47=0,0,(H47-K47)/K47) -> 0.02865931312
A48: Bergen | B48: =SUMIFS($B$7:$B$19,$A$7:$A$19,A48)+SUMIFS($B$27:$B$39,$A$27:$A$39,A48) -> 47482232.92 | C48: 0 | D48: 156066.34 | E48: 0 | F48: =IF(D48=0,0,B48/D48) -> 304.2439063 | G48: =IF(E48=0,0,C48/E48) -> 0 | H48: =IF(D48+E48=0,0,(B48+C48)/(D48+E48)) -> 304.2439063 | I48: =SUMIFS(I$7:I$19,$A$7:$A$19,$A48)+SUMIFS(I$27:I$39,$A$27:$A$39,$A48) -> 58764687.51 | J48: 0 | K48: 297.8469779 | L48: =IF(I48=0,0,(B48-I48)/I48) -> -0.1919937818 | M48: =IF(K48=0,0,(H48-K48)/K48) -> 0.02147723106
A49: Drammen - Bærum | B49: 0 | C49: 0 | D49: 0 | E49: 0 | F49: 0 | G49: 0 | H49: 0 | I49: 0 | J49: 0 | K49: 0 | L49: 0 | M49: 0
A50: Haugesund | B50: 11822399 | C50: 0 | D50: 40716.98 | E50: 0 | F50: 290.3554979 | G50: 0 | H50: 290.3554979 | I50: 17704319 | J50: 0 | K50: 283.130438 | L50: -0.3322307963 | M50: 0.02551848502
A51: Hamar og Omegn | B51: 9710972 | C51: 1047893 | D51: 29882.64 | E51: 5934 | F51: 324.9703507 | G51: 176.5913381 | H51: 300.3873339 | I51: 8852863 | J51: 0 | K51: 364.4000766 | L51: 0.09693011176 | M51: -0.1756661064
A52: Sandnes | B52: 57388040.76 | C52: 0 | D52: 172919.76 | E52: 0 | F52: =IF(D52=0,0,B52/D52) -> 331.8767084 | G52: 0 | H52: =IF(D52+E52=0,0,(B52+C52)/(D52+E52)) -> 331.8767084 | I52: 43686193.56 | J52: 0 | K52: 331.677108 | L52: 0.3136425054 | M52: 0.000601791189
A53: Stavanger | B53: 0 | C53: 0 | D53: 0 | E53: 0 | F53: 0 | G53: 0 | H53: 0 | I53: 0 | J53: 0 | K53: 0 | L53: 0 | M53: 0
A54: Telemark | B54: 6377480 | C54: 0 | D54: 21018 | E54: 0 | F54: 303.4294414 | G54: 0 | H54: 303.4294414 | I54: 11442397 | J54: 0 | K54: 296.4735588 | L54: -0.4426447535 | M54: 0.02346206761
A55: Trondheim | B55: 81688339.24 | C55: 0 | D55: 233846.93 | E55: 0 | F55: 349.3239755 | G55: 0 | H55: 349.3239755 | I55: 71921036.68 | J55: 0 | K55: 346.06416 | L55: 0.1358059201 | M55: 0.009419685264
A56: Vestfold | B56: 0 | C56: 0 | D56: 0 | E56: 0 | F56: =IF(D56=0,0,B56/D56) -> 0 | G56: 0 | H56: 0 | I56: 0 | J56: 0 | K56: 0 | L56: 0 | M56: 0
A57: Østfold | B57: 6601427 | C57: 53500 | D57: 20068.5 | E57: =SUMIFS(E$7:E$19,$A$7:$A$19,$A57)+SUMIFS(E$27:E$39,$A$27:$A$39,$A57) -> 214 | F57: =IF(D57=0,0,B57/D57) -> 328.9447144 | G57: 250 | H57: 328.1117712 | I57: 9465460 | J57: 58589 | K57: 302.1637082 | L57: -0.3025772651 | M57: 0.08587418789
A58: Oslo | B58: 46947575 | C58: 1846219 | D58: 130237 | E58: 8405 | F58: 360.4780132 | G58: 219.6572278 | H58: 351.940927 | I58: 58790367 | J58: 602075 | K58: 363.9822643 | L58: -0.2014410286 | M58: -0.033082209
A59: Landet i alt | B59: =SUM(B47:B58) -> 276959710.9 | C59: =SUM(C47:C58) -> 2947612 | D59: =SUM(D47:D58) -> 833268.15 | E59: =SUM(E47:E58) -> 14553 | F59: =IF(D59=0,0,B59/D59) -> 332.3776517 | G59: =IF(E59=0,0,C59/E59) -> 202.5432557 | H59: =IF(D59+E59=0,0,(B59+C59)/(D59+E59)) -> 330.1490213 | I59: =SUM(I47:I58) -> 293826727.8 | J59: =SUM(J47:J58) -> 990894 | K59: 327.0915994 | L59: =IF(I59=0,0,(B59-I59)/I59) -> -0.05740463762 | M59: =IF(K59=0,0,(H59-K59)/K59) -> 0.009347295732

Sheet TØMRERE
A2: ="MÅLESTATISTIKK FOR TØMRERE - 1. HALVÅR "&FORS!$A$14 -> MÅLESTATISTIKK FOR TØMRERE - 1. HALVÅR 2021
B4: Målesum i kroner | D4: Timer | F4: ="Fortjeneste 1. halvår "&FORS!$A$14-0 -> Fortjeneste 1. halvår 2021 | I4: =" 1. halvår "&FORS!$A$14-1 -> 1. halvår 2020 | L4: Endringer i %
B5: Innmålt m/ | C5: Innmålt m/ | D5: Innmålt m/ | E5: Innmålt m/ | F5: Innmålt m/ | G5: Innmålt m/ | H5: Gjennom- | I5: Innmålt m/ | J5: Innmålt m/ | K5: Gjen.snitt | L5: Innmålt m/ | M5: Gjen.snitt
B6: overskudd | C6: underskudd | D6: overskudd | E6: underskudd | F6: overskudd | G6: underskudd | H6: snitt | I6: overskudd | J6: underskudd | K6: fortjeneste | L6: overskudd | M6: fortjeneste
A7: Agder | B7: 7188511 | D7: 23425 | F7: =IF(D7=0,0,B7/D7) -> 306.8734685 | G7: =IF(E7=0,0,C7/E7) -> 0 | H7: =IF(D7+E7=0,0,(B7+C7)/(D7+E7)) -> 306.8734685 | I7: 5334826 | K7: 290.1096308 | L7: =IF(I7=0,0,(B7-I7)/I7) -> 0.3474686897 | M7: =IF(K7=0,0,(H7-K7)/K7) -> 0.05778449242
A8: Bergen | F8: =IF(D8=0,0,B8/D8) -> 0 | G8: 0 | H8: =IF(D8+E8=0,0,(B8+C8)/(D8+E8)) -> 0 | K8: 0 | L8: =IF(I8=0,0,(B8-I8)/I8) -> 0 | M8: =IF(K8=0,0,(H8-K8)/K8) -> 0
A9: Drammen - Bærum | F9: 0 | G9: 0 | H9: 0 | K9: 0 | L9: 0 | M9: 0
A10: Haugesund | F10: 0 | G10: 0 | H10: 0 | K10: 0 | L10: 0 | M10: 0
A11: Hamar og Omegn | B11: 3010764 | C11: 307983 | D11: 9356.57 | E11: 1501.5 | F11: 321.780738 | G11: 205.1168831 | H11: 305.6479651 | I11: 7624460 | J11: 492756 | K11: 294.6894861 | L11: -0.6051177395 | M11: 0.03718652857
A12: Sandnes | B12: 2322419.79 | D12: 8054.7 | F12: 288.3310105 | G12: 0 | H12: 288.3310105 | K12: 0 | L12: 0 | M12: 0
A13: Stavanger | F13: 0 | G13: 0 | H13: 0 | K13: 0 | L13: 0 | M13: 0
A14: Telemark | B14: 8218301 | C14: 2517000 | D14: 23783 | E14: 10812 | F14: 345.5535887 | G14: 232.7968923 | H14: 310.313658 | I14: 15925174.6 | K14: 315.8879399 | L14: -0.4839428009 | M14: -0.0176463901
A15: Trondheim | B15: 82817344 | C15: 7906794 | D15: 267179 | E15: 35339 | F15: 309.9695111 | G15: 223.7413056 | H15: 299.8966607 | I15: 63067911.13 | J15: 2445001 | K15: 304.0159983 | L15: 0.3131455048 | M15: -0.01354973943
A16: Vestfold | B16: 4819741.7 | D16: 14570 | F16: 330.7990185 | G16: 0 | H16: 330.7990185 | I16: 755762 | K16: 458.0375758 | L16: 5.377327386 | M16: -0.2777906529
A17: Østfold | B17: 9855768 | C17: 2949901 | D17: 33124 | E17: 13316 | F17: 297.5416013 | G17: 221.5305647 | H17: 275.7465332 | I17: 3160630 | J17: 2279375 | K17: 266.9089616 | L17: 2.118292239 | M17: 0.03311080884
A18: Oslo | B18: 51602400.83 | D18: 153459 | E18: 0 | F18: 336.2618082 | G18: 0 | H18: 336.2618082 | I18: 23790868.06 | J18: 0 | K18: 343.972646 | L18: 1.169000337 | M18: =IF(K18=0,0,(H18-K18)/K18) -> -0.02241700858
A19: Landet i alt | B19: =SUM(B7:B18) -> 169835250.3 | C19: =SUM(C7:C18) -> 13681678 | D19: =SUM(D7:D18) -> 532951.27 | E19: =SUM(E7:E18) -> 60968.5 | F19: =IF(D19=0,0,B19/D19) -> 318.6693791 | G19: =IF(E19=0,0,C19/E19) -> 224.4056849 | H19: =IF(D19+E19=0,0,(B19+C19)/(D19+E19)) -> 308.9927926 | I19: =SUM(I7:I18) -> 119659631.8 | J19: =SUM(J7:J18) -> 5217132 | K19: 309.8401146 | L19: =IF(I19=0,0,(B19-I19)/I19) -> 0.419319513 | M19: =IF(K19=0,0,(H19-K19)/K19) -> -0.002734707061
A22: ="MÅLESTATISTIKK FOR TØMRERE - 2. HALVÅR "&FORS!$A$14 -> MÅLESTATISTIKK FOR TØMRERE - 2. HALVÅR 2021
B24: Målesum i kroner | D24: Timer | F24: ="Fortjeneste 2. halvår "&FORS!$A$14-0 -> Fortjeneste 2. halvår 2021 | I24: =" 2. halvår "&FORS!$A$14-1 -> 2. halvår 2020 | L24: Endringer i %
B25: Innmålt m/ | C25: Innmålt m/ | D25: Innmålt m/ | E25: Innmålt m/ | F25: Innmålt m/ | G25: Innmålt m/ | H25: Gjennom- | I25: Innmålt m/ | J25: Innmålt m/ | K25: Gjen.snitt | L25: Innmålt m/ | M25: Gjen.snitt
B26: overskudd | C26: underskudd | D26: overskudd | E26: underskudd | F26: overskudd | G26: underskudd | H26: snitt | I26: overskudd | J26: underskudd | K26: fortjeneste | L26: overskudd | M26: fortjeneste
A27: Agder | B27: 8493420 | D27: 27228 | F27: =IF(D27=0,0,B27/D27) -> 311.9369766 | G27: 0 | H27: =IF(D27+E27=0,0,(B27+C27)/(D27+E27)) -> 311.9369766 | I27: 3754412 | K27: 301.6318792 | L27: =IF(I27=0,0,(B27-I27)/I27) -> 1.262250387 | M27: =IF(K27=0,0,(H27-K27)/K27) -> 0.03416448388
A28: Bergen | F28: 0 | G28: 0 | H28: =IF(D28+E28=0,0,(B28+C28)/(D28+E28)) -> 0 | K28: 0 | L28: =IF(I28=0,0,(B28-I28)/I28) -> 0 | M28: =IF(K28=0,0,(H28-K28)/K28) -> 0
A29: Drammen - Bærum | F29: 0 | G29: 0 | H29: 0 | K29: 0 | L29: 0 | M29: 0
A30: Haugesund | F30: 0 | G30: 0 | H30: 0 | K30: 0 | L30: 0 | M30: 0
A31: Hamar og Omegn | B31: 7964273 | C31: 434567 | D31: 23821.68 | E31: 2067.5 | F31: 334.3287711 | G31: 210.189601 | H31: 324.4150645 | I31: 16687447 | J31: 337805 | K31: 288.876118 | L31: -0.522738679 | M31: 0.1230248688
A32: Sandnes | F32: 0 | G32: 0 | H32: 0 | I32: 1566462.38 | K32: 283.3277348 | L32: -1 | M32: -1
A33: Stavanger | F33: 0 | G33: 0 | H33: 0 | K33: 0 | L33: 0 | M33: 0
A34: Telemark | B34: 16307650 | D34: 55413 | F34: 294.2928555 | G34: 0 | H34: 294.2928555 | I34: 10004015 | J34: 2000000 | K34: 310.4941672 | L34: 0.6301105106 | M34: -0.05217911797
A35: Trondheim | B35: 73733703.87 | C35: 2477617.26 | D35: 224074.86 | E35: 11042.17 | F35: 329.0583507 | G35: 224.37775 | H35: 324.1420714 | I35: 71739144.28 | J35: 1606123.69 | K35: 298.1276335 | L35: 0.02780294649 | M35: 0.08725939837
A36: Vestfold | B36: 1472901 | D36: 2955.5 | F36: 498.3593301 | G36: 0 | H36: 498.3593301 | K36: 0 | L36: 0 | M36: 0
A37: Østfold | B37: 2682125.5 | C37: 841837 | D37: 6151.5 | E37: 3882 | F37: 436.0116232 | G37: 216.8565173 | H37: 351.2196641 | I37: 10482940 | J37: 37500 | K37: 300.1808999 | L37: -0.7441437707 | M37: 0.1700266879
A38: Oslo | B38: 31635079.61 | D38: 94486.8 | F38: 334.8095142 | G38: 0 | H38: 334.8095142 | I38: 48046246.52 | J38: 8470308.13 | K38: 325.2363309 | L38: -0.3415702183 | M38: 0.02943454463
A39: Landet i alt | B39: =SUM(B27:B38) -> 142289153 | C39: =SUM(C27:C38) -> 3754021.26 | D39: =SUM(D27:D38) -> 434131.34 | E39: =SUM(E27:E38) -> 16991.67 | F39: =IF(D39=0,0,B39/D39) -> 327.7560035 | G39: =IF(E39=0,0,C39/E39) -> 220.9330372 | H39: =IF(D39+E39=0,0,(B39+C39)/(D39+E39)) -> 323.7324876 | I39: =SUM(I27:I38) -> 162280667.2 | J39: =SUM(J27:J38) -> 12451736.82 | K39: 306.3275267 | L39: -0.1231909786 | M39: 0.05681814179
A42: ="MÅLESTATISTIKK FOR TØMRERE - GJENNOMSNITT HELE ÅRET "&FORS!$A$14 -> MÅLESTATISTIKK FOR TØMRERE - GJENNOMSNITT HELE ÅRET 2021
B44: Målesum i kroner | D44: Timer | F44: ="Fortjeneste hele "&FORS!$A$14-0 -> Fortjeneste hele 2021 | I44: =" Hele året "&FORS!$A$14-1 -> Hele året 2020 | L44: Endringer i %
B45: Innmålt m/ | C45: Innmålt m/ | D45: Innmålt m/ | E45: Innmålt m/ | F45: Innmålt m/ | G45: Innmålt m/ | H45: Gjennom- | I45: Innmålt m/ | J45: Innmålt m/ | K45: Gjen.snitt | L45: Innmålt m/ | M45: Gjen.snitt
B46: overskudd | C46: underskudd | D46: overskudd | E46: underskudd | F46: overskudd | G46: underskudd | H46: snitt | I46: overskudd | J46: underskudd | K46: fortjeneste | L46: overskudd | M46: fortjeneste
A47: Agder | B47: =SUMIFS(B$7:B$19,$A$7:$A$19,$A47)+SUMIFS(B$27:B$39,$A$27:$A$39,$A47) -> 15681931 | C47: =SUMIFS(C$7:C$19,$A$7:$A$19,$A47)+SUMIFS(C$27:C$39,$A$27:$A$39,$A47) -> 0 | D47: 50653 | E47: 0 | F47: =IF(D47=0,0,B47/D47) -> 309.5953053 | G47: =IF(E47=0,0,C27/E47) -> 0 | H47: =IF(D47+E47=0,0,(B47+C47)/(D47+E47)) -> 309.5953053 | I47: =SUMIFS(I$7:I$19,$A$7:$A$19,$A47)+SUMIFS(I$27:I$39,$A$27:$A$39,$A47) -> 9089238 | J47: =SUMIFS(J$7:J$19,$A$7:$A$19,$A47)+SUMIFS(J$27:J$39,$A$27:$A$39,$A47) -> 0 | K47: 294.7606045 | L47: =IF(I47=0,0,(B47-I47)/I47) -> 0.7253295601 | M47: =IF(K47=0,0,(H47-K47)/K47) -> 0.05032796309
A48: Bergen | B48: =SUMIFS($B$7:$B$19,$A$7:$A$19,A48)+SUMIFS($B$27:$B$39,$A$27:$A$39,A48) -> 0 | C48: 0 | D48: 0 | E48: 0 | F48: =IF(D48=0,0,B48/D48) -> 0 | G48: 0 | H48: =IF(D48+E48=0,0,(B48+C48)/(D48+E48)) -> 0 | I48: =SUMIFS(I$7:I$19,$A$7:$A$19,$A48)+SUMIFS(I$27:I$39,$A$27:$A$39,$A48) -> 0 | J48: 0 | K48: 0 | L48: =IF(I48=0,0,(B48-I48)/I48) -> 0 | M48: =IF(K48=0,0,(H48-K48)/K48) -> 0
A49: Drammen - Bærum | B49: 0 | C49: 0 | D49: 0 | E49: 0 | F49: 0 | G49: 0 | H49: 0 | I49: 0 | J49: 0 | K49: 0 | L49: 0 | M49: 0
A50: Haugesund | B50: 0 | C50: 0 | D50: 0 | E50: 0 | F50: 0 | G50: 0 | H50: 0 | I50: 0 | J50: 0 | K50: 0 | L50: 0 | M50: 0
A51: Hamar og Omegn | B51: 10975037 | C51: 742550 | D51: 33178.25 | E51: 3569 | F51: 330.790111 | G51: 208.0554777 | H51: 318.8697658 | I51: 24311907 | J51: 830561 | K51: 290.7277251 | L51: -0.5485735858 | M51: 0.09679861355
A52: Sandnes | B52: 2322419.79 | C52: 0 | D52: 8054.7 | E52: 0 | F52: =IF(D52=0,0,B52/D52) -> 288.3310105 | G52: 0 | H52: =IF(D52+E52=0,0,(B52+C52)/(D52+E52)) -> 288.3310105 | I52: 1566462.38 | J52: 0 | K52: 283.3277348 | L52: 0.4825889339 | M52: 0.01765896904
A53: Stavanger | B53: 0 | C53: 0 | D53: 0 | E53: 0 | F53: 0 | G53: 0 | H53: 0 | I53: 0 | J53: 0 | K53: 0 | L53: 0 | M53: 0
A54: Telemark | B54: 24525951 | C54: 2517000 | D54: 79196 | E54: 10812 | F54: 309.6867392 | G54: 232.7968923 | H54: 300.4505266 | I54: 25929189.6 | J54: 2000000 | K54: 313.5468942 | L54: -0.05411810479 | M54: -0.04176844936
A55: Trondheim | B55: 156551047.9 | C55: 10384411.26 | D55: 491253.86 | E55: 46381.17 | F55: 318.6764738 | G55: 223.8928268 | H55: 310.4995951 | I55: 134807055.4 | J55: 4051124.69 | K55: 300.8770642 | L55: 0.1612971398 | M55: 0.03198160316
A56: Vestfold | B56: 6292642.7 | C56: 0 | D56: 17525.5 | E56: 0 | F56: =IF(D56=0,0,B56/D56) -> 359.0563864 | G56: 0 | H56: 359.0563864 | I56: 755762 | J56: 0 | K56: 458.0375758 | L56: 7.326222673 | M56: -0.2160984046
A57: Østfold | B57: 12537893.5 | C57: 3791738 | D57: 39275.5 | E57: =SUMIFS(E$7:E$19,$A$7:$A$19,$A57)+SUMIFS(E$27:E$39,$A$27:$A$39,$A57) -> 17198 | F57: =IF(D57=0,0,B57/D57) -> 319.2293796 | G57: 220.4755204 | H57: 289.1556482 | I57: 13643570 | J57: 2316875 | K57: 287.9465437 | L57: -0.08104011633 | M57: 0.004199058836
A58: Oslo | B58: 83237480.44 | C58: 0 | D58: 247945.8 | E58: 0 | F58: 335.7083703 | G58: 0 | H58: 335.7083703 | I58: 71837114.58 | J58: 8470308.13 | K58: 330.5706522 | L58: 0.1586974355 | M58: 0.01554196677
A59: Landet i alt | B59: =SUM(B47:B58) -> 312124403.3 | C59: =SUM(C47:C58) -> 17435699.26 | D59: =SUM(D47:D58) -> 967082.61 | E59: =SUM(E47:E58) -> 77960.17 | F59: =IF(D59=0,0,B59/D59) -> 322.7484396 | G59: =IF(E59=0,0,C59/E59) -> 223.6488102 | H59: =IF(D59+E59=0,0,(B59+C59)/(D59+E59)) -> 315.3556092 | I59: =SUM(I47:I58) -> 281940299 | J59: =SUM(J47:J58) -> 17668868.82 | K59: 307.7818437 | L59: =IF(I59=0,0,(B59-I59)/I59) -> 0.1070584959 | M59: =IF(K59=0,0,(H59-K59)/K59) -> 0.02460757722

Sheet MALERE
A2: ="MÅLESTATISTIKK FOR MALERE - 1. HALVÅR "&FORS!$A$14 -> MÅLESTATISTIKK FOR MALERE - 1. HALVÅR 2021
B4: Målesum i kroner | D4: Timer | F4: ="Fortjeneste 1. halvår "&FORS!$A$14-0 -> Fortjeneste 1. halvår 2021 | I4: =" 1. halvår "&FORS!$A$14-1 -> 1. halvår 2020 | L4: Endringer i %
B5: Innmålt m/ | C5: Innmålt m/ | D5: Innmålt m/ | E5: Innmålt m/ | F5: Innmålt m/ | G5: Innmålt m/ | H5: Gjennom- | I5: Innmålt m/ | J5: Innmålt m/ | K5: Gjen.snitt | L5: Innmålt m/ | M5: Gjen.snitt
B6: overskudd | C6: underskudd | D6: overskudd | E6: underskudd | F6: overskudd | G6: underskudd | H6: snitt | I6: overskudd | J6: underskudd | K6: fortjeneste | L6: overskudd | M6: fortjeneste
A7: Agder | F7: =IF(D7=0,0,B7/D7) -> 0 | G7: =IF(E7=0,0,C7/E7) -> 0 | H7: =IF(D7+E7=0,0,(B7+C7)/(D7+E7)) -> 0 | K7: 0 | L7: =IF(I7=0,0,(B7-I7)/I7) -> 0 | M7: =IF(K7=0,0,(H7-K7)/K7) -> 0
A8: Bergen | B8: 1393596.92 | D8: 5390.55 | E8: 0 | F8: =IF(D8=0,0,B8/D8) -> 258.5259241 | G8: =IF(E8=0,0,C8/E8) -> 0 | H8: =IF(D8+E8=0,0,(B8+C8)/(D8+E8)) -> 258.5259241 | I8: 2428780.93 | K8: 257.6086721 | L8: =IF(I8=0,0,(B8-I8)/I8) -> -0.4262154718 | M8: =IF(K8=0,0,(H8-K8)/K8) -> 0.003560640937
A9: Drammen - Bærum | F9: 0 | G9: 0 | H9: =IF(D9+E9=0,0,(B9+C9)/(D9+E9)) -> 0 | K9: 0 | L9: =IF(I9=0,0,(B9-I9)/I9) -> 0 | M9: 0
A10: Haugesund | F10: 0 | G10: 0 | H10: 0 | K10: 0 | L10: 0 | M10: 0
A11: Hamar og Omegn | B11: 1529179 | D11: 4089 | E11: 0 | F11: =IF(D11=0,0,B11/D11) -> 373.9738322 | G11: 0 | H11: =IF(D11+E11=0,0,(B11+C11)/(D11+E11)) -> 373.9738322 | I11: 898136 | K11: 394.005703 | L11: 0.7026140807 | M11: -0.05084157569
A12: Sandnes | F12: 0 | G12: 0 | H12: 0 | K12: 0 | L12: 0 | M12: 0
A13: Stavanger | F13: 0 | G13: 0 | H13: 0 | K13: 0 | L13: 0 | M13: 0
A14: Telemark | B14: 117214 | C14: 0 | D14: 217 | E14: 0 | F14: 540.156682 | G14: 0 | H14: 540.156682 | I14: 288290 | J14: 265600 | K14: 287.5110304 | L14: -0.5934163516 | M14: 0.8787337701
A15: Trondheim | B15: 20964447 | C15: 7983359 | D15: 63397.01 | E15: 38701.66 | F15: 330.6851064 | G15: =IF(E15=0,0,C15/E15) -> 206.2794981 | H15: 283.5277482 | I15: 12613846 | J15: 5938887 | K15: 245.6058322 | L15: 0.6620186262 | M15: 0.1544015287
A16: Vestfold | F16: 0 | G16: 0 | H16: 0 | I16: 98674.06 | K16: 399.4901215 | L16: -1 | M16: -1
A17: Østfold | C17: 0 | F17: 0 | G17: 0 | H17: 0 | K17: 0 | L17: 0 | M17: 0
A18: Oslo | B18: 7728422 | C18: 110709 | D18: 23276 | E18: 547 | F18: 332.0339405 | G18: 202.393053 | H18: 329.0572556 | I18: 8923154 | J18: 353931 | K18: 300.2487216 | L18: -0.1338912228 | M18: 0.0959488981
A19: Landet i alt | B19: =SUM(B7:B18) -> 31732858.92 | C19: =SUM(C7:C18) -> 8094068 | D19: =SUM(D7:D18) -> 96369.56 | E19: =SUM(E7:E18) -> 39248.66 | F19: =IF(D19=0,0,B19/D19) -> 329.2830114 | G19: =IF(E19=0,0,C19/E19) -> 206.2253336 | H19: =IF(D19+E19=0,0,(B19+C19)/(D19+E19)) -> 293.6694415 | I19: =SUM(I7:I18) -> 25250880.99 | J19: =SUM(J7:J18) -> 6558418 | K19: 264.3772664 | L19: =IF(I19=0,0,(B19-I19)/I19) -> 0.2567030407 | M19: =IF(K19=0,0,(H19-K19)/K19) -> 0.1107968756
A22: ="MÅLESTATISTIKK FOR MALERE - 2. HALVÅR "&FORS!$A$14 -> MÅLESTATISTIKK FOR MALERE - 2. HALVÅR 2021
B24: Målesum i kroner | D24: Timer | F24: ="Fortjeneste 2. halvår "&FORS!$A$14-0 -> Fortjeneste 2. halvår 2021 | I24: =" 2. halvår "&FORS!$A$14-1 -> 2. halvår 2020 | L24: Endringer i %
B25: Innmålt m/ | C25: Innmålt m/ | D25: Innmålt m/ | E25: Innmålt m/ | F25: Innmålt m/ | G25: Innmålt m/ | H25: Gjennom- | I25: Innmålt m/ | J25: Innmålt m/ | K25: Gjen.snitt | L25: Innmålt m/ | M25: Gjen.snitt
B26: overskudd | C26: underskudd | D26: overskudd | E26: underskudd | F26: overskudd | G26: underskudd | H26: snitt | I26: overskudd | J26: underskudd | K26: fortjeneste | L26: overskudd | M26: fortjeneste
A27: Agder | F27: =IF(D27=0,0,B27/D27) -> 0 | G27: 0 | H27: =IF(D27+E27=0,0,(B27+C27)/(D27+E27)) -> 0 | K27: 0 | L27: =IF(I27=0,0,(B27-I27)/I27) -> 0 | M27: =IF(K27=0,0,(H27-K27)/K27) -> 0
A28: Bergen | B28: 964964.81 | D28: 3908.23 | F28: 246.9058397 | G28: 0 | H28: =IF(D28+E28=0,0,(B28+C28)/(D28+E28)) -> 246.9058397 | I28: 5028908.86 | K28: 254.6992256 | L28: =IF(I28=0,0,(B28-I28)/I28) -> -0.8081164649 | M28: =IF(K28=0,0,(H28-K28)/K28) -> -0.03059838859
A29: Drammen - Bærum | F29: 0 | G29: 0 | H29: =IF(D29+E29=0,0,(B29+C29)/(D29+E29)) -> 0 | K29: 0 | L29: 0 | M29: 0
A30: Haugesund | F30: 0 | G30: 0 | H30: 0 | K30: 0 | L30: 0 | M30: 0
A31: Hamar og Omegn | B31: 629296 | D31: 2346 | E31: 0 | F31: 268.2421142 | G31: 0 | H31: 268.2421142 | I31: 1351552 | J31: 0 | K31: 401.0111679 | L31: -0.5343900938 | M31: -0.3310856762
A32: Sandnes | F32: 0 | G32: 0 | H32: 0 | K32: 0 | L32: 0 | M32: 0
A33: Stavanger | F33: 0 | G33: 0 | H33: 0 | K33: 0 | L33: 0 | M33: 0
A34: Telemark | B34: 66517 | D34: 145.5 | F34: 457.161512 | G34: 0 | H34: 457.161512 | I34: 69534 | K34: 427.9015385 | L34: -0.04338884574 | M34: 0.0683801551
A35: Trondheim | B35: 20880023 | C35: 2464338 | D35: 66638 | E35: 12372 | F35: 313.3350791 | G35: 199.1867119 | H35: 295.4608404 | I35: 16569952 | J35: 7309458 | K35: 247.049813 | L35: 0.2601136684 | M35: 0.1959565433
A36: Vestfold | F36: 0 | G36: 0 | H36: 0 | I36: 328413 | K36: 393.7805755 | L36: -1 | M36: -1
A37: Østfold | F37: 0 | G37: 0 | H37: 0 | J37: 0 | K37: 0 | L37: 0 | M37: 0
A38: Oslo | B38: 7436408 | C38: 106121 | D38: 24096 | E38: 517 | F38: 308.6158699 | G38: 205.2630561 | H38: 306.4449275 | I38: 12091567 | J38: 706194 | K38: 305.5087372 | L38: -0.3849922016 | M38: 0.003064365089
A39: Landet i alt | B39: =SUM(B27:B38) -> 29977208.81 | C39: =SUM(C27:C38) -> 2570459 | D39: =SUM(D27:D38) -> 97133.73 | E39: =SUM(E27:E38) -> 12889 | F39: =IF(D39=0,0,B39/D39) -> 308.6179107 | G39: =IF(E39=0,0,C39/E39) -> 199.4304446 | H39: =IF(D39+E39=0,0,(B39+C39)/(D39+E39)) -> 295.8267606 | I39: =SUM(I27:I38) -> 35439926.86 | J39: =SUM(J27:J38) -> 8015652 | K39: 267.1564923 | L39: -0.1541402179 | M39: 0.1073163825
A42: ="MÅLESTATISTIKK FOR MALERE - GJENNOMSNITT HELE ÅRET "&FORS!$A$14 -> MÅLESTATISTIKK FOR MALERE - GJENNOMSNITT HELE ÅRET 2021
B44: Målesum i kroner | D44: Timer | F44: ="Fortjeneste hele "&FORS!$A$14-0 -> Fortjeneste hele 2021 | I44: =" Hele året "&FORS!$A$14-1 -> Hele året 2020 | L44: Endringer i %
B45: Innmålt m/ | C45: Innmålt m/ | D45: Innmålt m/ | E45: Innmålt m/ | F45: Innmålt m/ | G45: Innmålt m/ | H45: Gjennom- | I45: Innmålt m/ | J45: Innmålt m/ | K45: Gjen.snitt | L45: Innmålt m/ | M45: Gjen.snitt
B46: overskudd | C46: underskudd | D46: overskudd | E46: underskudd | F46: overskudd | G46: underskudd | H46: snitt | I46: overskudd | J46: underskudd | K46: fortjeneste | L46: overskudd | M46: fortjeneste
A47: Agder | B47: =SUMIFS(B$7:B$19,$A$7:$A$19,$A47)+SUMIFS(B$27:B$39,$A$27:$A$39,$A47) -> 0 | C47: =SUMIFS(C$7:C$19,$A$7:$A$19,$A47)+SUMIFS(C$27:C$39,$A$27:$A$39,$A47) -> 0 | D47: 0 | E47: 0 | F47: =IF(D47=0,0,B47/D47) -> 0 | G47: =IF(E47=0,0,C27/E47) -> 0 | H47: =IF(D47+E47=0,0,(B47+C47)/(D47+E47)) -> 0 | I47: =SUMIFS(I$7:I$19,$A$7:$A$19,$A47)+SUMIFS(I$27:I$39,$A$27:$A$39,$A47) -> 0 | J47: =SUMIFS(J$7:J$19,$A$7:$A$19,$A47)+SUMIFS(J$27:J$39,$A$27:$A$39,$A47) -> 0 | K47: 0 | L47: =IF(I47=0,0,(B47-I47)/I47) -> 0 | M47: =IF(K47=0,0,(H47-K47)/K47) -> 0
A48: Bergen | B48: =SUMIFS($B$7:$B$19,$A$7:$A$19,A48)+SUMIFS($B$27:$B$39,$A$27:$A$39,A48) -> 2358561.73 | C48: 0 | D48: 9298.78 | E48: 0 | F48: =IF(D48=0,0,B48/D48) -> 253.6420616 | G48: 0 | H48: =IF(D48+E48=0,0,(B48+C48)/(D48+E48)) -> 253.6420616 | I48: =SUMIFS(I$7:I$19,$A$7:$A$19,$A48)+SUMIFS(I$27:I$39,$A$27:$A$39,$A48) -> 7457689.79 | J48: 0 | K48: 255.6395158 | L48: =IF(I48=0,0,(B48-I48)/I48) -> -0.6837409712 | M48: =IF(K48=0,0,(H48-K48)/K48) -> -0.007813557908
A49: Drammen - Bærum | B49: 0 | C49: 0 | D49: 0 | E49: 0 | F49: 0 | G49: 0 | H49: 0 | I49: 0 | J49: 0 | K49: 0 | L49: 0 | M49: 0
A50: Haugesund | B50: 0 | C50: 0 | D50: 0 | E50: 0 | F50: 0 | G50: 0 | H50: 0 | I50: 0 | J50: 0 | K50: 0 | L50: 0 | M50: 0
A51: Hamar og Omegn | B51: 2158475 | C51: 0 | D51: 6435 | E51: 0 | F51: 335.4273504 | G51: 0 | H51: 335.4273504 | I51: 2249688 | J51: 0 | K51: 398.1847338 | L51: -0.04054473331 | M51: -0.1576087128
A52: Sandnes | B52: 0 | C52: 0 | D52: 0 | E52: 0 | F52: =IF(D52=0,0,B52/D52) -> 0 | G52: 0 | H52: =IF(D52+E52=0,0,(B52+C52)/(D52+E52)) -> 0 | I52: 0 | J52: 0 | K52: 0 | L52: 0 | M52: 0
A53: Stavanger | B53: 0 | C53: 0 | D53: 0 | E53: 0 | F53: 0 | G53: 0 | H53: 0 | I53: 0 | J53: 0 | K53: 0 | L53: 0 | M53: 0
A54: Telemark | B54: 183731 | C54: 0 | D54: 362.5 | E54: 0 | F54: 506.8441379 | G54: 0 | H54: 506.8441379 | I54: 357824 | J54: 265600 | K54: 298.4317855 | L54: -0.4865324852 | M54: 0.6983584272
A55: Trondheim | B55: 41844470 | C55: 10447697 | D55: 130035.01 | E55: 51073.66 | F55: 321.7938769 | G55: 204.5613532 | H55: 288.7336481 | I55: 29183798 | J55: 13248345 | K55: 246.4163734 | L55: 0.4338253712 | M55: 0.1717307749
A56: Vestfold | B56: 0 | C56: 0 | D56: 0 | E56: 0 | F56: =IF(D56=0,0,B56/D56) -> 0 | G56: 0 | H56: 0 | I56: 427087.06 | J56: 0 | K56: 395.0851619 | L56: -1 | M56: -1
A57: Østfold | B57: 0 | C57: 0 | D57: 0 | E57: =SUMIFS(E$7:E$19,$A$7:$A$19,$A57)+SUMIFS(E$27:E$39,$A$27:$A$39,$A57) -> 0 | F57: =IF(D57=0,0,B57/D57) -> 0 | G57: 0 | H57: 0 | I57: 0 | J57: 0 | K57: 0 | L57: 0 | M57: 0
A58: Oslo | B58: 15164830 | C58: 216830 | D58: 47372 | E58: 1064 | F58: 320.1222241 | G58: 203.787594 | H58: 317.5666859 | I58: 21014721 | J58: 1060125 | K58: 303.2758971 | L58: -0.2783711 | M58: 0.04712141303
A59: Landet i alt | B59: =SUM(B47:B58) -> 61710067.73 | C59: =SUM(C47:C58) -> 10664527 | D59: =SUM(D47:D58) -> 193503.29 | E59: =SUM(E47:E58) -> 52137.66 | F59: =IF(D59=0,0,B59/D59) -> 318.9096564 | G59: =IF(E59=0,0,C59/E59) -> 204.5455627 | H59: =IF(D59+E59=0,0,(B59+C59)/(D59+E59)) -> 294.635706 | I59: =SUM(I47:I58) -> 60690807.85 | J59: =SUM(J47:J58) -> 14574070 | K59: 265.9748066 | L59: =IF(I59=0,0,(B59-I59)/I59) -> 0.01679430405 | M59: =IF(K59=0,0,(H59-K59)/K59) -> 0.1077579482

Sheet RØRLEGGERE
A2: ="MÅLESTATISTIKK FOR RØRLEGGERE - 1. HALVÅR "&FORS!$A$14 -> MÅLESTATISTIKK FOR RØRLEGGERE - 1. HALVÅR 2021
B4: Målesum i kroner | D4: Timer | F4: ="Fortjeneste 1. halvår "&FORS!$A$14-0 -> Fortjeneste 1. halvår 2021 | I4: =" 1. halvår "&FORS!$A$14-1 -> 1. halvår 2020 | L4: Endringer i %
B5: Innmålt m/ | C5: Innmålt m/ | D5: Innmålt m/ | E5: Innmålt m/ | F5: Innmålt m/ | G5: Innmålt m/ | H5: Gjennom- | I5: Innmålt m/ | J5: Innmålt m/ | K5: Gjen.snitt | L5: Innmålt m/ | M5: Gjen.snitt
B6: overskudd | C6: underskudd | D6: overskudd | E6: underskudd | F6: overskudd | G6: underskudd | H6: snitt | I6: overskudd | J6: underskudd | K6: fortjeneste | L6: overskudd | M6: fortjeneste
A7: Agder | F7: =IF(D7=0,0,B7/D7) -> 0 | G7: =IF(E7=0,0,C7/E7) -> 0 | H7: =IF(D7+E7=0,0,(B7+C7)/(D7+E7)) -> 0 | K7: 0 | L7: =IF(I7=0,0,(B7-I7)/I7) -> 0 | M7: =IF(K7=0,0,(H7-K7)/K7) -> 0
A8: Bergen | F8: =IF(D8=0,0,B8/D8) -> 0 | G8: 0 | H8: =IF(D8+E8=0,0,(B8+C8)/(D8+E8)) -> 0 | K8: 0 | L8: =IF(I8=0,0,(B8-I8)/I8) -> 0 | M8: =IF(K8=0,0,(H8-K8)/K8) -> 0
A9: Nordland | F9: 0 | G9: 0 | H9: 0 | K9: 0 | L9: 0 | M9: 0
A10: Haugesund | F10: 0 | G10: 0 | H10: 0 | K10: 0 | L10: 0 | M10: 0
A11: Hamar og Omegn | F11: 0 | G11: 0 | H11: 0 | K11: 0 | L11: 0 | M11: 0
A12: Sandnes | F12: 0 | G12: 0 | H12: 0 | K12: 0 | L12: 0 | M12: 0
A13: Stavanger | F13: 0 | G13: 0 | H13: 0 | K13: 0 | L13: 0 | M13: 0
A14: Telemark | F14: 0 | G14: 0 | H14: 0 | K14: 0 | L14: 0 | M14: 0
A15: Trondheim | B15: 9779522.97 | C15: 4641267.51 | D15: 28978.81 | E15: 21736.27 | F15: 337.4715169 | G15: 213.5264013 | H15: 284.3491616 | I15: 7937562.45 | J15: 3667299.97 | K15: 288.3257954 | L15: 0.2320561925 | M15: -0.01379215387
A16: Vestfold | F16: 0 | G16: 0 | H16: 0 | K16: 0 | L16: 0 | M16: 0
A17: Østfold | F17: 0 | G17: 0 | H17: 0 | K17: 0 | L17: 0 | M17: 0
A18: Oslo | B18: 36598559 | C18: 1578608 | D18: 117067 | E18: 7626 | F18: 312.6291696 | G18: 207.0034094 | H18: 306.1692878 | I18: 30940663 | J18: 1134425 | K18: 315.2451239 | L18: 0.1828627913 | M18: -0.02878977485
A19: Landet i alt | B19: =SUM(B7:B18) -> 46378081.97 | C19: =SUM(C7:C18) -> 6219875.51 | D19: =SUM(D7:D18) -> 146045.81 | E19: =SUM(E7:E18) -> 29362.27 | F19: =IF(D19=0,0,B19/D19) -> 317.5584563 | G19: =IF(E19=0,0,C19/E19) -> 211.8322429 | H19: =IF(D19+E19=0,0,(B19+C19)/(D19+E19)) -> 299.8605166 | I19: =SUM(I7:I18) -> 38878225.45 | J19: =SUM(J7:J18) -> 4801724.97 | K19: 307.6147514 | L19: =IF(I19=0,0,(B19-I19)/I19) -> 0.1929063488 | M19: =IF(K19=0,0,(H19-K19)/K19) -> -0.02520761691
A22: ="MÅLESTATISTIKK FOR RØRLEGGERE - 2. HALVÅR "&FORS!$A$14 -> MÅLESTATISTIKK FOR RØRLEGGERE - 2. HALVÅR 2021
B24: Målesum i kroner | D24: Timer | F24: ="Fortjeneste 2. halvår "&FORS!$A$14-0 -> Fortjeneste 2. halvår 2021 | I24: =" 2. halvår "&FORS!$A$14-1 -> 2. halvår 2020 | L24: Endringer i %
B25: Innmålt m/ | C25: Innmålt m/ | D25: Innmålt m/ | E25: Innmålt m/ | F25: Innmålt m/ | G25: Innmålt m/ | H25: Gjennom- | I25: Innmålt m/ | J25: Innmålt m/ | K25: Gjen.snitt | L25: Innmålt m/ | M25: Gjen.snitt
B26: overskudd | C26: underskudd | D26: overskudd | E26: underskudd | F26: overskudd | G26: underskudd | H26: snitt | I26: overskudd | J26: underskudd | K26: fortjeneste | L26: overskudd | M26: fortjeneste
A27: Agder | F27: =IF(D27=0,0,B27/D27) -> 0 | G27: 0 | H27: =IF(D27+E27=0,0,(B27+C27)/(D27+E27)) -> 0 | K27: 0 | L27: =IF(I27=0,0,(B27-I27)/I27) -> 0 | M27: =IF(K27=0,0,(H27-K27)/K27) -> 0
A28: Bergen | F28: 0 | G28: 0 | H28: =IF(D28+E28=0,0,(B28+C28)/(D28+E28)) -> 0 | K28: 0 | L28: =IF(I28=0,0,(B28-I28)/I28) -> 0 | M28: =IF(K28=0,0,(H28-K28)/K28) -> 0
A29: Nordland | D29: 0 | F29: 0 | G29: 0 | H29: 0 | J29: 424816.48 | K29: 201.7651294 | L29: 0 | M29: -1
A30: Haugesund | F30: 0 | G30: 0 | H30: 0 | K30: 0 | L30: 0 | M30: 0
A31: Hamar og Omegn | F31: 0 | G31: 0 | H31: 0 | K31: 0 | L31: 0 | M31: 0
A32: Sandnes | F32: 0 | G32: 0 | H32: 0 | K32: 0 | L32: 0 | M32: 0
A33: Stavanger | F33: 0 | G33: 0 | H33: 0 | K33: 0 | L33: 0 | M33: 0
A34: Telemark | F34: 0 | G34: 0 | H34: 0 | K34: 0 | L34: 0 | M34: 0
A35: Trondheim | B35: 7773105.47 | C35: 3108168.08 | D35: 15081.4 | E35: 12483.35 | F35: 515.4100727 | G35: 248.9850945 | H35: 394.7532102 | I35: 4383440.44 | J35: 6394354.97 | K35: 257.5589887 | L35: 0.7732887161 | M35: 0.5326710678
A36: Vestfold | F36: 0 | G36: 0 | H36: 0 | K36: 0 | L36: 0 | M36: 0
A37: Østfold | C37: 0 | F37: 0 | G37: 0 | H37: 0 | J37: 0 | K37: 0 | L37: 0 | M37: 0
A38: Oslo | B38: 14162110 | D38: 41987 | F38: 337.2974968 | G38: 0 | H38: 337.2974968 | I38: 28628301 | J38: 993875 | K38: 327.820365 | L38: -0.5053108461 | M38: 0.02890952752
A39: Landet i alt | B39: =SUM(B27:B38) -> 21935215.47 | C39: =SUM(C27:C38) -> 3108168.08 | D39: =SUM(D27:D38) -> 57068.4 | E39: =SUM(E27:E38) -> 12483.35 | F39: =IF(D39=0,0,B39/D39) -> 384.3671011 | G39: =IF(E39=0,0,C39/E39) -> 248.9850945 | H39: =IF(D39+E39=0,0,(B39+C39)/(D39+E39)) -> 360.0683455 | I39: =SUM(I27:I38) -> 33011741.44 | J39: =SUM(J27:J38) -> 7813046.45 | K39: 303.9539072 | L39: -0.3355329191 | M39: 0.1846149595
A42: ="MÅLESTATISTIKK FOR RØRLEGGERE - GJENNOMSNITT HELE ÅRET "&FORS!$A$14 -> MÅLESTATISTIKK FOR RØRLEGGERE - GJENNOMSNITT HELE ÅRET 2021
B44: Målesum i kroner | D44: Timer | F44: ="Fortjeneste hele "&FORS!$A$14-0 -> Fortjeneste hele 2021 | I44: =" Hele året "&FORS!$A$14-1 -> Hele året 2020 | L44: Endringer i %
B45: Innmålt m/ | C45: Innmålt m/ | D45: Innmålt m/ | E45: Innmålt m/ | F45: Innmålt m/ | G45: Innmålt m/ | H45: Gjennom- | I45: Innmålt m/ | J45: Innmålt m/ | K45: Gjen.snitt | L45: Innmålt m/ | M45: Gjen.snitt
B46: overskudd | C46: underskudd | D46: overskudd | E46: underskudd | F46: overskudd | G46: underskudd | H46: snitt | I46: overskudd | J46: underskudd | K46: fortjeneste | L46: overskudd | M46: fortjeneste
A47: Agder | B47: =SUMIFS(B$7:B$19,$A$7:$A$19,$A47)+SUMIFS(B$27:B$39,$A$27:$A$39,$A47) -> 0 | C47: =SUMIFS(C$7:C$19,$A$7:$A$19,$A47)+SUMIFS(C$27:C$39,$A$27:$A$39,$A47) -> 0 | D47: 0 | E47: 0 | F47: =IF(D47=0,0,B47/D47) -> 0 | G47: =IF(E47=0,0,C27/E47) -> 0 | H47: =IF(D47+E47=0,0,(B47+C47)/(D47+E47)) -> 0 | I47: =SUMIFS(I$7:I$19,$A$7:$A$19,$A47)+SUMIFS(I$27:I$39,$A$27:$A$39,$A47) -> 0 | J47: =SUMIFS(J$7:J$19,$A$7:$A$19,$A47)+SUMIFS(J$27:J$39,$A$27:$A$39,$A47) -> 0 | K47: 0 | L47: =IF(I47=0,0,(B47-I47)/I47) -> 0 | M47: =IF(K47=0,0,(H47-K47)/K47) -> 0
A48: Bergen | B48: =SUMIFS($B$7:$B$19,$A$7:$A$19,A48)+SUMIFS($B$27:$B$39,$A$27:$A$39,A48) -> 0 | C48: 0 | D48: 0 | E48: 0 | F48: =IF(D48=0,0,B48/D48) -> 0 | G48: 0 | H48: =IF(D48+E48=0,0,(B48+C48)/(D48+E48)) -> 0 | I48: =SUMIFS(I$7:I$19,$A$7:$A$19,$A48)+SUMIFS(I$27:I$39,$A$27:$A$39,$A48) -> 0 | J48: 0 | K48: 0 | L48: =IF(I48=0,0,(B48-I48)/I48) -> 0 | M48: =IF(K48=0,0,(H48-K48)/K48) -> 0
A49: Nordland | B49: 0 | C49: 0 | D49: 0 | E49: 0 | F49: 0 | G49: 0 | H49: 0 | I49: 0 | J49: 424816.48 | K49: 201.7651294 | L49: 0 | M49: -1
A50: Haugesund | B50: 0 | C50: 0 | D50: 0 | E50: 0 | F50: 0 | G50: 0 | H50: 0 | I50: 0 | J50: 0 | K50: 0 | L50: 0 | M50: 0
A51: Hamar og Omegn | B51: 0 | C51: 0 | D51: 0 | E51: 0 | F51: 0 | G51: 0 | H51: 0 | I51: 0 | J51: 0 | K51: 0 | L51: 0 | M51: 0
A52: Sandnes | B52: 0 | C52: 0 | D52: 0 | E52: 0 | F52: =IF(D52=0,0,B52/D52) -> 0 | G52: 0 | H52: =IF(D52+E52=0,0,(B52+C52)/(D52+E52)) -> 0 | I52: 0 | J52: 0 | K52: 0 | L52: 0 | M52: 0
A53: Stavanger | B53: 0 | C53: 0 | D53: 0 | E53: 0 | F53: 0 | G53: 0 | H53: 0 | I53: 0 | J53: 0 | K53: 0 | L53: 0 | M53: 0
A54: Telemark | B54: 0 | C54: 0 | D54: 0 | E54: 0 | F54: 0 | G54: 0 | H54: 0 | I54: 0 | J54: 0 | K54: 0 | L54: 0 | M54: 0
A55: Trondheim | B55: 17552628.44 | C55: 7749435.59 | D55: 44060.21 | E55: 34219.62 | F55: 398.3782292 | G55: 226.4617664 | H55: 323.2258429 | I55: 12321002.89 | J55: 10061654.94 | K55: 272.6431752 | L55: 0.4246103663 | M55: 0.1855269899
A56: Vestfold | B56: 0 | C56: 0 | D56: 0 | E56: 0 | F56: =IF(D56=0,0,B56/D56) -> 0 | G56: 0 | H56: 0 | I56: 0 | J56: 0 | K56: 0 | L56: 0 | M56: 0
A57: Østfold | B57: 0 | C57: 0 | D57: 0 | E57: =SUMIFS(E$7:E$19,$A$7:$A$19,$A57)+SUMIFS(E$27:E$39,$A$27:$A$39,$A57) -> 0 | F57: =IF(D57=0,0,B57/D57) -> 0 | G57: 0 | H57: 0 | I57: 0 | J57: 0 | K57: 0 | L57: 0 | M57: 0
A58: Oslo | B58: 50760669 | C58: 1578608 | D58: 159054 | E58: 7626 | F58: 319.141103 | G58: 207.0034094 | H58: 314.0105412 | I58: 59568964 | J58: 2128300 | K58: 321.1601005 | L58: -0.1478671847 | M58: -0.0222616673
A59: Landet i alt | B59: =SUM(B47:B58) -> 68313297.44 | C59: =SUM(C47:C58) -> 9328043.59 | D59: =SUM(D47:D58) -> 203114.21 | E59: =SUM(E47:E58) -> 41845.62 | F59: =IF(D59=0,0,B59/D59) -> 336.329484 | G59: =IF(E59=0,0,C59/E59) -> 222.9156502 | H59: =IF(D59+E59=0,0,(B59+C59)/(D59+E59)) -> 316.9554005 | I59: =SUM(I47:I58) -> 71889966.89 | J59: =SUM(J47:J58) -> 12614771.42 | K59: 305.8352272 | L59: =IF(I59=0,0,(B59-I59)/I59) -> -0.04975199746 | M59: =IF(K59=0,0,(H59-K59)/K59) -> 0.03636001456

Sheet TAKTEKKERE
A2: ="MÅLESTATISTIKK FOR TAKTEKKERE - 1. HALVÅR "&FORS!$A$14 -> MÅLESTATISTIKK FOR TAKTEKKERE - 1. HALVÅR 2021
B4: Målesum i kroner | D4: Timer | F4: ="Fortjeneste 1. halvår "&FORS!$A$14-0 -> Fortjeneste 1. halvår 2021 | I4: =" 1. halvår "&FORS!$A$14-1 -> 1. halvår 2020 | L4: Endringer i %
B5: Innmålt m/ | C5: Innmålt m/ | D5: Innmålt m/ | E5: Innmålt m/ | F5: Innmålt m/ | G5: Innmålt m/ | H5: Gjennom- | I5: Innmålt m/ | J5: Innmålt m/ | K5: Gjen.snitt | L5: Innmålt m/ | M5: Gjen.snitt
B6: overskudd | C6: underskudd | D6: overskudd | E6: underskudd | F6: overskudd | G6: underskudd | H6: snitt | I6: overskudd | J6: underskudd | K6: fortjeneste | L6: overskudd | M6: fortjeneste
A7: Agder | B7: 0 | D7: 0 | F7: =IF(D7=0,0,B7/D7) -> 0 | G7: =IF(E7=0,0,C7/E7) -> 0 | H7: =IF(D7+E7=0,0,(B7+C7)/(D7+E7)) -> 0 | I7: 0 | K7: 0 | L7: =IF(I7=0,0,(B7-I7)/I7) -> 0 | M7: =IF(K7=0,0,(H7-K7)/K7) -> 0
A8: Bergen | F8: =IF(D8=0,0,B8/D8) -> 0 | G8: 0 | H8: =IF(D8+E8=0,0,(B8+C8)/(D8+E8)) -> 0 | I8: 262003.71 | K8: 274.8675094 | L8: =IF(I8=0,0,(B8-I8)/I8) -> -1 | M8: =IF(K8=0,0,(H8-K8)/K8) -> -1
A9: Drammen - Bærum | F9: 0 | G9: 0 | H9: 0 | K9: 0 | L9: =IF(I9=0,0,(B9-I9)/I9) -> 0 | M9: 0
A10: Haugesund | F10: 0 | G10: 0 | H10: 0 | K10: 0 | L10: 0 | M10: 0
A11: Hamar og Omegn | B11: 1319617 | C11: 130636 | D11: 3498.9 | E11: 724.5 | F11: 377.151962 | G11: 180.3119393 | H11: 343.3851873 | I11: 1210598 | J11: 136955 | K11: 355.2268354 | L11: 0.09005384116 | M11: -0.03333545472
A12: Sandnes | F12: 0 | G12: 0 | H12: 0 | K12: 0 | L12: 0 | M12: 0
A13: Stavanger | B13: 4461131.5 | D13: 13747 | F13: 324.5167309 | G13: 0 | H13: 324.5167309 | I13: 4632594.24 | K13: 288.6711266 | L13: -0.03701225083 | M13: 0.1241745398
A14: Telemark | B14: 1412344.64 | C14: 51097 | D14: 3646.4 | E14: 268.81 | F14: 387.3257569 | G14: 190.0859343 | H14: 373.7836898 | I14: 1191176 | K14: 399.8576704 | L14: 0.1856725119 | M14: -0.06520815412
A15: Trondheim | B15: 1940638 | C15: 112035 | D15: 5011 | E15: 469 | F15: 387.2755937 | G15: 238.880597 | H15: 374.575365 | I15: 3268824.26 | J15: 495868.81 | K15: 248.6915755 | L15: -0.4063192617 | M15: 0.506184374
A16: Vestfold | F16: 0 | G16: 0 | H16: 0 | K16: 0 | L16: 0 | M16: 0
A17: Østfold | F17: 0 | G17: 0 | H17: 0 | K17: 0 | L17: 0 | M17: 0
A18: Oslo | B18: 2870507.27 | C18: 515809.07 | D18: 7336.9 | E18: 2616.3 | F18: 391.2425234 | G18: 197.1521118 | H18: 340.2238818 | I18: 3369047.7 | J18: 317516.03 | K18: 330.7047015 | L18: -0.1479766612 | M18: 0.02878453274
A19: Landet i alt | B19: =SUM(B7:B18) -> 12004238.41 | C19: =SUM(C7:C18) -> 809577.07 | D19: =SUM(D7:D18) -> 33240.2 | E19: =SUM(E7:E18) -> 4078.61 | F19: =IF(D19=0,0,B19/D19) -> 361.1361667 | G19: =IF(E19=0,0,C19/E19) -> 198.4933764 | H19: =IF(D19+E19=0,0,(B19+C19)/(D19+E19)) -> 343.3607738 | I19: =SUM(I7:I18) -> 13934243.91 | J19: =SUM(J7:J18) -> 950339.84 | K19: 297.3390309 | L19: =IF(I19=0,0,(B19-I19)/I19) -> -0.1385080893 | M19: =IF(K19=0,0,(H19-K19)/K19) -> 0.1547786807
A22: ="MÅLESTATISTIKK FOR TAKTEKKERE - 2. HALVÅR "&FORS!$A$14 -> MÅLESTATISTIKK FOR TAKTEKKERE - 2. HALVÅR 2021
B24: Målesum i kroner | D24: Timer | F24: ="Fortjeneste 2. halvår "&FORS!$A$14-0 -> Fortjeneste 2. halvår 2021 | I24: =" 2. halvår "&FORS!$A$14-1 -> 2. halvår 2020 | L24: Endringer i %
B25: Innmålt m/ | C25: Innmålt m/ | D25: Innmålt m/ | E25: Innmålt m/ | F25: Innmålt m/ | G25: Innmålt m/ | H25: Gjennom- | I25: Innmålt m/ | J25: Innmålt m/ | K25: Gjen.snitt | L25: Innmålt m/ | M25: Gjen.snitt
B26: overskudd | C26: underskudd | D26: overskudd | E26: underskudd | F26: overskudd | G26: underskudd | H26: snitt | I26: overskudd | J26: underskudd | K26: fortjeneste | L26: overskudd | M26: fortjeneste
A27: Agder | F27: =IF(D27=0,0,B27/D27) -> 0 | G27: 0 | H27: =IF(D27+E27=0,0,(B27+C27)/(D27+E27)) -> 0 | I27: 137045 | K27: 257.120075 | L27: =IF(I27=0,0,(B27-I27)/I27) -> -1 | M27: =IF(K27=0,0,(H27-K27)/K27) -> -1
A28: Bergen | F28: 0 | G28: 0 | H28: =IF(D28+E28=0,0,(B28+C28)/(D28+E28)) -> 0 | I28: 326745.87 | K28: 261.564097 | L28: =IF(I28=0,0,(B28-I28)/I28) -> -1 | M28: =IF(K28=0,0,(H28-K28)/K28) -> -1
A29: Drammen - Bærum | F29: 0 | G29: 0 | H29: 0 | K29: 0 | L29: 0 | M29: 0
A30: Haugesund | F30: 0 | G30: 0 | H30: 0 | K30: 0 | L30: 0 | M30: 0
A31: Hamar og Omegn | B31: 1293233 | C31: 48476 | D31: 2987.01 | E31: 279.2 | F31: 432.9523503 | G31: 173.6246418 | H31: 410.7846709 | I31: 744563 | J31: 50985 | K31: 427.002308 | L31: 0.7369020486 | M31: -0.03798020938
A32: Sandnes | F32: 0 | G32: 0 | H32: 0 | K32: 0 | L32: 0 | M32: 0
A33: Stavanger | B33: 4016258.4 | D33: 11786 | F33: 340.765179 | G33: 0 | H33: 340.765179 | I33: 4022427.07 | K33: 311.0685229 | L33: -0.001533569134 | M33: 0.09546660593
A34: Telemark | B34: 1103626 | C34: 57403 | D34: 2365.3 | E34: 366 | F34: 466.5902845 | G34: 156.8387978 | H34: 425.0829275 | I34: 420459 | K34: 373.0780834 | L34: 1.624812407 | M34: 0.139393994
A35: Trondheim | B35: 1951310.22 | C35: 588691 | D35: 4992.8 | E35: 4137.2 | F35: 390.8248318 | G35: 142.2921299 | H35: 278.2038576 | I35: 3258692.57 | J35: 222188 | K35: 281.7579979 | L35: -0.4011984322 | M35: -0.01261415943
A36: Vestfold | F36: 0 | G36: 0 | H36: 0 | K36: 0 | L36: 0 | M36: 0
A37: Østfold | C37: 0 | F37: 0 | G37: 0 | H37: 0 | J37: 0 | K37: 0 | L37: 0 | M37: 0
A38: Oslo | B38: 4315685.46 | C38: 388594.99 | D38: 10330.3 | E38: 1730 | F38: 417.7696156 | G38: 224.6213815 | H38: 390.0633027 | I38: 2821959.11 | J38: 207750.72 | K38: 379.1924592 | L38: 0.5293224642 | M38: 0.02866840635
A39: Landet i alt | B39: =SUM(B27:B38) -> 12680113.08 | C39: =SUM(C27:C38) -> 1083164.99 | D39: =SUM(D27:D38) -> 32461.41 | E39: =SUM(E27:E38) -> 6512.4 | F39: =IF(D39=0,0,B39/D39) -> 390.6211431 | G39: =IF(E39=0,0,C39/E39) -> 166.3234737 | H39: =IF(D39+E39=0,0,(B39+C39)/(D39+E39)) -> 353.1417141 | I39: =SUM(I27:I38) -> 11731891.62 | J39: =SUM(J27:J38) -> 480923.72 | K39: 320.9899071 | L39: 0.08082426012 | M39: 0.1001645422
A42: ="MÅLESTATISTIKK FOR TAKTEKKERE - GJENNOMSNITT HELE ÅRET "&FORS!$A$14 -> MÅLESTATISTIKK FOR TAKTEKKERE - GJENNOMSNITT HELE ÅRET 2021
B44: Målesum i kroner | D44: Timer | F44: ="Fortjeneste hele "&FORS!$A$14-0 -> Fortjeneste hele 2021 | I44: =" Hele året "&FORS!$A$14-1 -> Hele året 2020 | L44: Endringer i %
B45: Innmålt m/ | C45: Innmålt m/ | D45: Innmålt m/ | E45: Innmålt m/ | F45: Innmålt m/ | G45: Innmålt m/ | H45: Gjennom- | I45: Innmålt m/ | J45: Innmålt m/ | K45: Gjen.snitt | L45: Innmålt m/ | M45: Gjen.snitt
B46: overskudd | C46: underskudd | D46: overskudd | E46: underskudd | F46: overskudd | G46: underskudd | H46: snitt | I46: overskudd | J46: underskudd | K46: fortjeneste | L46: overskudd | M46: fortjeneste
A47: Agder | B47: =SUMIFS(B$7:B$19,$A$7:$A$19,$A47)+SUMIFS(B$27:B$39,$A$27:$A$39,$A47) -> 0 | C47: =SUMIFS(C$7:C$19,$A$7:$A$19,$A47)+SUMIFS(C$27:C$39,$A$27:$A$39,$A47) -> 0 | D47: 0 | E47: 0 | F47: =IF(D47=0,0,B47/D47) -> 0 | G47: =IF(E47=0,0,C27/E47) -> 0 | H47: =IF(D47+E47=0,0,(B47+C47)/(D47+E47)) -> 0 | I47: =SUMIFS(I$7:I$19,$A$7:$A$19,$A47)+SUMIFS(I$27:I$39,$A$27:$A$39,$A47) -> 137045 | J47: =SUMIFS(J$7:J$19,$A$7:$A$19,$A47)+SUMIFS(J$27:J$39,$A$27:$A$39,$A47) -> 0 | K47: 257.120075 | L47: =IF(I47=0,0,(B47-I47)/I47) -> -1 | M47: =IF(K47=0,0,(H47-K47)/K47) -> -1
A48: Bergen | B48: =SUMIFS($B$7:$B$19,$A$7:$A$19,A48)+SUMIFS($B$27:$B$39,$A$27:$A$39,A48) -> 0 | C48: 0 | D48: 0 | E48: 0 | F48: =IF(D48=0,0,B48/D48) -> 0 | G48: 0 | H48: =IF(D48+E48=0,0,(B48+C48)/(D48+E48)) -> 0 | I48: =SUMIFS(I$7:I$19,$A$7:$A$19,$A48)+SUMIFS(I$27:I$39,$A$27:$A$39,$A48) -> 588749.58 | J48: 0 | K48: 267.3218216 | L48: =IF(I48=0,0,(B48-I48)/I48) -> -1 | M48: =IF(K48=0,0,(H48-K48)/K48) -> -1
A49: Drammen - Bærum | B49: 0 | C49: 0 | D49: 0 | E49: 0 | F49: 0 | G49: 0 | H49: 0 | I49: 0 | J49: 0 | K49: 0 | L49: 0 | M49: 0
A50: Haugesund | B50: 0 | C50: 0 | D50: 0 | E50: 0 | F50: 0 | G50: 0 | H50: 0 | I50: 0 | J50: 0 | K50: 0 | L50: 0 | M50: 0
A51: Hamar og Omegn | B51: 2612850 | C51: 179112 | D51: 6485.91 | E51: 1003.7 | F51: 402.8501783 | G51: 178.4517286 | H51: 372.7780218 | I51: 1955161 | J51: 187940 | K51: 378.8673408 | L51: 0.3363861084 | M51: -0.01607243045
A52: Sandnes | B52: 0 | C52: 0 | D52: 0 | E52: 0 | F52: =IF(D52=0,0,B52/D52) -> 0 | G52: 0 | H52: =IF(D52+E52=0,0,(B52+C52)/(D52+E52)) -> 0 | I52: 0 | J52: 0 | K52: 0 | L52: 0 | M52: 0
A53: Stavanger | B53: 8477389.9 | C53: 0 | D53: 25533 | E53: 0 | F53: 332.0169937 | G53: 0 | H53: 332.0169937 | I53: 8655021.31 | J53: 0 | K53: 298.6652856 | L53: -0.02052350926 | M53: 0.111669182
A54: Telemark | B54: 2515970.64 | C54: 108500 | D54: 6011.7 | E54: 634.81 | F54: 418.5123409 | G54: 170.9172823 | H54: 394.8644687 | I54: 1611635 | J54: 0 | K54: 392.5073064 | L54: 0.5611293128 | M54: 0.006005397357
A55: Trondheim | B55: 3891948.22 | C55: 700726 | D55: 10003.8 | E55: 4606.2 | F55: 389.0469841 | G55: 152.1266988 | H55: 314.3514182 | I55: 6527516.83 | J55: 718056.81 | K55: 263.5506368 | L55: -0.4037628211 | M55: 0.1927552974
A56: Vestfold | B56: 0 | C56: 0 | D56: 0 | E56: 0 | F56: =IF(D56=0,0,B56/D56) -> 0 | G56: 0 | H56: 0 | I56: 0 | J56: 0 | K56: 0 | L56: 0 | M56: 0
A57: Østfold | B57: 0 | C57: 0 | D57: 0 | E57: =SUMIFS(E$7:E$19,$A$7:$A$19,$A57)+SUMIFS(E$27:E$39,$A$27:$A$39,$A57) -> 0 | F57: =IF(D57=0,0,B57/D57) -> 0 | G57: 0 | H57: 0 | I57: 0 | J57: 0 | K57: 0 | L57: 0 | M57: 0
A58: Oslo | B58: 7186192.73 | C58: 904404.06 | D58: 17667.2 | E58: 4346.3 | F58: 406.7533469 | G58: 208.085972 | H58: 367.5288705 | I58: 6191006.81 | J58: 525266.75 | K58: 350.9483245 | L58: 0.160747024 | M58: 0.04724497829
A59: Landet i alt | B59: =SUM(B47:B58) -> 24684351.49 | C59: =SUM(C47:C58) -> 1892742.06 | D59: =SUM(D47:D58) -> 65701.61 | E59: =SUM(E47:E58) -> 10591.01 | F59: =IF(D59=0,0,B59/D59) -> 375.7039057 | G59: =IF(E59=0,0,C59/E59) -> 178.7121398 | H59: =IF(D59+E59=0,0,(B59+C59)/(D59+E59)) -> 348.3573319 | I59: =SUM(I47:I58) -> 25666135.53 | J59: =SUM(J47:J58) -> 1431263.56 | K59: 307.5522573 | L59: =IF(I59=0,0,(B59-I59)/I59) -> -0.03825211781 | M59: =IF(K59=0,0,(H59-K59)/K59) -> 0.1326768823

Sheet MURERE
A2: ="MÅLESTATISTIKK FOR MURERE - 1. HALVÅR "&FORS!$A$14 -> MÅLESTATISTIKK FOR MURERE - 1. HALVÅR 2021
B4: Målesum i kroner | D4: Timer | F4: ="Fortjeneste 1. halvår "&FORS!$A$14-0 -> Fortjeneste 1. halvår 2021 | I4: =" 1. halvår "&FORS!$A$14-1 -> 1. halvår 2020 | L4: Endringer i %
B5: Innmålt m/ | C5: Innmålt m/ | D5: Innmålt m/ | E5: Innmålt m/ | F5: Innmålt m/ | G5: Innmålt m/ | H5: Gjennom- | I5: Innmålt m/ | J5: Innmålt m/ | K5: Gjen.snitt | L5: Innmålt m/ | M5: Gjen.snitt
B6: overskudd | C6: underskudd | D6: overskudd | E6: underskudd | F6: overskudd | G6: underskudd | H6: snitt | I6: overskudd | J6: underskudd | K6: fortjeneste | L6: overskudd | M6: fortjeneste
A7: Agder | F7: =IF(D7=0,0,B7/D7) -> 0 | G7: =IF(E7=0,0,C7/E7) -> 0 | H7: =IF(D7+E7=0,0,(B7+C7)/(D7+E7)) -> 0 | K7: 0 | L7: =IF(I7=0,0,(B7-I7)/I7) -> 0 | M7: =IF(K7=0,0,(H7-K7)/K7) -> 0
A8: Bergen | F8: =IF(D8=0,0,B8/D8) -> 0 | G8: 0 | H8: =IF(D8+E8=0,0,(B8+C8)/(D8+E8)) -> 0 | K8: 0 | L8: =IF(I8=0,0,(B8-I8)/I8) -> 0 | M8: =IF(K8=0,0,(H8-K8)/K8) -> 0
A9: Drammen - Bærum | F9: 0 | G9: 0 | H9: 0 | K9: 0 | L9: 0 | M9: 0
A10: Haugesund | F10: 0 | G10: 0 | H10: 0 | K10: 0 | L10: 0 | M10: 0
A11: Hamar og Omegn | F11: 0 | G11: 0 | H11: 0 | K11: 0 | L11: 0 | M11: 0
A12: Sandnes | F12: 0 | G12: 0 | H12: 0 | K12: 0 | L12: 0 | M12: 0
A13: Stavanger | F13: 0 | G13: 0 | H13: 0 | I13: 759319.41 | K13: 323.183405 | L13: -1 | M13: -1
A14: Telemark | F14: 0 | G14: 0 | H14: 0 | K14: 0 | L14: 0 | M14: 0
A15: Trondheim | B15: 1941137 | C15: 586367 | D15: 6740 | E15: 2561 | F15: 288.0025223 | G15: 228.9601718 | H15: 271.7454037 | I15: 1553467.15 | K15: 286.7852877 | L15: 0.2495513664 | M15: -0.05244301096
A16: Vestfold | F16: 0 | G16: 0 | H16: 0 | K16: 0 | L16: 0 | M16: 0
A17: Østfold | B17: 407970 | C17: 0 | D17: 1138.5 | F17: 358.3399209 | G17: 0 | H17: 358.3399209 | I17: 1433240 | J17: 0 | K17: 326.4040082 | L17: -0.7153512322 | M17: 0.09784166845
A18: Oslo | B18: 16111664 | C18: 471588 | D18: 48254 | E18: 2027 | F18: 333.8928172 | G18: 232.653182 | H18: 329.8114994 | I18: 12114296 | J18: 337216 | K18: 327.1720006 | L18: 0.3299711349 | M18: 0.008067618066
A19: Landet i alt | B19: =SUM(B7:B18) -> 18460771 | C19: =SUM(C7:C18) -> 1057955 | D19: =SUM(D7:D18) -> 56132.5 | E19: =SUM(E7:E18) -> 4588 | F19: =IF(D19=0,0,B19/D19) -> 328.878475 | G19: =IF(E19=0,0,C19/E19) -> 230.5917611 | H19: =IF(D19+E19=0,0,(B19+C19)/(D19+E19)) -> 321.4519973 | I19: =SUM(I7:I18) -> 15860322.56 | J19: =SUM(J7:J18) -> 337216 | K19: 322.5616273 | L19: =IF(I19=0,0,(B19-I19)/I19) -> 0.1639593665 | M19: =IF(K19=0,0,(H19-K19)/K19) -> -0.003440055902
A22: ="MÅLESTATISTIKK FOR MURERE - 2. HALVÅR "&FORS!$A$14 -> MÅLESTATISTIKK FOR MURERE - 2. HALVÅR 2021
B24: Målesum i kroner | D24: Timer | F24: ="Fortjeneste 2. halvår "&FORS!$A$14-0 -> Fortjeneste 2. halvår 2021 | I24: =" 2. halvår "&FORS!$A$14-1 -> 2. halvår 2020 | L24: Endringer i %
B25: Innmålt m/ | C25: Innmålt m/ | D25: Innmålt m/ | E25: Innmålt m/ | F25: Innmålt m/ | G25: Innmålt m/ | H25: Gjennom- | I25: Innmålt m/ | J25: Innmålt m/ | K25: Gjen.snitt | L25: Innmålt m/ | M25: Gjen.snitt
B26: overskudd | C26: underskudd | D26: overskudd | E26: underskudd | F26: overskudd | G26: underskudd | H26: snitt | I26: overskudd | J26: underskudd | K26: fortjeneste | L26: overskudd | M26: fortjeneste
A27: Agder | F27: =IF(D27=0,0,B27/D27) -> 0 | G27: 0 | H27: =IF(D27+E27=0,0,(B27+C27)/(D27+E27)) -> 0 | K27: 0 | L27: =IF(I27=0,0,(B27-I27)/I27) -> 0 | M27: =IF(K27=0,0,(H27-K27)/K27) -> 0
A28: Bergen | F28: 0 | G28: 0 | H28: =IF(D28+E28=0,0,(B28+C28)/(D28+E28)) -> 0 | I28: 165664.82 | K28: 366.5150885 | L28: =IF(I28=0,0,(B28-I28)/I28) -> -1 | M28: =IF(K28=0,0,(H28-K28)/K28) -> -1
A29: Drammen - Bærum | F29: 0 | G29: 0 | H29: 0 | K29: 0 | L29: 0 | M29: 0
A30: Haugesund | F30: 0 | G30: 0 | H30: 0 | K30: 0 | L30: 0 | M30: 0
A31: Hamar og Omegn | F31: 0 | G31: 0 | H31: 0 | K31: 0 | L31: 0 | M31: 0
A32: Sandnes | F32: 0 | G32: 0 | H32: 0 | K32: 0 | L32: 0 | M32: 0
A33: Stavanger | B33: 33164 | D33: 112 | F33: 296.1071429 | G33: 0 | H33: 296.1071429 | I33: 109708.36 | K33: 325.0618074 | L33: -0.6977076314 | M33: -0.08907433568
A34: Telemark | F34: 0 | G34: 0 | H34: 0 | K34: 0 | L34: 0 | M34: 0
A35: Trondheim | B35: 1902539.44 | D35: 6113.36 | F35: 311.2101103 | G35: 0 | H35: 311.2101103 | I35: 2635021.58 | K35: 298.883035 | L35: -0.2779795602 | M35: 0.04124381056
A36: Vestfold | F36: 0 | G36: 0 | H36: 0 | K36: 0 | L36: 0 | M36: 0
A37: Østfold | B37: 636207 | C37: 0 | D37: 1603.5 | E37: 0 | F37: 396.7614593 | G37: 0 | H37: 396.7614593 | I37: 2201290 | J37: 0 | K37: 365.3593361 | L37: -0.7109844682 | M37: 0.08594859938
A38: Oslo | B38: 12031890 | D38: 37980 | F38: 316.7954186 | G38: 0 | H38: 316.7954186 | I38: 8741782 | J38: 173256 | K38: 331.1432286 | L38: 0.3763658256 | M38: -0.04332810913
A39: Landet i alt | B39: =SUM(B27:B38) -> 14603800.44 | C39: =SUM(C27:C38) -> 0 | D39: =SUM(D27:D38) -> 45808.86 | E39: =SUM(E27:E38) -> 0 | F39: =IF(D39=0,0,B39/D39) -> 318.7986001 | G39: =IF(E39=0,0,C39/E39) -> 0 | H39: =IF(D39+E39=0,0,(B39+C39)/(D39+E39)) -> 318.7986001 | I39: =SUM(I27:I38) -> 13853466.76 | J39: =SUM(J27:J38) -> 173256 | K39: 329.6315597 | L39: 0.05416215977 | M39: -0.03286384237
A42: ="MÅLESTATISTIKK FOR MURERE - GJENNOMSNITT HELE ÅRET "&FORS!$A$14 -> MÅLESTATISTIKK FOR MURERE - GJENNOMSNITT HELE ÅRET 2021
B44: Målesum i kroner | D44: Timer | F44: ="Fortjeneste hele "&FORS!$A$14-0 -> Fortjeneste hele 2021 | I44: =" Hele året "&FORS!$A$14-1 -> Hele året 2020 | L44: Endringer i %
B45: Innmålt m/ | C45: Innmålt m/ | D45: Innmålt m/ | E45: Innmålt m/ | F45: Innmålt m/ | G45: Innmålt m/ | H45: Gjennom- | I45: Innmålt m/ | J45: Innmålt m/ | K45: Gjen.snitt | L45: Innmålt m/ | M45: Gjen.snitt
B46: overskudd | C46: underskudd | D46: overskudd | E46: underskudd | F46: overskudd | G46: underskudd | H46: snitt | I46: overskudd | J46: underskudd | K46: fortjeneste | L46: overskudd | M46: fortjeneste
A47: Agder | B47: =SUMIFS(B$7:B$19,$A$7:$A$19,$A47)+SUMIFS(B$27:B$39,$A$27:$A$39,$A47) -> 0 | C47: =SUMIFS(C$7:C$19,$A$7:$A$19,$A47)+SUMIFS(C$27:C$39,$A$27:$A$39,$A47) -> 0 | D47: 0 | E47: 0 | F47: =IF(D47=0,0,B47/D47) -> 0 | G47: =IF(E47=0,0,C27/E47) -> 0 | H47: =IF(D47+E47=0,0,(B47+C47)/(D47+E47)) -> 0 | I47: =SUMIFS(I$7:I$19,$A$7:$A$19,$A47)+SUMIFS(I$27:I$39,$A$27:$A$39,$A47) -> 0 | J47: =SUMIFS(J$7:J$19,$A$7:$A$19,$A47)+SUMIFS(J$27:J$39,$A$27:$A$39,$A47) -> 0 | K47: 0 | L47: =IF(I47=0,0,(B47-I47)/I47) -> 0 | M47: =IF(K47=0,0,(H47-K47)/K47) -> 0
A48: Bergen | B48: =SUMIFS($B$7:$B$19,$A$7:$A$19,A48)+SUMIFS($B$27:$B$39,$A$27:$A$39,A48) -> 0 | C48: 0 | D48: 0 | E48: 0 | F48: =IF(D48=0,0,B48/D48) -> 0 | G48: 0 | H48: =IF(D48+E48=0,0,(B48+C48)/(D48+E48)) -> 0 | I48: =SUMIFS(I$7:I$19,$A$7:$A$19,$A48)+SUMIFS(I$27:I$39,$A$27:$A$39,$A48) -> 165664.82 | J48: 0 | K48: 366.5150885 | L48: =IF(I48=0,0,(B48-I48)/I48) -> -1 | M48: =IF(K48=0,0,(H48-K48)/K48) -> -1
A49: Drammen - Bærum | B49: 0 | C49: 0 | D49: 0 | E49: 0 | F49: 0 | G49: 0 | H49: 0 | I49: 0 | J49: 0 | K49: 0 | L49: 0 | M49: 0
A50: Haugesund | B50: 0 | C50: 0 | D50: 0 | E50: 0 | F50: 0 | G50: 0 | H50: 0 | I50: 0 | J50: 0 | K50: 0 | L50: 0 | M50: 0
A51: Hamar og Omegn | B51: 0 | C51: 0 | D51: 0 | E51: 0 | F51: 0 | G51: 0 | H51: 0 | I51: 0 | J51: 0 | K51: 0 | L51: 0 | M51: 0
A52: Sandnes | B52: 0 | C52: 0 | D52: 0 | E52: 0 | F52: =IF(D52=0,0,B52/D52) -> 0 | G52: 0 | H52: =IF(D52+E52=0,0,(B52+C52)/(D52+E52)) -> 0 | I52: 0 | J52: 0 | K52: 0 | L52: 0 | M52: 0
A53: Stavanger | B53: 33164 | C53: 0 | D53: 112 | E53: 0 | F53: 296.1071429 | G53: 0 | H53: 296.1071429 | I53: 869027.77 | J53: 0 | K53: 323.4193413 | L53: -0.9618378133 | M53: -0.08444825318
A54: Telemark | B54: 0 | C54: 0 | D54: 0 | E54: 0 | F54: 0 | G54: 0 | H54: 0 | I54: 0 | J54: 0 | K54: 0 | L54: 0 | M54: 0
A55: Trondheim | B55: 3843676.44 | C55: 586367 | D55: 12853.36 | E55: 2561 | F55: 299.0405964 | G55: 228.9601718 | H55: 287.3971699 | I55: 4188488.73 | J55: 0 | K55: 294.2788641 | L55: -0.08232379558 | M55: -0.02338494219
A56: Vestfold | B56: 0 | C56: 0 | D56: 0 | E56: 0 | F56: =IF(D56=0,0,B56/D56) -> 0 | G56: 0 | H56: 0 | I56: 0 | J56: 0 | K56: 0 | L56: 0 | M56: 0
A57: Østfold | B57: 1044177 | C57: 0 | D57: 2742 | E57: =SUMIFS(E$7:E$19,$A$7:$A$19,$A57)+SUMIFS(E$27:E$39,$A$27:$A$39,$A57) -> 0 | F57: =IF(D57=0,0,B57/D57) -> 380.8085339 | G57: 0 | H57: 380.8085339 | I57: 3634530 | J57: 0 | K57: 348.937212 | L57: -0.7127064572 | M57: 0.09133827188
A58: Oslo | B58: 28143554 | C58: 471588 | D58: 86234 | E58: 2027 | F58: 326.362618 | G58: 232.653182 | H58: 324.2104893 | I58: 20856078 | J58: 510472 | K58: 328.8173284 | L58: 0.3494173737 | M58: -0.01401032934
A59: Landet i alt | B59: =SUM(B47:B58) -> 33064571.44 | C59: =SUM(C47:C58) -> 1057955 | D59: =SUM(D47:D58) -> 101941.36 | E59: =SUM(E47:E58) -> 4588 | F59: =IF(D59=0,0,B59/D59) -> 324.3489339 | G59: =IF(E59=0,0,C59/E59) -> 230.5917611 | H59: =IF(D59+E59=0,0,(B59+C59)/(D59+E59)) -> 320.3110057 | I59: =SUM(I47:I58) -> 29713789.32 | J59: =SUM(J47:J58) -> 510472 | K59: 325.8046069 | L59: =IF(I59=0,0,(B59-I59)/I59) -> 0.1127685898 | M59: =IF(K59=0,0,(H59-K59)/K59) -> -0.01686164362

Sheet BLIKK OG VENTILASJON
A2: ="MÅLESTATISTIKK FOR BLIKK- OG VENTILASJONSARBEID - 1. HALVÅR "&FORS!$A$14 -> MÅLESTATISTIKK FOR BLIKK- OG VENTILASJONSARBEID - 1. HALVÅR 2021
B4: Målesum i kroner | D4: Timer | F4: ="Fortjeneste 1. halvår "&FORS!$A$14-0 -> Fortjeneste 1. halvår 2021 | I4: =" 1. halvår "&FORS!$A$14-1 -> 1. halvår 2020 | L4: Endringer i %
B5: Innmålt m/ | C5: Innmålt m/ | D5: Innmålt m/ | E5: Innmålt m/ | F5: Innmålt m/ | G5: Innmålt m/ | H5: Gjennom- | I5: Innmålt m/ | J5: Innmålt m/ | K5: Gjen.snitt | L5: Innmålt m/ | M5: Gjen.snitt
B6: overskudd | C6: underskudd | D6: overskudd | E6: underskudd | F6: overskudd | G6: underskudd | H6: snitt | I6: overskudd | J6: underskudd | K6: fortjeneste | L6: overskudd | M6: fortjeneste
A7: Agder | F7: =IF(D7=0,0,B7/D7) -> 0 | G7: =IF(E7=0,0,C7/E7) -> 0 | H7: =IF(D7+E7=0,0,(B7+C7)/(D7+E7)) -> 0 | K7: 0 | L7: =IF(I7=0,0,(B7-I7)/I7) -> 0 | M7: =IF(K7=0,0,(H7-K7)/K7) -> 0
A8: Bergen | F8: =IF(D8=0,0,B8/D8) -> 0 | G8: 0 | H8: =IF(D8+E8=0,0,(B8+C8)/(D8+E8)) -> 0 | K8: 0 | L8: =IF(I8=0,0,(B8-I8)/I8) -> 0 | M8: =IF(K8=0,0,(H8-K8)/K8) -> 0
A9: Drammen - Bærum | F9: 0 | G9: 0 | H9: 0 | K9: 0 | L9: 0 | M9: 0
A10: Haugesund | F10: 0 | G10: 0 | H10: 0 | K10: 0 | L10: 0 | M10: 0
A11: Hamar og Omegn | F11: 0 | G11: 0 | H11: 0 | K11: 0 | L11: 0 | M11: 0
A12: Sandnes | F12: 0 | G12: 0 | H12: 0 | K12: 0 | L12: 0 | M12: 0
A13: Stavanger | F13: 0 | G13: 0 | H13: 0 | K13: 0 | L13: 0 | M13: 0
A14: Telemark | F14: 0 | G14: 0 | H14: 0 | K14: 0 | L14: 0 | M14: 0
A15: Trondheim | B15: 240277.43 | C15: 0 | D15: 695.7 | F15: 345.3750611 | G15: 0 | H15: 345.3750611 | J15: 0 | K15: 0 | L15: 0 | M15: 0
A16: Vestfold | F16: 0 | G16: 0 | H16: 0 | K16: 0 | L16: 0 | M16: 0
A17: Østfold | F17: 0 | G17: 0 | H17: 0 | K17: 0 | L17: 0 | M17: 0
A18: Oslo | F18: 0 | G18: 0 | H18: 0 | K18: 0 | L18: 0 | M18: 0
A19: Landet i alt | B19: =SUM(B7:B18) -> 240277.43 | C19: =SUM(C7:C18) -> 0 | D19: =SUM(D7:D18) -> 695.7 | E19: =SUM(E7:E18) -> 0 | F19: =IF(D19=0,0,B19/D19) -> 345.3750611 | G19: =IF(E19=0,0,C19/E19) -> 0 | H19: =IF(D19+E19=0,0,(B19+C19)/(D19+E19)) -> 345.3750611 | I19: =SUM(I7:I18) -> 0 | J19: =SUM(J7:J18) -> 0 | K19: 0 | L19: =IF(I19=0,0,(B19-I19)/I19) -> 0 | M19: =IF(K19=0,0,(H19-K19)/K19) -> 0
A22: ="MÅLESTATISTIKK FOR BLIKK- OG VENTILASJONSARBEID - 2. HALVÅR "&FORS!$A$14 -> MÅLESTATISTIKK FOR BLIKK- OG VENTILASJONSARBEID - 2. HALVÅR 2021
B24: Målesum i kroner | D24: Timer | F24: ="Fortjeneste 2. halvår "&FORS!$A$14-0 -> Fortjeneste 2. halvår 2021 | I24: =" 2. halvår "&FORS!$A$14-1 -> 2. halvår 2020 | L24: Endringer i %
B25: Innmålt m/ | C25: Innmålt m/ | D25: Innmålt m/ | E25: Innmålt m/ | F25: Innmålt m/ | G25: Innmålt m/ | H25: Gjennom- | I25: Innmålt m/ | J25: Innmålt m/ | K25: Gjen.snitt | L25: Innmålt m/ | M25: Gjen.snitt
B26: overskudd | C26: underskudd | D26: overskudd | E26: underskudd | F26: overskudd | G26: underskudd | H26: snitt | I26: overskudd | J26: underskudd | K26: fortjeneste | L26: overskudd | M26: fortjeneste
A27: Agder | F27: =IF(D27=0,0,B27/D27) -> 0 | G27: 0 | H27: =IF(D27+E27=0,0,(B27+C27)/(D27+E27)) -> 0 | K27: 0 | L27: =IF(I27=0,0,(B27-I27)/I27) -> 0 | M27: =IF(K27=0,0,(H27-K27)/K27) -> 0
A28: Bergen | F28: 0 | G28: 0 | H28: =IF(D28+E28=0,0,(B28+C28)/(D28+E28)) -> 0 | K28: 0 | L28: =IF(I28=0,0,(B28-I28)/I28) -> 0 | M28: =IF(K28=0,0,(H28-K28)/K28) -> 0
A29: Drammen - Bærum | F29: 0 | G29: 0 | H29: 0 | K29: 0 | L29: 0 | M29: 0
A30: Haugesund | F30: 0 | G30: 0 | H30: 0 | K30: 0 | L30: 0 | M30: 0
A31: Hamar og Omegn | F31: 0 | G31: 0 | H31: 0 | K31: 0 | L31: 0 | M31: 0
A32: Sandnes | F32: 0 | G32: 0 | H32: 0 | K32: 0 | L32: 0 | M32: 0
A33: Stavanger | F33: 0 | G33: 0 | H33: 0 | K33: 0 | L33: 0 | M33: 0
A34: Telemark | F34: 0 | G34: 0 | H34: 0 | K34: 0 | L34: 0 | M34: 0
A35: Trondheim | B35: 1242552.87 | D35: 2956.1 | F35: 420.335195 | G35: 0 | H35: 420.335195 | I35: 247052.49 | J35: 0 | K35: 273.0163443 | L35: 4.029509599 | M35: 0.5395971843
A36: Vestfold | F36: 0 | G36: 0 | H36: 0 | K36: 0 | L36: 0 | M36: 0
A37: Østfold | C37: 0 | F37: 0 | G37: 0 | H37: 0 | J37: 0 | K37: 0 | L37: 0 | M37: 0
A38: Oslo | F38: 0 | G38: 0 | H38: 0 | K38: 0 | L38: 0 | M38: 0
A39: Landet i alt | B39: =SUM(B27:B38) -> 1242552.87 | C39: =SUM(C27:C38) -> 0 | D39: =SUM(D27:D38) -> 2956.1 | E39: =SUM(E27:E38) -> 0 | F39: =IF(D39=0,0,B39/D39) -> 420.335195 | G39: =IF(E39=0,0,C39/E39) -> 0 | H39: =IF(D39+E39=0,0,(B39+C39)/(D39+E39)) -> 420.335195 | I39: =SUM(I27:I38) -> 247052.49 | J39: =SUM(J27:J38) -> 0 | K39: 273.0163443 | L39: 4.029509599 | M39: 0.5395971843
A42: ="MÅLESTATISTIKK FOR BLIKK- OG VENTILASJONSARBEID - GJENNOMSNITT HELE ÅRET "&FORS!$A$14 -> MÅLESTATISTIKK FOR BLIKK- OG VENTILASJONSARBEID - GJENNOMSNITT HELE ÅRET 2021
B44: Målesum i kroner | D44: Timer | F44: ="Fortjeneste hele "&FORS!$A$14-0 -> Fortjeneste hele 2021 | I44: =" Hele året "&FORS!$A$14-1 -> Hele året 2020 | L44: Endringer i %
B45: Innmålt m/ | C45: Innmålt m/ | D45: Innmålt m/ | E45: Innmålt m/ | F45: Innmålt m/ | G45: Innmålt m/ | H45: Gjennom- | I45: Innmålt m/ | J45: Innmålt m/ | K45: Gjen.snitt | L45: Innmålt m/ | M45: Gjen.snitt
B46: overskudd | C46: underskudd | D46: overskudd | E46: underskudd | F46: overskudd | G46: underskudd | H46: snitt | I46: overskudd | J46: underskudd | K46: fortjeneste | L46: overskudd | M46: fortjeneste
A47: Agder | B47: =SUMIFS(B$7:B$19,$A$7:$A$19,$A47)+SUMIFS(B$27:B$39,$A$27:$A$39,$A47) -> 0 | C47: =SUMIFS(C$7:C$19,$A$7:$A$19,$A47)+SUMIFS(C$27:C$39,$A$27:$A$39,$A47) -> 0 | D47: 0 | E47: 0 | F47: =IF(D47=0,0,B47/D47) -> 0 | G47: =IF(E47=0,0,C27/E47) -> 0 | H47: =IF(D47+E47=0,0,(B47+C47)/(D47+E47)) -> 0 | I47: =SUMIFS(I$7:I$19,$A$7:$A$19,$A47)+SUMIFS(I$27:I$39,$A$27:$A$39,$A47) -> 0 | J47: =SUMIFS(J$7:J$19,$A$7:$A$19,$A47)+SUMIFS(J$27:J$39,$A$27:$A$39,$A47) -> 0 | K47: 0 | L47: =IF(I47=0,0,(B47-I47)/I47) -> 0 | M47: =IF(K47=0,0,(H47-K47)/K47) -> 0
A48: Bergen | B48: =SUMIFS($B$7:$B$19,$A$7:$A$19,A48)+SUMIFS($B$27:$B$39,$A$27:$A$39,A48) -> 0 | C48: 0 | D48: 0 | E48: 0 | F48: =IF(D48=0,0,B48/D48) -> 0 | G48: 0 | H48: =IF(D48+E48=0,0,(B48+C48)/(D48+E48)) -> 0 | I48: =SUMIFS(I$7:I$19,$A$7:$A$19,$A48)+SUMIFS(I$27:I$39,$A$27:$A$39,$A48) -> 0 | J48: 0 | K48: 0 | L48: =IF(I48=0,0,(B48-I48)/I48) -> 0 | M48: =IF(K48=0,0,(H48-K48)/K48) -> 0
A49: Drammen - Bærum | B49: 0 | C49: 0 | D49: 0 | E49: 0 | F49: 0 | G49: 0 | H49: 0 | I49: 0 | J49: 0 | K49: 0 | L49: 0 | M49: 0
A50: Haugesund | B50: 0 | C50: 0 | D50: 0 | E50: 0 | F50: 0 | G50: 0 | H50: 0 | I50: 0 | J50: 0 | K50: 0 | L50: 0 | M50: 0
A51: Hamar og Omegn | B51: 0 | C51: 0 | D51: 0 | E51: 0 | F51: 0 | G51: 0 | H51: 0 | I51: 0 | J51: 0 | K51: 0 | L51: 0 | M51: 0
A52: Sandnes | B52: 0 | C52: 0 | D52: 0 | E52: 0 | F52: =IF(D52=0,0,B52/D52) -> 0 | G52: 0 | H52: =IF(D52+E52=0,0,(B52+C52)/(D52+E52)) -> 0 | I52: 0 | J52: 0 | K52: 0 | L52: 0 | M52: 0
A53: Stavanger | B53: 0 | C53: 0 | D53: 0 | E53: 0 | F53: 0 | G53: 0 | H53: 0 | I53: 0 | J53: 0 | K53: 0 | L53: 0 | M53: 0
A54: Telemark | B54: 0 | C54: 0 | D54: 0 | E54: 0 | F54: 0 | G54: 0 | H54: 0 | I54: 0 | J54: 0 | K54: 0 | L54: 0 | M54: 0
A55: Trondheim | B55: 1482830.3 | C55: 0 | D55: 3651.8 | E55: 0 | F55: 406.0546306 | G55: 0 | H55: 406.0546306 | I55: 247052.49 | J55: 0 | K55: 273.0163443 | L55: 5.002086034 | M55: 0.487290556
A56: Vestfold | B56: 0 | C56: 0 | D56: 0 | E56: 0 | F56: =IF(D56=0,0,B56/D56) -> 0 | G56: 0 | H56: 0 | I56: 0 | J56: 0 | K56: 0 | L56: 0 | M56: 0
A57: Østfold | B57: 0 | C57: 0 | D57: 0 | E57: =SUMIFS(E$7:E$19,$A$7:$A$19,$A57)+SUMIFS(E$27:E$39,$A$27:$A$39,$A57) -> 0 | F57: =IF(D57=0,0,B57/D57) -> 0 | G57: 0 | H57: 0 | I57: 0 | J57: 0 | K57: 0 | L57: 0 | M57: 0
A58: Oslo | B58: 0 | C58: 0 | D58: 0 | E58: 0 | F58: 0 | G58: 0 | H58: 0 | I58: 0 | J58: 0 | K58: 0 | L58: 0 | M58: 0
A59: Landet i alt | B59: =SUM(B47:B58) -> 1482830.3 | C59: =SUM(C47:C58) -> 0 | D59: =SUM(D47:D58) -> 3651.8 | E59: =SUM(E47:E58) -> 0 | F59: =IF(D59=0,0,B59/D59) -> 406.0546306 | G59: =IF(E59=0,0,C59/E59) -> 0 | H59: =IF(D59+E59=0,0,(B59+C59)/(D59+E59)) -> 406.0546306 | I59: =SUM(I47:I58) -> 247052.49 | J59: =SUM(J47:J58) -> 0 | K59: 273.0163443 | L59: =IF(I59=0,0,(B59-I59)/I59) -> 5.002086034 | M59: =IF(K59=0,0,(H59-K59)/K59) -> 0.487290556

Sheet ISOLATØR
A2: ="MÅLESTATISTIKK FOR ISOLATØRER - 1. HALVÅR "&FORS!$A$14 -> MÅLESTATISTIKK FOR ISOLATØRER - 1. HALVÅR 2021
B4: Målesum i kroner | D4: Timer | F4: ="Fortjeneste 1. halvår "&FORS!$A$14-0 -> Fortjeneste 1. halvår 2021 | I4: =" 1. halvår "&FORS!$A$14-1 -> 1. halvår 2020 | L4: Endringer i %
B5: Innmålt m/ | C5: Innmålt m/ | D5: Innmålt m/ | E5: Innmålt m/ | F5: Innmålt m/ | G5: Innmålt m/ | H5: Gjennom- | I5: Innmålt m/ | J5: Innmålt m/ | K5: Gjen.snitt | L5: Innmålt m/ | M5: Gjen.snitt
B6: overskudd | C6: underskudd | D6: overskudd | E6: underskudd | F6: overskudd | G6: underskudd | H6: snitt | I6: overskudd | J6: underskudd | K6: fortjeneste | L6: overskudd | M6: fortjeneste
A7: Agder | F7: =IF(D7=0,0,B7/D7) -> 0 | G7: =IF(E7=0,0,C7/E7) -> 0 | H7: =IF(D7+E7=0,0,(B7+C7)/(D7+E7)) -> 0 | L7: =IF(I7=0,0,(B7-I7)/I7) -> 0 | M7: =IF(K7=0,0,(H7-K7)/K7) -> 0
A8: Bergen | F8: =IF(D8=0,0,B8/D8) -> 0 | G8: 0 | H8: =IF(D8+E8=0,0,(B8+C8)/(D8+E8)) -> 0 | L8: =IF(I8=0,0,(B8-I8)/I8) -> 0 | M8: =IF(K8=0,0,(H8-K8)/K8) -> 0
A9: Drammen - Bærum | F9: 0 | G9: 0 | H9: 0 | L9: 0 | M9: 0
A10: Haugesund | F10: 0 | G10: 0 | H10: 0 | L10: 0 | M10: 0
A11: Hamar og Omegn | F11: 0 | G11: 0 | H11: 0 | L11: 0 | M11: 0
A12: Sandnes | F12: 0 | G12: 0 | H12: 0 | L12: 0 | M12: 0
A13: Stavanger | F13: 0 | G13: 0 | H13: 0 | L13: 0 | M13: 0
A14: Telemark | F14: 0 | G14: 0 | H14: 0 | L14: 0 | M14: 0
A15: Trondheim | F15: 0 | G15: 0 | H15: 0 | L15: 0 | M15: 0
A16: Vestfold | F16: 0 | G16: 0 | H16: 0 | L16: 0 | M16: 0
A17: Østfold | F17: 0 | G17: 0 | H17: 0 | L17: 0 | M17: 0
A18: Oslo | F18: 0 | G18: 0 | H18: 0 | L18: 0 | M18: 0
A19: Landet i alt | B19: =SUM(B7:B18) -> 0 | C19: =SUM(C7:C18) -> 0 | D19: =SUM(D7:D18) -> 0 | E19: =SUM(E7:E18) -> 0 | F19: =IF(D19=0,0,B19/D19) -> 0 | G19: =IF(E19=0,0,C19/E19) -> 0 | H19: =IF(D19+E19=0,0,(B19+C19)/(D19+E19)) -> 0 | I19: =SUM(I7:I18) -> 0 | J19: =SUM(J7:J18) -> 0 | L19: =IF(I19=0,0,(B19-I19)/I19) -> 0 | M19: =IF(K19=0,0,(H19-K19)/K19) -> 0
A22: ="MÅLESTATISTIKK FOR ISOLATØRER - 2. HALVÅR "&FORS!$A$14 -> MÅLESTATISTIKK FOR ISOLATØRER - 2. HALVÅR 2021
B24: Målesum i kroner | D24: Timer | F24: ="Fortjeneste 2. halvår "&FORS!$A$14-0 -> Fortjeneste 2. halvår 2021 | I24: =" 2. halvår "&FORS!$A$14-1 -> 2. halvår 2020 | L24: Endringer i %
B25: Innmålt m/ | C25: Innmålt m/ | D25: Innmålt m/ | E25: Innmålt m/ | F25: Innmålt m/ | G25: Innmålt m/ | H25: Gjennom- | I25: Innmålt m/ | J25: Innmålt m/ | K25: Gjen.snitt | L25: Innmålt m/ | M25: Gjen.snitt
B26: overskudd | C26: underskudd | D26: overskudd | E26: underskudd | F26: overskudd | G26: underskudd | H26: snitt | I26: overskudd | J26: underskudd | K26: fortjeneste | L26: overskudd | M26: fortjeneste
A27: Agder | F27: =IF(D27=0,0,B27/D27) -> 0 | G27: 0 | H27: =IF(D27+E27=0,0,(B27+C27)/(D27+E27)) -> 0 | L27: =IF(I27=0,0,(B27-I27)/I27) -> 0 | M27: =IF(K27=0,0,(H27-K27)/K27) -> 0
A28: Bergen | F28: 0 | G28: 0 | H28: =IF(D28+E28=0,0,(B28+C28)/(D28+E28)) -> 0 | L28: =IF(I28=0,0,(B28-I28)/I28) -> 0 | M28: =IF(K28=0,0,(H28-K28)/K28) -> 0
A29: Drammen - Bærum | F29: 0 | G29: 0 | H29: 0 | L29: 0 | M29: 0
A30: Haugesund | F30: 0 | G30: 0 | H30: 0 | L30: 0 | M30: 0
A31: Hamar og Omegn | F31: 0 | G31: 0 | H31: 0 | L31: 0 | M31: 0
A32: Sandnes | F32: 0 | G32: 0 | H32: 0 | L32: 0 | M32: 0
A33: Stavanger | F33: 0 | G33: 0 | H33: 0 | L33: 0 | M33: 0
A34: Telemark | F34: 0 | G34: 0 | H34: 0 | L34: 0 | M34: 0
A35: Trondheim | F35: 0 | G35: 0 | H35: 0 | L35: 0 | M35: 0
A36: Vestfold | F36: 0 | G36: 0 | H36: 0 | L36: 0 | M36: 0
A37: Østfold | C37: 0 | F37: 0 | G37: 0 | H37: 0 | L37: 0 | M37: 0
A38: Oslo | F38: 0 | G38: 0 | H38: 0 | L38: 0 | M38: 0
A39: Landet i alt | B39: =SUM(B27:B38) -> 0 | C39: =SUM(C27:C38) -> 0 | D39: =SUM(D27:D38) -> 0 | E39: =SUM(E27:E38) -> 0 | F39: =IF(D39=0,0,B39/D39) -> 0 | G39: =IF(E39=0,0,C39/E39) -> 0 | H39: =IF(D39+E39=0,0,(B39+C39)/(D39+E39)) -> 0 | I39: =SUM(I27:I38) -> 0 | J39: =SUM(J27:J38) -> 0 | L39: 0 | M39: 0
A42: ="MÅLESTATISTIKK FOR ISOLATØRER - GJENNOMSNITT HELE ÅRET "&FORS!$A$14 -> MÅLESTATISTIKK FOR ISOLATØRER - GJENNOMSNITT HELE ÅRET 2021
B44: Målesum i kroner | D44: Timer | F44: ="Fortjeneste hele "&FORS!$A$14-0 -> Fortjeneste hele 2021 | I44: =" Hele året "&FORS!$A$14-1 -> Hele året 2020 | L44: Endringer i %
B45: Innmålt m/ | C45: Innmålt m/ | D45: Innmålt m/ | E45: Innmålt m/ | F45: Innmålt m/ | G45: Innmålt m/ | H45: Gjennom- | I45: Innmålt m/ | J45: Innmålt m/ | K45: Gjen.snitt | L45: Innmålt m/ | M45: Gjen.snitt
B46: overskudd | C46: underskudd | D46: overskudd | E46: underskudd | F46: overskudd | G46: underskudd | H46: snitt | I46: overskudd | J46: underskudd | K46: fortjeneste | L46: overskudd | M46: fortjeneste
A47: Agder | B47: =SUMIFS(B$7:B$19,$A$7:$A$19,$A47)+SUMIFS(B$27:B$39,$A$27:$A$39,$A47) -> 0 | C47: =SUMIFS(C$7:C$19,$A$7:$A$19,$A47)+SUMIFS(C$27:C$39,$A$27:$A$39,$A47) -> 0 | D47: 0 | E47: 0 | F47: =IF(D47=0,0,B47/D47) -> 0 | G47: =IF(E47=0,0,C27/E47) -> 0 | H47: =IF(D47+E47=0,0,(B47+C47)/(D47+E47)) -> 0 | I47: =SUMIFS(I$7:I$19,$A$7:$A$19,$A47)+SUMIFS(I$27:I$39,$A$27:$A$39,$A47) -> 0 | J47: =SUMIFS(J$7:J$19,$A$7:$A$19,$A47)+SUMIFS(J$27:J$39,$A$27:$A$39,$A47) -> 0 | L47: =IF(I47=0,0,(B47-I47)/I47) -> 0 | M47: =IF(K47=0,0,(H47-K47)/K47) -> 0
A48: Bergen | B48: =SUMIFS($B$7:$B$19,$A$7:$A$19,A48)+SUMIFS($B$27:$B$39,$A$27:$A$39,A48) -> 0 | C48: 0 | D48: 0 | E48: 0 | F48: =IF(D48=0,0,B48/D48) -> 0 | G48: 0 | H48: =IF(D48+E48=0,0,(B48+C48)/(D48+E48)) -> 0 | I48: =SUMIFS(I$7:I$19,$A$7:$A$19,$A48)+SUMIFS(I$27:I$39,$A$27:$A$39,$A48) -> 0 | J48: 0 | L48: =IF(I48=0,0,(B48-I48)/I48) -> 0 | M48: =IF(K48=0,0,(H48-K48)/K48) -> 0
A49: Drammen - Bærum | B49: 0 | C49: 0 | D49: 0 | E49: 0 | F49: 0 | G49: 0 | H49: 0 | I49: 0 | J49: 0 | L49: 0 | M49: 0
A50: Haugesund | B50: 0 | C50: 0 | D50: 0 | E50: 0 | F50: 0 | G50: 0 | H50: 0 | I50: 0 | J50: 0 | L50: 0 | M50: 0
A51: Hamar og Omegn | B51: 0 | C51: 0 | D51: 0 | E51: 0 | F51: 0 | G51: 0 | H51: 0 | I51: 0 | J51: 0 | L51: 0 | M51: 0
A52: Sandnes | B52: 0 | C52: 0 | D52: 0 | E52: 0 | F52: =IF(D52=0,0,B52/D52) -> 0 | G52: 0 | H52: =IF(D52+E52=0,0,(B52+C52)/(D52+E52)) -> 0 | I52: 0 | J52: 0 | L52: 0 | M52: 0
A53: Stavanger | B53: 0 | C53: 0 | D53: 0 | E53: 0 | F53: 0 | G53: 0 | H53: 0 | I53: 0 | J53: 0 | L53: 0 | M53: 0
A54: Telemark | B54: 0 | C54: 0 | D54: 0 | E54: 0 | F54: 0 | G54: 0 | H54: 0 | I54: 0 | J54: 0 | L54: 0 | M54: 0
A55: Trondheim | B55: 0 | C55: 0 | D55: 0 | E55: 0 | F55: 0 | G55: 0 | H55: 0 | I55: 0 | J55: 0 | L55: 0 | M55: 0
A56: Vestfold | B56: 0 | C56: 0 | D56: 0 | E56: 0 | F56: =IF(D56=0,0,B56/D56) -> 0 | G56: 0 | H56: 0 | I56: 0 | J56: 0 | L56: 0 | M56: 0
A57: Østfold | B57: 0 | C57: 0 | D57: 0 | E57: =SUMIFS(E$7:E$19,$A$7:$A$19,$A57)+SUMIFS(E$27:E$39,$A$27:$A$39,$A57) -> 0 | F57: =IF(D57=0,0,B57/D57) -> 0 | G57: 0 | H57: 0 | I57: 0 | J57: 0 | L57: 0 | M57: 0
A58: Oslo | B58: 0 | C58: 0 | D58: 0 | E58: 0 | F58: 0 | G58: 0 | H58: 0 | I58: 0 | J58: 0 | L58: 0 | M58: 0
A59: Landet i alt | B59: =SUM(B47:B58) -> 0 | C59: =SUM(C47:C58) -> 0 | D59: =SUM(D47:D58) -> 0 | E59: =SUM(E47:E58) -> 0 | F59: =IF(D59=0,0,B59/D59) -> 0 | G59: =IF(E59=0,0,C59/E59) -> 0 | H59: =IF(D59+E59=0,0,(B59+C59)/(D59+E59)) -> 0 | I59: =SUM(I47:I58) -> 0 | J59: =SUM(J47:J58) -> 0 | L59: =IF(I59=0,0,(B59-I59)/I59) -> 0 | M59: =IF(K59=0,0,(H59-K59)/K59) -> 0
